{"text_format":"1","workbook":"xlsx","n_sheets":12,"sheets":["Data visualization","Data summary","Facility-wide","Outpatient department & clinic","Inpatient department & ward","setting","Laboratory","清单","droplist","门诊区域 (2)","data","rules"],"not_rendered":{"charts":4,"images":5,"macros":1,"external_links":0,"defined_names":0,"comments":0,"pivot_tables":0},"unopened":[],"bounds":{"document_bytes":16777216,"sheet_cells":100000,"rows_first":2000,"rows_last":500,"rows_between":2000,"halvings":0,"cell_chars":16384,"cell_head_chars":4096},"cells_cut":0,"cells_raw":0,"read":"whole","date_system":"1900"}

{"sheet":"Data visualization","index":0,"n_rows":11,"n_cols":248,"rows_kept":11,"cut":false,"hidden":false,"merged":[]}
[null,"TB BASICS Dashboard"]
[null,null,null,null,null,null,null,null,null,null,null,null,null,null,null,null,null,null,null,null,null,null,null,null,null,null,null,null,null,null,null,null,null,null,null,null,null,"2. 急诊",null,null,null,null,null,null,null,null,null,null,null,null,null,null,null,null,null,null,null,null,null,null,null,null,null,null,null,null,null,null,null,null,null,null,"3. 发热门诊",null,null,null,null,null,null,null,null,null,null,null,null,null,null,null,null,null,null,null,null,null,null,null,null,null,null,null,null,null,null,null,null,null,null,"4. 呼吸门诊",null,null,null,null,null,null,null,null,null,null,null,null,null,null,null,null,null,null,null,null,null,null,null,null,null,null,null,null,null,null,null,null,null,null,"5. 放射科",null,null,null,null,null,null,null,null,null,null,null,null,null,null,null,null,null,null,null,null,null,null,null,null,null,null,null,null,null,null,null,null,null,null,"6. 结核门诊",null,null,null,null,null,null,null,null,null,null,null,null,null,null,null,null,null,null,null,null,null,null,null,null,null,null,null,null,null,null,null,null,null,null,"7. 药房",null,null,null,null,null,null,null,null,null,null,null,null,null,null,null,null,null,null,null,null,null,null,null,null,null,null,null,null,null,null,null,null,null,null,"8. 其他，请注明"]
[null,"County/district"]
[null,"Health Facility Name"]
[null,"Type of institution"]
[null,"No. of outpatient clinics/areas"," "]
[null,"No. of assessed outpatient clinics/areas",{"$f":"COUNTA(droplist!B:B)","v":5}]
[null,"No. of inpatient departments/wards fo TB"]
[null,"No. of assessed inpatient departments/wards fo TB",{"$f":"COUNTA(droplist!E:E)","v":1}]
[null,"No. of TB related laboratories"]
[null,"No. of assessed TB related laboratories",{"$f":"COUNTA(droplist!H:H)","v":2}]

{"sheet":"Data summary","index":1,"n_rows":18,"n_cols":8,"rows_kept":18,"cut":false,"hidden":false,"merged":[]}
[null,"Baseline","3rd month","6th month","9th month","12th month","15th month","Final"]
["Administrative controls",{"$f":"AVERAGE(B3:B6)","v":0.43606250000000002},0.52713750000000004,0.54377500000000001,0.55702499999999999,0.66664999999999996,0.76051250000000004,0.77668749999999998]
["Facility-wide",{"$f":"'Facility-wide'!C20","v":0.40625},{"$f":"'Facility-wide'!H20","v":0.53125},{"$f":"'Facility-wide'!M20","v":0.5625},{"$f":"'Facility-wide'!R20","v":0.5625},{"$f":"'Facility-wide'!W20","v":0.6875},{"$f":"'Facility-wide'!AB20","v":0.96875},{"$f":"'Facility-wide'!AG20","v":0.96875}]
["Outpatient",{"$f":"getMean(\"Outpatient department & clinic\",24,3,1,4,7,COUNTA(droplist!$B:$B))","v":0.3765},{"$f":"getMean(\"Outpatient department & clinic\",24,8,1,4,7,COUNTA(droplist!$B:$B))","v":0.42349999999999999},{"$f":"getMean(\"Outpatient department & clinic\",24,13,1,4,7,COUNTA(droplist!$B:$B))","v":0.45879999999999999},{"$f":"getMean(\"Outpatient department & clinic\",24,18,1,4,7,COUNTA(droplist!$B:$B))","v":0.51180000000000003},{"$f":"getMean(\"Outpatient department & clinic\",24,23,1,4,7,COUNTA(droplist!$B:$B))","v":0.51759999999999995},{"$f":"getMean(\"Outpatient department & clinic\",24,28,1,4,7,COUNTA(droplist!$B:$B))","v":0.61180000000000001},{"$f":"getMean(\"Outpatient department & clinic\",24,33,1,4,7,COUNTA(droplist!$B:$B))","v":0.67649999999999999}]
["Inpatient",{"$f":"getMean(\"Inpatient department & ward\",21,3,1,4,7,COUNTA(droplist!$E:$E))","v":0.46150000000000002},{"$f":"getMean(\"Inpatient department & ward\",21,8,1,4,7,COUNTA(droplist!$E:$E))","v":0.65380000000000005},{"$f":"getMean(\"Inpatient department & ward\",21,13,1,4,7,COUNTA(droplist!$E:$E))","v":0.65380000000000005},{"$f":"getMean(\"Inpatient department & ward\",21,18,1,4,7,COUNTA(droplist!$E:$E))","v":0.65380000000000005},{"$f":"getMean(\"Inpatient department & ward\",21,33,1,4,7,COUNTA(droplist!$E:$E))","v":0.96150000000000002},{"$f":"getMean(\"Inpatient department & ward\",21,28,1,4,7,COUNTA(droplist!$E:$E))","v":0.96150000000000002},{"$f":"getMean(\"Inpatient department & ward\",21,33,1,4,7,COUNTA(droplist!$E:$E))","v":0.96150000000000002}]
["Laboratory",{"$f":"getMean(\"Laboratory\",11,3,1,4,7,COUNTA(droplist!$H:$H))","v":0.5},{"$f":"getMean(\"Laboratory\",11,8,1,4,7,COUNTA(droplist!$H:$H))","v":0.5},{"$f":"getMean(\"Laboratory\",11,13,1,4,7,COUNTA(droplist!$H:$H))","v":0.5},{"$f":"getMean(\"Laboratory\",11,18,1,4,7,COUNTA(droplist!$H:$H))","v":0.5},{"$f":"getMean(\"Laboratory\",11,33,1,4,7,COUNTA(droplist!$H:$H))","v":0.5},{"$f":"getMean(\"Laboratory\",11,28,1,4,7,COUNTA(droplist!$H:$H))","v":0.5},{"$f":"getMean(\"Laboratory\",11,33,1,4,7,COUNTA(droplist!$H:$H))","v":0.5}]
["Environmental controls",{"$f":"AVERAGE(B8:B10)","v":0.53536666666666666},0.55293333333333328,0.59249999999999992,0.59249999999999992,0.66990000000000005,0.68886666666666663,0.70923333333333327]
["Outpatient",{"$f":"getMean(\"Outpatient department & clinic\",36,3,1,4,7,COUNTA(droplist!$B:$B))","v":0.52780000000000005},{"$f":"getMean(\"Outpatient department & clinic\",36,8,1,4,7,COUNTA(droplist!$B:$B))","v":0.55279999999999996},{"$f":"getMean(\"Outpatient department & clinic\",36,13,1,4,7,COUNTA(droplist!$B:$B))","v":0.55279999999999996},{"$f":"getMean(\"Outpatient department & clinic\",36,18,1,4,7,COUNTA(droplist!$B:$B))","v":0.55279999999999996},{"$f":"getMean(\"Outpatient department & clinic\",36,23,1,4,7,COUNTA(droplist!$B:$B))","v":0.56530000000000002},{"$f":"getMean(\"Outpatient department & clinic\",36,28,1,4,7,COUNTA(droplist!$B:$B))","v":0.62219999999999998},{"$f":"getMean(\"Outpatient department & clinic\",36,33,1,4,7,COUNTA(droplist!$B:$B))","v":0.68330000000000002}]
["Inpatient",{"$f":"getMean(\"Inpatient department & ward\",35,3,1,4,7,COUNTA(droplist!$E:$E))","v":0.77270000000000005},{"$f":"getMean(\"Inpatient department & ward\",35,8,1,4,7,COUNTA(droplist!$E:$E))","v":0.77270000000000005},{"$f":"getMean(\"Inpatient department & ward\",35,13,1,4,7,COUNTA(droplist!$E:$E))","v":0.86360000000000003},{"$f":"getMean(\"Inpatient department & ward\",35,18,1,4,7,COUNTA(droplist!$E:$E))","v":0.86360000000000003},{"$f":"getMean(\"Inpatient department & ward\",35,33,1,4,7,COUNTA(droplist!$E:$E))","v":1},{"$f":"getMean(\"Inpatient department & ward\",35,28,1,4,7,COUNTA(droplist!$E:$E))","v":1},{"$f":"getMean(\"Inpatient department & ward\",35,33,1,4,7,COUNTA(droplist!$E:$E))","v":1}]
["Laboratory",{"$f":"getMean(\"Laboratory\",23,3,1,4,7,COUNTA(droplist!$H:$H))","v":0.30559999999999998},{"$f":"getMean(\"Laboratory\",23,8,1,4,7,COUNTA(droplist!$H:$H))","v":0.33329999999999999},{"$f":"getMean(\"Laboratory\",23,13,1,4,7,COUNTA(droplist!$H:$H))","v":0.36109999999999998},{"$f":"getMean(\"Laboratory\",23,18,1,4,7,COUNTA(droplist!$H:$H))","v":0.36109999999999998},{"$f":"getMean(\"Laboratory\",23,33,1,4,7,COUNTA(droplist!$H:$H))","v":0.44440000000000002},{"$f":"getMean(\"Laboratory\",23,28,1,4,7,COUNTA(droplist!$H:$H))","v":0.44440000000000002},{"$f":"getMean(\"Laboratory\",23,33,1,4,7,COUNTA(droplist!$H:$H))","v":0.44440000000000002}]
["Personal protective equipment",{"$f":"AVERAGE(B12:B14)","v":0.71666666666666667},0.71666666666666667,0.71666666666666667,0.71666666666666667,0.74443333333333328,0.75,0.7611]
["Outpatient",{"$f":"getMean(\"Outpatient department & clinic\",44,3,1,4,7,COUNTA(droplist!$B:$B))","v":0.73329999999999995},{"$f":"getMean(\"Outpatient department & clinic\",44,8,1,4,7,COUNTA(droplist!$B:$B))","v":0.73329999999999995},{"$f":"getMean(\"Outpatient department & clinic\",44,13,1,4,7,COUNTA(droplist!$B:$B))","v":0.73329999999999995},{"$f":"getMean(\"Outpatient department & clinic\",44,18,1,4,7,COUNTA(droplist!$B:$B))","v":0.73329999999999995},{"$f":"getMean(\"Outpatient department & clinic\",44,23,1,4,7,COUNTA(droplist!$B:$B))","v":0.73329999999999995},{"$f":"getMean(\"Outpatient department & clinic\",44,28,1,4,7,COUNTA(droplist!$B:$B))","v":0.75},{"$f":"getMean(\"Outpatient department & clinic\",44,33,1,4,7,COUNTA(droplist!$B:$B))","v":0.7833}]
["Inpatient",{"$f":"getMean(\"Inpatient department & ward\",43,3,1,4,7,COUNTA(droplist!$E:$E))","v":0.91669999999999996},{"$f":"getMean(\"Inpatient department & ward\",43,8,1,4,7,COUNTA(droplist!$E:$E))","v":0.91669999999999996},{"$f":"getMean(\"Inpatient department & ward\",43,13,1,4,7,COUNTA(droplist!$E:$E))","v":0.91669999999999996},{"$f":"getMean(\"Inpatient department & ward\",43,18,1,4,7,COUNTA(droplist!$E:$E))","v":0.91669999999999996},{"$f":"getMean(\"Inpatient department & ward\",43,33,1,4,7,COUNTA(droplist!$E:$E))","v":1},{"$f":"getMean(\"Inpatient department & ward\",43,28,1,4,7,COUNTA(droplist!$E:$E))","v":1},{"$f":"getMean(\"Inpatient department & ward\",43,33,1,4,7,COUNTA(droplist!$E:$E))","v":1}]
["Laboratory",{"$f":"getMean(\"Laboratory\",30,3,1,4,7,COUNTA(droplist!$H:$H))","v":0.5},{"$f":"getMean(\"Laboratory\",30,8,1,4,7,COUNTA(droplist!$H:$H))","v":0.5},{"$f":"getMean(\"Laboratory\",30,13,1,4,7,COUNTA(droplist!$H:$H))","v":0.5},{"$f":"getMean(\"Laboratory\",30,18,1,4,7,COUNTA(droplist!$H:$H))","v":0.5},{"$f":"getMean(\"Laboratory\",30,33,1,4,7,COUNTA(droplist!$H:$H))","v":0.5},{"$f":"getMean(\"Laboratory\",30,28,1,4,7,COUNTA(droplist!$H:$H))","v":0.5},{"$f":"getMean(\"Laboratory\",30,33,1,4,7,COUNTA(droplist!$H:$H))","v":0.5}]
["Proportions increased %"]
["Administrative controls",null,{"$f":"IF(B$2<>0,((C$2-B$2)/B$2),\"\")","v":0.20885767521857534},3.1561973868298066E-2,2.436669578410185E-2,0.19680445222386783,0.1407972699317484,2.1268552456402676E-2]
["Environmental controls",null,{"$f":"IF(B$7<>0,((C$7-B$7)/B$7),\"\")","v":3.2812402714650309E-2},7.1557752592235305E-2,0,0.13063291139240532,2.8312683485097141E-2,2.9565469853866221E-2]
["Personal protective equipment",null,{"$f":"IF(B$11<>0,((C$11-B$11)/B$11),\"\")","v":0},0,0,3.8744186046511545E-2,7.47772354811273E-3,1.4799999999999999E-2]

{"sheet":"Facility-wide","index":2,"n_rows":21,"n_cols":37,"rows_kept":21,"cut":false,"hidden":false,"merged":[[1,27,1,31],[1,32,1,36],[20,2,20,6],[20,7,20,11],[20,12,20,16],[20,17,20,21],[20,22,20,26],[20,27,20,31],[20,32,20,36],[1,2,1,6],[1,7,1,11],[1,12,1,16],[1,17,1,21],[1,22,1,26]]}
[null,"Assessment phase","Basic",null,null,null,null,"3 months",null,null,null,null,"6 months",null,null,null,null,"9 months",null,null,null,null,"12 months",null,null,null,null,"15 months",null,null,null,null,"18 months"]
[null,"Date of assessment","Date",null,null,null,null,"Date",null,null,null,null,"Date",null,null,null,null,"Date",null,null,null,null,"Date",null,null,null,null,"Date"]
[null,"Facility-wide indicators","Rate","Investigation","Qualification","Attachment","Remark","Rate","Investigation","Qualification","Attachment","Remark","Rate","Investigation","Qualification","Attachment","Remark","Rate","Investigation","Qualification","Attachment","Remark","Rate","Investigation","Qualification","Attachment","Remark","Rate","Investigation","Qualification","Attachment","Remark",null,"Investigation","Qualification","Attachment","Remark"]
[1,"The facility has an infection control committee",2,null,null,null,null,2,null,null,null,null,2,null,null,null,null,2,null,null,null,null,2,null,null,null,null,2,null,null,null,null,2]
[2,"An infection control practitioner or nurse has been assigned to carry out infection control activities in the facility",1,null,null,null,null,2,null,null,null,null,2,null,null,null,null,2,null,null,null,null,2,null,null,null,null,2,null,null,null,null,2]
[3,"A written facility-specific infection control plan has been developed and is available to staff",1,null,null,null,null,1,null,null,null,null,1,null,null,null,null,1,null,null,null,null,2,null,null,null,null,2,null,null,null,null,2]
[4,"There are funds budgeted specifically for infection control activities (trainings, assessments, maintenance, PPE) at this facility",1,null,null,null,null,1,null,null,null,null,1,null,null,null,null,1,null,null,null,null,2,null,null,null,null,2,null,null,null,null,2]
[5,"TB IC specific education/training was provided in the last year",0,null,null,null,null,0,null,null,null,null,1,null,null,null,null,1,null,null,null,null,2,null,null,null,null,2,null,null,null,null,2]
[6,"In the past year, an assessment of the facility for appropriate ventilation, patient and specimen flow has been performed (to reduce potential risk of airborne infections)",0,null,null,null,null,1,null,null,null,null,1,null,null,null,null,1,null,null,null,null,1,null,null,null,null,2,null,null,null,null,2]
[7,"A system or mechanism to track  all suspected TB cases, referrals, and their sputum specimen results is in place",2,null,null,null,null,2,null,null,null,null,2,null,null,null,null,2,null,null,null,null,2,null,null,null,null,2,null,null,null,null,2]
[8,"There is a facility reporting system for all patients diagnosed with TB in accordance with national policies",2,null,null,null,null,2,null,null,null,null,2,null,null,null,null,2,null,null,null,null,2,null,null,null,null,2,null,null,null,null,2]
[9,"There is a policy regulation is provide N-95 or FFP2, or Class 1 (or higher) respirators to staff who have contact with patients with suspected and confirmed TB and other infectious airborne diseases",1,null,null,null,null,2,null,null,null,null,2,null,null,null,null,2,null,null,null,null,2,null,null,null,null,2,null,null,null,null,2]
[10,"There is policy/regulation/rule to train staff to use respirators annually",1,null,null,null,null,1,null,null,null,null,1,null,null,null,null,1,null,null,null,null,1,null,null,null,null,2,null,null,null,null,2]
[11,"Respirator fit testing to provided to staff initially and annually",0,null,null,null,null,0,null,null,null,null,0,null,null,null,null,0,null,null,null,null,0,null,null,null,null,1,null,null,null,null,1]
[12,"There have been no stock-outs of respirators in the past 3 months",2,null,null,null,null,2,null,null,null,null,2,null,null,null,null,2,null,null,null,null,2,null,null,null,null,2,null,null,null,null,2]
[13,"Staff are screened for TB disease annually",0,null,null,null,null,1,null,null,null,null,1,null,null,null,null,1,null,null,null,null,2,null,null,null,null,2,null,null,null,null,2]
[14,"A log is kept of all staff that are diagnosed with TB disease",0,null,null,null,null,0,null,null,null,null,0,null,null,null,null,0,null,null,null,null,0,null,null,null,null,2,null,null,null,null,2]
[15,"Staff are offered treatment for active TB disease by the staff clinic or are linked to TB treatment services through a formal process",0,null,null,null,null,0,null,null,null,null,0,null,null,null,null,0,null,null,null,null,0,null,null,null,null,2,null,null,null,null,2]
[16,"The facility has regulations in place to minimize the time patients spend in the healthcare facility for TB evaluation and treatment",0,null,null,null,null,0,null,null,null,null,0,null,null,null,null,0,null,null,null,null,0,null,null,null,null,2,null,null,null,null,2]
[null,"The implementation of  all facility-wide indicators",{"$f":"SUM(C4:C19)/(2*(COUNTIF(C4:C19,\"<>NA\")))","v":0.40625},null,null,null,null,{"$f":"SUM(H4:H19)/(2*(COUNTIF(H4:H19,\"<>NA\")))","v":0.53125},null,null,null,null,{"$f":"SUM(M4:M19)/(2*(COUNTIF(M4:M19,\"<>NA\")))","v":0.5625},null,null,null,null,{"$f":"SUM(R4:R19)/(2*(COUNTIF(R4:R19,\"<>NA\")))","v":0.5625},null,null,null,null,{"$f":"SUM(W4:W19)/(2*(COUNTIF(W4:W19,\"<>NA\")))","v":0.6875},null,null,null,null,{"$f":"SUM(AB4:AB19)/(2*(COUNTIF(AB4:AB19,\"<>NA\")))","v":0.96875},null,null,null,null,{"$f":"SUM(AG4:AG19)/(2*(COUNTIF(AG4:AG19,\"<>NA\")))","v":0.96875}]
[null,"Assessor","Assessor Name::",null,null,null,null,"Assessor Name::",null,null,null,null,"Assessor Name::",null,null,null,null,"Assessor Name::",null,null,null,null,"Assessor Name::",null,null,null,null,"Assessor Name::",null,null,null,null,"Assessor Name::"]

{"sheet":"Outpatient department & clinic","index":3,"n_rows":46,"n_cols":282,"rows_kept":46,"cut":false,"hidden":false,"merged":[[3,2,3,6],[3,7,3,11],[3,12,3,16],[3,17,3,21],[3,22,3,26],[3,27,3,31],[3,32,3,36],[3,37,3,41],[3,42,3,46],[3,47,3,51],[3,52,3,56],[3,57,3,61],[3,62,3,66],[3,67,3,71],[3,72,3,76],[3,77,3,81],[3,82,3,86],[3,87,3,91],[3,92,3,96],[3,97,3,101],[3,102,3,106],[3,107,3,111],[3,112,3,116],[3,117,3,121],[3,122,3,126],[3,127,3,131],[3,132,3,136],[3,137,3,141],[3,142,3,146],[3,147,3,151],[3,152,3,156],[3,157,3,161],[3,162,3,166],[3,167,3,171],[3,172,3,176],[3,177,3,181],[3,182,3,186],[3,187,3,191],[3,192,3,196],[3,197,3,201],[3,202,3,206],[3,207,3,211],[3,212,3,216],[3,217,3,221],[3,222,3,226],[3,227,3,231],[3,232,3,236],[3,237,3,241],[3,242,3,246],[3,247,3,251],[3,252,3,256],[3,257,3,261],[3,262,3,266],[3,267,3,271],[3,272,3,276],[3,277,3,281],[45,2,45,6],[45,7,45,11],[45,12,45,16],[45,17,45,21],[45,22,45,26],[45,27,45,31],[45,37,45,41],[45,42,45,46],[45,47,45,51],[45,52,45,56],[45,57,45,61],[45,62,45,66],[45,67,45,71],[45,72,45,76],[45,77,45,81],[45,82,45,86],[45,87,45,91],[45,92,45,96],[45,97,45,101],[45,102,45,106],[45,107,45,111],[45,112,45,116],[45,117,45,121],[45,122,45,126],[45,127,45,131],[45,132,45,136],[45,137,45,141],[45,142,45,146],[45,147,45,151],[45,152,45,156],[45,157,45,161],[45,162,45,166],[45,167,45,171],[45,172,45,176],[45,177,45,181],[45,182,45,186],[45,187,45,191],[45,192,45,196],[45,197,45,201],[45,247,45,251],[45,252,45,256],[45,257,45,261],[45,262,45,266],[45,267,45,271],[45,272,45,276],[45,277,45,281],[45,202,45,206],[45,207,45,211],[45,212,45,216],[45,217,45,221],[45,222,45,226],[45,227,45,231],[45,232,45,236],[45,237,45,241],[45,242,45,246]]}
[null,"Date viewing mode"]
[null,"Outpatient area","1. Outpatient",null,null,null,null,null,null,null,null,null,null,null,null,null,null,null,null,null,null,null,null,null,null,null,null,null,null,null,null,null,null,null,null,null,null,"2. Internal Medicine 1",null,null,null,null,null,null,null,null,null,null,null,null,null,null,null,null,null,null,null,null,null,null,null,null,null,null,null,null,null,null,null,null,null,null,"3. Internal Medicine 2",null,null,null,null,null,null,null,null,null,"3. Internal Medicine 2",null,null,null,null,null,null,null,null,null,null,null,null,null,null,null,null,null,null,null,null,null,null,null,null,"4. Respiratory Medicine"]
[null,"Assessment phase","Basic",null,null,null,null,"3 months",null,null,null,null,"6 months",null,null,null,null,"9 months",null,null,null,null,"12 months",null,null,null,null,"15 months",null,null,null,null,"18 months",null,null,null,null,"Basic",null,null,null,null,"3 months",null,null,null,null,"6 months",null,null,null,null,"9 months",null,null,null,null,"12 months",null,null,null,null,"15 months",null,null,null,null,"18 months",null,null,null,null,"Basic",null,null,null,null,"3 months",null,null,null,null,"6 months",null,null,null,null,"9 months",null,null,null,null,"12 months",null,null,null,null,"15 months",null,null,null,null,"18 months",null,null,null,null,"Basic",null,null,null,null,"3 months",null,null,null,null,"6 months",null,null,null,null,"9 months",null,null,null,null,"12 months",null,null,null,null,"15 months",null,null,null,null,"18 months",null,null,null,null,"Basic",null,null,null,null,"3 months",null,null,null,null,"6 months",null,null,null,null,"9 months",null,null,null,null,"12 months",null,null,null,null,"15 months",null,null,null,null,"18 months",null,null,null,null,"Basic",null,null,null,null,"3 months",null,null,null,null,"6 months",null,null,null,null,"9 months",null,null,null,null,"12 months",null,null,null,null,"15 months",null,null,null,null,"18 months",null,null,null,null,"Basic",null,null,null,null,"3 months",null,null,null,null,"6 months",null,null,null,null,"9 months",null,null,null,null,"12 months",null,null,null,null,"15 months",null,null,null,null,"18 months",null,null,null,null,"Basic",null,null,null,null,"3 months",null,null,null,null,"6 months",null,null,null,null,"9 months",null,null,null,null,"12 months",null,null,null,null,"15 months",null,null,null,null,"18 months"]
[null,"Date of assessment","Date",null,null,null,null,"Date",null,null,null,null,"Date",null,null,null,null,"Date",null,null,null,null,"Date",null,null,null,null,"Date",null,null,null,null,"Date",null,null,null,null,"Date",null,null,null,null,"Date",null,null,null,null,"Date",null,null,null,null,"Date",null,null,null,null,"Date",null,null,null,null,"Date",null,null,null,null,"Date",null,null,null,null,"Date",null,null,null,null,"Date",null,null,null,null,"Date",null,null,null,null,"Date",null,null,null,null,"Date",null,null,null,null,"Date",null,null,null,null,"Date",null,null,null,null,"Date",null,null,null,null,"Date",null,null,null,null,"Date",null,null,null,null,"Date",null,null,null,null,"Date",null,null,null,null,"Date",null,null,null,null,"Date",null,null,null,null,"Date",null,null,null,null,"Date",null,null,null,null,"Date",null,null,null,null,"Date",null,null,null,null,"Date",null,null,null,null,"Date",null,null,null,null,"Date",null,null,null,null,"Date",null,null,null,null,"Date",null,null,null,null,"Date",null,null,null,null,"Date",null,null,null,null,"Date",null,null,null,null,"Date",null,null,null,null,"Date",null,null,null,null,"Date",null,null,null,null,"Date",null,null,null,null,"Date",null,null,null,null,"Date",null,null,null,null,"Date",null,null,null,null,"Date",null,null,null,null,"Date",null,null,null,null,"Date",null,null,null,null,"Date",null,null,null,null,"Date",null,null,null,null,"Date",null,null,null,null,"Date",null,null,null,null,"Date",null,null,null,null,"Date"]
[null,"Administrative controls indicators","Rate","Investigation","Qualification","Attachment","Remark","Rate","Investigation","Qualification","Attachment","Remark","Rate","Investigation","Qualification","Attachment","Remark","Rate","Investigation","Qualification","Attachment","Remark","Rate","Investigation","Qualification","Attachment","Remark","Rate","Investigation","Qualification","Attachment","Remark",null,"Investigation","Qualification","Attachment","Remark","Rate","Investigation","Qualification","Attachment","Remark","Rate","Investigation","Qualification","Attachment","Remark","Rate","Investigation","Qualification","Attachment","Remark","Rate","Investigation","Qualification","Attachment","Remark","Rate","Investigation","Qualification","Attachment","Remark","Rate","Investigation","Qualification","Attachment","Remark","Rate","Investigation","Qualification","Attachment","Remark","Rate","Investigation","Qualification","Attachment","Remark","Rate","Investigation","Qualification","Attachment","Remark","Rate","Investigation","Qualification","Attachment","Remark","Rate","Investigation","Qualification","Attachment","Remark","Rate","Investigation","Qualification","Attachment","Remark",null,"Investigation","Qualification","Attachment","Remark","Rate","Investigation","Qualification","Attachment","Remark","Rate","Investigation","Qualification","Attachment","Remark","Rate","Investigation","Qualification","Attachment","Remark","Rate","Investigation","Qualification","Attachment","Remark","Rate","Investigation","Qualification","Attachment","Remark","Rate","Investigation","Qualification","Attachment","Remark","Rate","Investigation","Qualification","Attachment","Remark","Rate","Investigation","Qualification","Attachment","Remark","Rate","Investigation","Qualification","Attachment","Remark","Rate","Investigation","Qualification","Attachment","Remark","Rate","Investigation","Qualification","Attachment","Remark","Rate","Investigation","Qualification","Attachment","Remark",null,"Investigation","Qualification","Attachment","Remark","Rate","Investigation","Qualification","Attachment","Remark","Rate","Investigation","Qualification","Attachment","Remark","Rate","Investigation","Qualification","Attachment","Remark","Rate","Investigation","Qualification","Attachment","Remark","Rate","Investigation","Qualification","Attachment","Remark","Rate","Investigation","Qualification","Attachment","Remark","Rate","Investigation","Qualification","Attachment","Remark","Rate","Investigation","Qualification","Attachment","Remark","Rate","Investigation","Qualification","Attachment","Remark","Rate","Investigation","Qualification","Attachment","Remark","Rate","Investigation","Qualification","Attachment","Remark","Rate","Investigation","Qualification","Attachment","Remark",null,"Investigation","Qualification","Attachment","Remark","Rate","Investigation","Qualification","Attachment","Remark","Rate","Investigation","Qualification","Attachment","Remark","Rate","Investigation","Qualification","Attachment","Remark","Rate","Investigation","Qualification","Attachment","Remark","Rate","Investigation","Qualification","Attachment","Remark","Rate","Investigation","Qualification","Attachment","Remark","Rate","Investigation","Qualification","Attachment","Remark","Rate","Investigation","Qualification","Attachment","Remark","Rate","Investigation","Qualification","Attachment","Remark","Rate","Investigation","Qualification","Attachment","Remark"]
[1,"Patients are routinely asked about cough upon entering the department (e.g. at registration or admission)",2,null,null,null,null,2,null,null,null,null,2,null,null,null,null,2,null,null,null,null,2,null,null,null,null,2,null,null,null,null,2,null,null,null,null,2,null,null,null,null,2,null,null,null,null,2,null,null,null,null,2,null,null,null,null,2,null,null,null,null,2,null,null,null,null,2,null,null,null,null,2,null,null,null,null,2,null,null,null,null,2,null,null,null,null,2,null,null,null,null,2,null,null,null,null,2,null,null,null,null,2,null,null,null,null,2,null,null,null,null,2,null,null,null,null,2,null,null,null,null,2,null,null,null,null,2,null,null,null,null,2,null,null,null,null,2,null,null,null,null,null,null,null,null,null,null,null,null,null,null,null,null,null,null,null,null,null,null,null,null,null,null,null,null,null,null,null,null,null,null,null,null,null,null,null,null,null,null,null,null,null,null,null,null,null,null,null,null,null,null,null,null,null,null,null,null,null,null,null,null,null,null,null,null,null,null,null,null,null,null,2,null,null,null,null,2,null,null,null,null,2,null,null,null,null,2,null,null,null,null,2,null,null,null,null,2,null,null,null,null,2]
[2,"Patients receive guidance and education on cough etiquette",0,null,null,null,null,1,null,null,null,null,1,null,null,null,null,1,null,null,null,null,1,null,null,null,null,1,null,null,null,null,1,null,null,null,null,0,null,null,null,null,1,null,null,null,null,1,null,null,null,null,1,null,null,null,null,1,null,null,null,null,1,null,null,null,null,2,null,null,null,null,0,null,null,null,null,1,null,null,null,null,1,null,null,null,null,1,null,null,null,null,1,null,null,null,null,1,null,null,null,null,2,null,null,null,null,0,null,null,null,null,1,null,null,null,null,1,null,null,null,null,1,null,null,null,null,1,null,null,null,null,2,null,null,null,null,2,null,null,null,null,null,null,null,null,null,null,null,null,null,null,null,null,null,null,null,null,null,null,null,null,null,null,null,null,null,null,null,null,null,null,null,null,null,null,null,null,null,null,null,null,null,null,null,null,null,null,null,null,null,null,null,null,null,null,null,null,null,null,null,null,null,null,null,null,null,null,null,null,null,null,0,null,null,null,null,1,null,null,null,null,1,null,null,null,null,1,null,null,null,null,1,null,null,null,null,2,null,null,null,null,2]
[3,"A “cough monitor” assists with triage/gives cough etiquette guidance",0,null,null,null,null,0,null,null,null,null,1,null,null,null,null,1,null,null,null,null,1,null,null,null,null,1,null,null,null,null,1,null,null,null,null,0,null,null,null,null,0,null,null,null,null,1,null,null,null,null,1,null,null,null,null,1,null,null,null,null,1,null,null,null,null,2,null,null,null,null,0,null,null,null,null,0,null,null,null,null,0,null,null,null,null,1,null,null,null,null,1,null,null,null,null,1,null,null,null,null,2,null,null,null,null,0,null,null,null,null,0,null,null,null,null,1,null,null,null,null,1,null,null,null,null,1,null,null,null,null,2,null,null,null,null,2,null,null,null,null,null,null,null,null,null,null,null,null,null,null,null,null,null,null,null,null,null,null,null,null,null,null,null,null,null,null,null,null,null,null,null,null,null,null,null,null,null,null,null,null,null,null,null,null,null,null,null,null,null,null,null,null,null,null,null,null,null,null,null,null,null,null,null,null,null,null,null,null,null,null,0,null,null,null,null,0,null,null,null,null,1,null,null,null,null,1,null,null,null,null,1,null,null,null,null,2,null,null,null,null,2]
[4,"Patients with cough or other symptoms of TB are promptly separated from others",0,null,null,null,null,0,null,null,null,null,0,null,null,null,null,1,null,null,null,null,1,null,null,null,null,1,null,null,null,null,1,null,null,null,null,0,null,null,null,null,0,null,null,null,null,0,null,null,null,null,1,null,null,null,null,1,null,null,null,null,1,null,null,null,null,1,null,null,null,null,0,null,null,null,null,0,null,null,null,null,0,null,null,null,null,0,null,null,null,null,0,null,null,null,null,1,null,null,null,null,1,null,null,null,null,0,null,null,null,null,1,null,null,null,null,1,null,null,null,null,1,null,null,null,null,1,null,null,null,null,2,null,null,null,null,2,null,null,null,null,null,null,null,null,null,null,null,null,null,null,null,null,null,null,null,null,null,null,null,null,null,null,null,null,null,null,null,null,null,null,null,null,null,null,null,null,null,null,null,null,null,null,null,null,null,null,null,null,null,null,null,null,null,null,null,null,null,null,null,null,null,null,null,null,null,null,null,null,null,null,0,null,null,null,null,1,null,null,null,null,1,null,null,null,null,1,null,null,null,null,1,null,null,null,null,2,null,null,null,null,2]
[5,"Patients with cough or other symptoms of TB are “fast tracked” to a care giver or other clinical services",2,null,null,null,null,2,null,null,null,null,2,null,null,null,null,2,null,null,null,null,2,null,null,null,null,2,null,null,null,null,2,null,null,null,null,2,null,null,null,null,2,null,null,null,null,2,null,null,null,null,2,null,null,null,null,2,null,null,null,null,2,null,null,null,null,2,null,null,null,null,2,null,null,null,null,2,null,null,null,null,2,null,null,null,null,2,null,null,null,null,2,null,null,null,null,2,null,null,null,null,2,null,null,null,null,2,null,null,null,null,2,null,null,null,null,2,null,null,null,null,2,null,null,null,null,2,null,null,null,null,2,null,null,null,null,2,null,null,null,null,null,null,null,null,null,null,null,null,null,null,null,null,null,null,null,null,null,null,null,null,null,null,null,null,null,null,null,null,null,null,null,null,null,null,null,null,null,null,null,null,null,null,null,null,null,null,null,null,null,null,null,null,null,null,null,null,null,null,null,null,null,null,null,null,null,null,null,null,null,null,2,null,null,null,null,2,null,null,null,null,2,null,null,null,null,2,null,null,null,null,2,null,null,null,null,2,null,null,null,null,2]
[6,"Signage for cough etiquette is present",1,null,null,null,null,1,null,null,null,null,1,null,null,null,null,1,null,null,null,null,1,null,null,null,null,1,null,null,null,null,1,null,null,null,null,1,null,null,null,null,1,null,null,null,null,1,null,null,null,null,1,null,null,null,null,1,null,null,null,null,1,null,null,null,null,2,null,null,null,null,1,null,null,null,null,1,null,null,null,null,1,null,null,null,null,1,null,null,null,null,1,null,null,null,null,1,null,null,null,null,2,null,null,null,null,1,null,null,null,null,1,null,null,null,null,1,null,null,null,null,1,null,null,null,null,1,null,null,null,null,2,null,null,null,null,2,null,null,null,null,null,null,null,null,null,null,null,null,null,null,null,null,null,null,null,null,null,null,null,null,null,null,null,null,null,null,null,null,null,null,null,null,null,null,null,null,null,null,null,null,null,null,null,null,null,null,null,null,null,null,null,null,null,null,null,null,null,null,null,null,null,null,null,null,null,null,null,null,null,null,1,null,null,null,null,1,null,null,null,null,1,null,null,null,null,1,null,null,null,null,1,null,null,null,null,2,null,null,null,null,2]
[7,"Supplies are available for coughing patients (tissues, masks, cloths, trash bins, etc.)",2,null,null,null,null,2,null,null,null,null,2,null,null,null,null,2,null,null,null,null,2,null,null,null,null,2,null,null,null,null,2,null,null,null,null,2,null,null,null,null,2,null,null,null,null,2,null,null,null,null,2,null,null,null,null,2,null,null,null,null,2,null,null,null,null,2,null,null,null,null,2,null,null,null,null,2,null,null,null,null,2,null,null,null,null,2,null,null,null,null,2,null,null,null,null,2,null,null,null,null,2,null,null,null,null,2,null,null,null,null,2,null,null,null,null,2,null,null,null,null,2,null,null,null,null,2,null,null,null,null,2,null,null,null,null,2,null,null,null,null,null,null,null,null,null,null,null,null,null,null,null,null,null,null,null,null,null,null,null,null,null,null,null,null,null,null,null,null,null,null,null,null,null,null,null,null,null,null,null,null,null,null,null,null,null,null,null,null,null,null,null,null,null,null,null,null,null,null,null,null,null,null,null,null,null,null,null,null,null,null,2,null,null,null,null,2,null,null,null,null,2,null,null,null,null,2,null,null,null,null,2,null,null,null,null,2,null,null,null,null,2]
[8,"Sputum samples are collected in a designated area with good ventilation  away from others",0,null,null,null,null,1,null,null,null,null,1,null,null,null,null,1,null,null,null,null,1,null,null,null,null,1,null,null,null,null,1,null,null,null,null,0,null,null,null,null,1,null,null,null,null,1,null,null,null,null,1,null,null,null,null,1,null,null,null,null,1,null,null,null,null,1,null,null,null,null,0,null,null,null,null,0,null,null,null,null,0,null,null,null,null,0,null,null,null,null,0,null,null,null,null,1,null,null,null,null,1,null,null,null,null,0,null,null,null,null,1,null,null,null,null,1,null,null,null,null,1,null,null,null,null,1,null,null,null,null,2,null,null,null,null,2,null,null,null,null,null,null,null,null,null,null,null,null,null,null,null,null,null,null,null,null,null,null,null,null,null,null,null,null,null,null,null,null,null,null,null,null,null,null,null,null,null,null,null,null,null,null,null,null,null,null,null,null,null,null,null,null,null,null,null,null,null,null,null,null,null,null,null,null,null,null,null,null,null,null,0,null,null,null,null,1,null,null,null,null,1,null,null,null,null,1,null,null,null,null,1,null,null,null,null,1,null,null,null,null,1]
[9," Sputum smear results are received within 24 hours (the time between sputum collection and sending the test result to the doctor)",2,null,null,null,null,2,null,null,null,null,2,null,null,null,null,2,null,null,null,null,2,null,null,null,null,2,null,null,null,null,2,null,null,null,null,2,null,null,null,null,2,null,null,null,null,2,null,null,null,null,2,null,null,null,null,2,null,null,null,null,2,null,null,null,null,2,null,null,null,null,2,null,null,null,null,2,null,null,null,null,2,null,null,null,null,2,null,null,null,null,2,null,null,null,null,2,null,null,null,null,2,null,null,null,null,2,null,null,null,null,2,null,null,null,null,2,null,null,null,null,2,null,null,null,null,2,null,null,null,null,2,null,null,null,null,2,null,null,null,null,null,null,null,null,null,null,null,null,null,null,null,null,null,null,null,null,null,null,null,null,null,null,null,null,null,null,null,null,null,null,null,null,null,null,null,null,null,null,null,null,null,null,null,null,null,null,null,null,null,null,null,null,null,null,null,null,null,null,null,null,null,null,null,null,null,null,null,null,null,null,2,null,null,null,null,2,null,null,null,null,2,null,null,null,null,2,null,null,null,null,2,null,null,null,null,2,null,null,null,null,2]
[10,"Xpert MTB/RIF results are received within 24 hours (the time between sputum collection and receiving the test result)","NA",null,null,null,null,"NA",null,null,null,null,"NA",null,null,null,null,"NA",null,null,null,null,"NA",null,null,null,null,"NA",null,null,null,null,"NA",null,null,null,null,"NA",null,null,null,null,"NA",null,null,null,null,"NA",null,null,null,null,"NA",null,null,null,null,"NA",null,null,null,null,"NA",null,null,null,null,"NA",null,null,null,null,"NA",null,null,null,null,"NA",null,null,null,null,"NA",null,null,null,null,"NA",null,null,null,null,"NA",null,null,null,null,"NA",null,null,null,null,"NA",null,null,null,null,"NA",null,null,null,null,"NA",null,null,null,null,"NA",null,null,null,null,"NA",null,null,null,null,"NA",null,null,null,null,"NA",null,null,null,null,"NA",null,null,null,null,null,null,null,null,null,null,null,null,null,null,null,null,null,null,null,null,null,null,null,null,null,null,null,null,null,null,null,null,null,null,null,null,null,null,null,null,null,null,null,null,null,null,null,null,null,null,null,null,null,null,null,null,null,null,null,null,null,null,null,null,null,null,null,null,null,null,null,null,null,null,"NA",null,null,null,null,"NA",null,null,null,null,"NA",null,null,null,null,"NA",null,null,null,null,"NA",null,null,null,null,"NA",null,null,null,null,"NA"]
[11,"TB treatment is started within 24 hours of when lab results are received, or the treatment regimen was adjusted within 24 hours of when lab results are received",2,null,null,null,null,2,null,null,null,null,2,null,null,null,null,2,null,null,null,null,2,null,null,null,null,2,null,null,null,null,2,null,null,null,null,2,null,null,null,null,2,null,null,null,null,2,null,null,null,null,2,null,null,null,null,2,null,null,null,null,2,null,null,null,null,2,null,null,null,null,2,null,null,null,null,2,null,null,null,null,2,null,null,null,null,2,null,null,null,null,2,null,null,null,null,2,null,null,null,null,2,null,null,null,null,2,null,null,null,null,2,null,null,null,null,2,null,null,null,null,2,null,null,null,null,2,null,null,null,null,2,null,null,null,null,2,null,null,null,null,null,null,null,null,null,null,null,null,null,null,null,null,null,null,null,null,null,null,null,null,null,null,null,null,null,null,null,null,null,null,null,null,null,null,null,null,null,null,null,null,null,null,null,null,null,null,null,null,null,null,null,null,null,null,null,null,null,null,null,null,null,null,null,null,null,null,null,null,null,null,2,null,null,null,null,2,null,null,null,null,2,null,null,null,null,2,null,null,null,null,2,null,null,null,null,2,null,null,null,null,2]
[12,"Drug resistance testing is performed in persons with suspected drug-resistant TB  (five categories as defined by China NTP: 1. Chronic infectious patients /patients with failed treatment; 2. Smear positive patients also have close contact with MDR-TB patients; 3. Patients failed initial treatment; 4. Recurrent patients and patients who return for treatment; 5. New cases stay smear positive at the end of three months treatment)",2,null,null,null,null,2,null,null,null,null,2,null,null,null,null,2,null,null,null,null,2,null,null,null,null,2,null,null,null,null,2,null,null,null,null,2,null,null,null,null,2,null,null,null,null,2,null,null,null,null,2,null,null,null,null,2,null,null,null,null,2,null,null,null,null,2,null,null,null,null,2,null,null,null,null,2,null,null,null,null,2,null,null,null,null,2,null,null,null,null,2,null,null,null,null,2,null,null,null,null,2,null,null,null,null,2,null,null,null,null,2,null,null,null,null,2,null,null,null,null,2,null,null,null,null,2,null,null,null,null,2,null,null,null,null,2,null,null,null,null,null,null,null,null,null,null,null,null,null,null,null,null,null,null,null,null,null,null,null,null,null,null,null,null,null,null,null,null,null,null,null,null,null,null,null,null,null,null,null,null,null,null,null,null,null,null,null,null,null,null,null,null,null,null,null,null,null,null,null,null,null,null,null,null,null,null,null,null,null,null,2,null,null,null,null,2,null,null,null,null,2,null,null,null,null,2,null,null,null,null,2,null,null,null,null,2,null,null,null,null,2]
[13,"Patients with suspected TB are separated from other patients",0,null,null,null,null,0,null,null,null,null,0,null,null,null,null,0,null,null,null,null,0,null,null,null,null,1,null,null,null,null,2,null,null,null,null,0,null,null,null,null,0,null,null,null,null,0,null,null,null,null,1,null,null,null,null,1,null,null,null,null,1,null,null,null,null,1,null,null,null,null,0,null,null,null,null,0,null,null,null,null,0,null,null,null,null,1,null,null,null,null,1,null,null,null,null,1,null,null,null,null,1,null,null,null,null,0,null,null,null,null,0,null,null,null,null,0,null,null,null,null,1,null,null,null,null,1,null,null,null,null,2,null,null,null,null,2,null,null,null,null,null,null,null,null,null,null,null,null,null,null,null,null,null,null,null,null,null,null,null,null,null,null,null,null,null,null,null,null,null,null,null,null,null,null,null,null,null,null,null,null,null,null,null,null,null,null,null,null,null,null,null,null,null,null,null,null,null,null,null,null,null,null,null,null,null,null,null,null,null,null,0,null,null,null,null,0,null,null,null,null,0,null,null,null,null,1,null,null,null,null,1,null,null,null,null,2,null,null,null,null,2]
[14,"Diagnosed TB patients are separated from other patients",0,null,null,null,null,0,null,null,null,null,0,null,null,null,null,0,null,null,null,null,0,null,null,null,null,1,null,null,null,null,2,null,null,null,null,0,null,null,null,null,0,null,null,null,null,1,null,null,null,null,1,null,null,null,null,1,null,null,null,null,1,null,null,null,null,1,null,null,null,null,0,null,null,null,null,0,null,null,null,null,0,null,null,null,null,1,null,null,null,null,1,null,null,null,null,1,null,null,null,null,1,null,null,null,null,0,null,null,null,null,0,null,null,null,null,1,null,null,null,null,1,null,null,null,null,1,null,null,null,null,2,null,null,null,null,2,null,null,null,null,null,null,null,null,null,null,null,null,null,null,null,null,null,null,null,null,null,null,null,null,null,null,null,null,null,null,null,null,null,null,null,null,null,null,null,null,null,null,null,null,null,null,null,null,null,null,null,null,null,null,null,null,null,null,null,null,null,null,null,null,null,null,null,null,null,null,null,null,null,null,0,null,null,null,null,0,null,null,null,null,1,null,null,null,null,1,null,null,null,null,1,null,null,null,null,2,null,null,null,null,2]
[15,"Patients with suspected drug-resistant TB are separated from other patients (five categories of suspected drug-resistant TB as defined by China NTP: 1. Chronic infectious patients /patients with failed treatment; 2. Smear positive patients also has close contact with MDR-TB patients; 3. Patients failed initial treatment; 4. Recurrent patients and patients who return for treatment; 5. New cases stay smear positive at the end of three months treatment)",0,null,null,null,null,0,null,null,null,null,0,null,null,null,null,0,null,null,null,null,0,null,null,null,null,0,null,null,null,null,2,null,null,null,null,0,null,null,null,null,0,null,null,null,null,0,null,null,null,null,1,null,null,null,null,1,null,null,null,null,1,null,null,null,null,1,null,null,null,null,0,null,null,null,null,0,null,null,null,null,0,null,null,null,null,1,null,null,null,null,1,null,null,null,null,1,null,null,null,null,1,null,null,null,null,0,null,null,null,null,0,null,null,null,null,1,null,null,null,null,1,null,null,null,null,1,null,null,null,null,2,null,null,null,null,2,null,null,null,null,null,null,null,null,null,null,null,null,null,null,null,null,null,null,null,null,null,null,null,null,null,null,null,null,null,null,null,null,null,null,null,null,null,null,null,null,null,null,null,null,null,null,null,null,null,null,null,null,null,null,null,null,null,null,null,null,null,null,null,null,null,null,null,null,null,null,null,null,null,null,0,null,null,null,null,0,null,null,null,null,1,null,null,null,null,1,null,null,null,null,1,null,null,null,null,2,null,null,null,null,2]
[16,"Diagnosed DR-TB patients are separated from other patients",1,null,null,null,null,1,null,null,null,null,1,null,null,null,null,1,null,null,null,null,1,null,null,null,null,1,null,null,null,null,1,null,null,null,null,1,null,null,null,null,1,null,null,null,null,1,null,null,null,null,1,null,null,null,null,1,null,null,null,null,1,null,null,null,null,1,null,null,null,null,1,null,null,null,null,1,null,null,null,null,1,null,null,null,null,1,null,null,null,null,1,null,null,null,null,1,null,null,null,null,1,null,null,null,null,1,null,null,null,null,1,null,null,null,null,1,null,null,null,null,1,null,null,null,null,1,null,null,null,null,2,null,null,null,null,2,null,null,null,null,null,null,null,null,null,null,null,null,null,null,null,null,null,null,null,null,null,null,null,null,null,null,null,null,null,null,null,null,null,null,null,null,null,null,null,null,null,null,null,null,null,null,null,null,null,null,null,null,null,null,null,null,null,null,null,null,null,null,null,null,null,null,null,null,null,null,null,null,null,null,1,null,null,null,null,1,null,null,null,null,1,null,null,null,null,1,null,null,null,null,1,null,null,null,null,2,null,null,null,null,2]
[17,"Patients with immunocompromising conditions (e.g. diabetes, HIV, etc.) are separated from patients with suspected and confirmed TB",0,null,null,null,null,0,null,null,null,null,0,null,null,null,null,0,null,null,null,null,0,null,null,null,null,0,null,null,null,null,1,null,null,null,null,0,null,null,null,null,0,null,null,null,null,0,null,null,null,null,0,null,null,null,null,1,null,null,null,null,1,null,null,null,null,1,null,null,null,null,0,null,null,null,null,0,null,null,null,null,0,null,null,null,null,0,null,null,null,null,0,null,null,null,null,1,null,null,null,null,1,null,null,null,null,0,null,null,null,null,0,null,null,null,null,0,null,null,null,null,0,null,null,null,null,0,null,null,null,null,2,null,null,null,null,2,null,null,null,null,null,null,null,null,null,null,null,null,null,null,null,null,null,null,null,null,null,null,null,null,null,null,null,null,null,null,null,null,null,null,null,null,null,null,null,null,null,null,null,null,null,null,null,null,null,null,null,null,null,null,null,null,null,null,null,null,null,null,null,null,null,null,null,null,null,null,null,null,null,null,0,null,null,null,null,0,null,null,null,null,0,null,null,null,null,0,null,null,null,null,0,null,null,null,null,2,null,null,null,null,2]
[18,"There is a formal system for linking patients diagnosed with TB in the inpatient setting to outpatient care for follow-up (or to TB/DOT clinic for follow-up)",2,null,null,null,null,2,null,null,null,null,2,null,null,null,null,2,null,null,null,null,2,null,null,null,null,2,null,null,null,null,2,null,null,null,null,2,null,null,null,null,2,null,null,null,null,2,null,null,null,null,2,null,null,null,null,2,null,null,null,null,2,null,null,null,null,2,null,null,null,null,2,null,null,null,null,2,null,null,null,null,2,null,null,null,null,2,null,null,null,null,2,null,null,null,null,2,null,null,null,null,2,null,null,null,null,2,null,null,null,null,2,null,null,null,null,2,null,null,null,null,2,null,null,null,null,2,null,null,null,null,2,null,null,null,null,2,null,null,null,null,null,null,null,null,null,null,null,null,null,null,null,null,null,null,null,null,null,null,null,null,null,null,null,null,null,null,null,null,null,null,null,null,null,null,null,null,null,null,null,null,null,null,null,null,null,null,null,null,null,null,null,null,null,null,null,null,null,null,null,null,null,null,null,null,null,null,null,null,null,null,2,null,null,null,null,2,null,null,null,null,2,null,null,null,null,2,null,null,null,null,2,null,null,null,null,2,null,null,null,null,2]
[null,"The implementation of administrative controls indicators",{"$f":"SUM(C6:C23)/(2*(COUNTIF(C6:C23,\"<>NA\")))","v":0.47058823529411764},null,null,null,null,{"$f":"SUM(H6:H23)/(2*(COUNTIF(H6:H23,\"<>NA\")))","v":0.52941176470588236},null,null,null,null,{"$f":"SUM(M6:M23)/(2*(COUNTIF(M6:M23,\"<>NA\")))","v":0.55882352941176472},null,null,null,null,{"$f":"SUM(R6:R23)/(2*(COUNTIF(R6:R23,\"<>NA\")))","v":0.58823529411764708},null,null,null,null,{"$f":"SUM(W6:W23)/(2*(COUNTIF(W6:W23,\"<>NA\")))","v":0.58823529411764708},null,null,null,null,{"$f":"SUM(AB6:AB23)/(2*(COUNTIF(AB6:AB23,\"<>NA\")))","v":0.6470588235294118},null,null,null,null,{"$f":"SUM(AG6:AG23)/(2*(COUNTIF(AG6:AG23,\"<>NA\")))","v":0.79411764705882348},null,null,null,null,{"$f":"SUM(AL6:AL23)/(2*(COUNTIF(AL6:AL23,\"<>NA\")))","v":0.47058823529411764},null,null,null,null,{"$f":"SUM(AQ6:AQ23)/(2*(COUNTIF(AQ6:AQ23,\"<>NA\")))","v":0.52941176470588236},null,null,null,null,{"$f":"SUM(AV6:AV23)/(2*(COUNTIF(AV6:AV23,\"<>NA\")))","v":0.58823529411764708},null,null,null,null,{"$f":"SUM(BA6:BA23)/(2*(COUNTIF(BA6:BA23,\"<>NA\")))","v":0.67647058823529416},null,null,null,null,{"$f":"SUM(BF6:BF23)/(2*(COUNTIF(BF6:BF23,\"<>NA\")))","v":0.70588235294117652},null,null,null,null,{"$f":"SUM(BK6:BK23)/(2*(COUNTIF(BK6:BK23,\"<>NA\")))","v":0.70588235294117652},null,null,null,null,{"$f":"SUM(BP6:BP23)/(2*(COUNTIF(BP6:BP23,\"<>NA\")))","v":0.79411764705882348},null,null,null,null,{"$f":"SUM(BU6:BU23)/(2*(COUNTIF(BU6:BU23,\"<>NA\")))","v":0.47058823529411764},null,null,null,null,{"$f":"SUM(BZ6:BZ23)/(2*(COUNTIF(BZ6:BZ23,\"<>NA\")))","v":0.5},null,null,null,null,{"$f":"SUM(CE6:CE23)/(2*(COUNTIF(CE6:CE23,\"<>NA\")))","v":0.5},null,null,null,null,{"$f":"SUM(CJ6:CJ23)/(2*(COUNTIF(CJ6:CJ23,\"<>NA\")))","v":0.61764705882352944},null,null,null,null,{"$f":"SUM(CO6:CO23)/(2*(COUNTIF(CO6:CO23,\"<>NA\")))","v":0.61764705882352944},null,null,null,null,{"$f":"SUM(CT6:CT23)/(2*(COUNTIF(CT6:CT23,\"<>NA\")))","v":0.70588235294117652},null,null,null,null,{"$f":"SUM(CY6:CY23)/(2*(COUNTIF(CY6:CY23,\"<>NA\")))","v":0.79411764705882348},null,null,null,null,{"$f":"SUM(DD6:DD23)/(2*(COUNTIF(DD6:DD23,\"<>NA\")))","v":0.47058823529411764},null,null,null,null,{"$f":"SUM(DI6:DI23)/(2*(COUNTIF(DI6:DI23,\"<>NA\")))","v":0.55882352941176472},null,null,null,null,{"$f":"SUM(DN6:DN23)/(2*(COUNTIF(DN6:DN23,\"<>NA\")))","v":0.6470588235294118},null,null,null,null,{"$f":"SUM(DS6:DS23)/(2*(COUNTIF(DS6:DS23,\"<>NA\")))","v":0.67647058823529416},null,null,null,null,{"$f":"SUM(DX6:DX23)/(2*(COUNTIF(DX6:DX23,\"<>NA\")))","v":0.67647058823529416},null,null,null,null,{"$f":"SUM(EC6:EC23)/(2*(COUNTIF(EC6:EC23,\"<>NA\")))","v":1},null,null,null,null,{"$f":"SUM(EH6:EH23)/(2*(COUNTIF(EH6:EH23,\"<>NA\")))","v":1},null,null,null,null,{"$f":"SUM(EM6:EM23)/(2*(COUNTIF(EM6:EM23,\"<>NA\")))","v":0},null,null,null,null,{"$f":"SUM(ER6:ER23)/(2*(COUNTIF(ER6:ER23,\"<>NA\")))","v":0},null,null,null,null,{"$f":"SUM(EW6:EW23)/(2*(COUNTIF(EW6:EW23,\"<>NA\")))","v":0},null,null,null,null,{"$f":"SUM(FB6:FB23)/(2*(COUNTIF(FB6:FB23,\"<>NA\")))","v":0},null,null,null,null,{"$f":"SUM(FG6:FG23)/(2*(COUNTIF(FG6:FG23,\"<>NA\")))","v":0},null,null,null,null,{"$f":"SUM(FL6:FL23)/(2*(COUNTIF(FL6:FL23,\"<>NA\")))","v":0},null,null,null,null,{"$f":"SUM(FQ6:FQ23)/(2*(COUNTIF(FQ6:FQ23,\"<>NA\")))","v":0},null,null,null,null,{"$f":"SUM(FV6:FV23)/(2*(COUNTIF(FV6:FV23,\"<>NA\")))","v":0},null,null,null,null,{"$f":"SUM(GA6:GA23)/(2*(COUNTIF(GA6:GA23,\"<>NA\")))","v":0},null,null,null,null,{"$f":"SUM(GF6:GF23)/(2*(COUNTIF(GF6:GF23,\"<>NA\")))","v":0},null,null,null,null,{"$f":"SUM(GK6:GK23)/(2*(COUNTIF(GK6:GK23,\"<>NA\")))","v":0},null,null,null,null,{"$f":"SUM(GP6:GP23)/(2*(COUNTIF(GP6:GP23,\"<>NA\")))","v":0},null,null,null,null,{"$f":"SUM(GU6:GU23)/(2*(COUNTIF(GU6:GU23,\"<>NA\")))","v":0},null,null,null,null,{"$f":"SUM(GZ6:GZ23)/(2*(COUNTIF(GZ6:GZ23,\"<>NA\")))","v":0},null,null,null,null,{"$f":"SUM(HE6:HE23)/(2*(COUNTIF(HE6:HE23,\"<>NA\")))","v":0.47058823529411764},null,null,null,null,{"$f":"SUM(HJ6:HJ23)/(2*(COUNTIF(HJ6:HJ23,\"<>NA\")))","v":0.55882352941176472},null,null,null,null,{"$f":"SUM(HO6:HO23)/(2*(COUNTIF(HO6:HO23,\"<>NA\")))","v":0.6470588235294118},null,null,null,null,{"$f":"SUM(HT6:HT23)/(2*(COUNTIF(HT6:HT23,\"<>NA\")))","v":0.67647058823529416},null,null,null,null,{"$f":"SUM(HY6:HY23)/(2*(COUNTIF(HY6:HY23,\"<>NA\")))","v":0.67647058823529416},null,null,null,null,{"$f":"SUM(ID6:ID23)/(2*(COUNTIF(ID6:ID23,\"<>NA\")))","v":0.97058823529411764},null,null,null,null,{"$f":"SUM(II6:II23)/(2*(COUNTIF(II6:II23,\"<>NA\")))","v":0.97058823529411764},null,null,null,null,{"$f":"SUM(IN6:IN23)/(2*(COUNTIF(IN6:IN23,\"<>NA\")))","v":0},null,null,null,null,{"$f":"SUM(IS6:IS23)/(2*(COUNTIF(IS6:IS23,\"<>NA\")))","v":0},null,null,null,null,{"$f":"SUM(IX6:IX23)/(2*(COUNTIF(IX6:IX23,\"<>NA\")))","v":0},null,null,null,null,{"$f":"SUM(JC6:JC23)/(2*(COUNTIF(JC6:JC23,\"<>NA\")))","v":0},null,null,null,null,{"$f":"SUM(JH6:JH23)/(2*(COUNTIF(JH6:JH23,\"<>NA\")))","v":0},null,null,null,null,{"$f":"SUM(JM6:JM23)/(2*(COUNTIF(JM6:JM23,\"<>NA\")))","v":0},null,null,null,null,{"$f":"SUM(JR6:JR23)/(2*(COUNTIF(JR6:JR23,\"<>NA\")))","v":0}]
[null,"Environmental controls indicators","Rate","Investigation","Qualification","Attachment","Remark","Rate","Investigation","Qualification","Attachment","Remark","Rate","Investigation","Qualification","Attachment","Remark","Rate","Investigation","Qualification","Attachment","Remark","Rate","Investigation","Qualification","Attachment","Remark","Rate","Investigation","Qualification","Attachment","Remark","Rate","Investigation","Qualification","Attachment","Remark","Rate","Investigation","Qualification","Attachment","Remark","Rate","Investigation","Qualification","Attachment","Remark","Rate","Investigation","Qualification","Attachment","Remark","Rate","Investigation","Qualification","Attachment","Remark","Rate","Investigation","Qualification","Attachment","Remark","Rate","Investigation","Qualification","Attachment","Remark","Rate","Investigation","Qualification","Attachment","Remark","Rate","Investigation","Qualification","Attachment","Remark","Rate","Investigation","Qualification","Attachment","Remark","Rate","Investigation","Qualification","Attachment","Remark","Rate","Investigation","Qualification","Attachment","Remark","Rate","Investigation","Qualification","Attachment","Remark","Rate","Investigation","Qualification","Attachment","Remark","Rate","Investigation","Qualification","Attachment","Remark","Rate","Investigation","Qualification","Attachment","Remark","Rate","Investigation","Qualification","Attachment","Remark","Rate","Investigation","Qualification","Attachment","Remark","Rate","Investigation","Qualification","Attachment","Remark","Rate","Investigation","Qualification","Attachment","Remark","Rate","Investigation","Qualification","Attachment","Remark","Rate","Investigation","Qualification","Attachment","Remark","Rate","Investigation","Qualification","Attachment","Remark","Rate","Investigation","Qualification","Attachment","Remark","Rate","Investigation","Qualification","Attachment","Remark","Rate","Investigation","Qualification","Attachment","Remark",null,"Investigation","Qualification","Attachment","Remark","Rate","Investigation","Qualification","Attachment","Remark","Rate","Investigation","Qualification","Attachment","Remark","Rate","Investigation","Qualification","Attachment","Remark","Rate","Investigation","Qualification","Attachment","Remark","Rate","Investigation","Qualification","Attachment","Remark","Rate","Investigation","Qualification","Attachment","Remark","Rate","Investigation","Qualification","Attachment","Remark","Rate","Investigation","Qualification","Attachment","Remark","Rate","Investigation","Qualification","Attachment","Remark","Rate","Investigation","Qualification","Attachment","Remark","Rate","Investigation","Qualification","Attachment","Remark","Rate","Investigation","Qualification","Attachment","Remark",null,"Investigation","Qualification","Attachment","Remark","Rate","Investigation","Qualification","Attachment","Remark","Rate","Investigation","Qualification","Attachment","Remark","Rate","Investigation","Qualification","Attachment","Remark","Rate","Investigation","Qualification","Attachment","Remark","Rate","Investigation","Qualification","Attachment","Remark","Rate","Investigation","Qualification","Attachment","Remark","Rate","Investigation","Qualification","Attachment","Remark","Rate","Investigation","Qualification","Attachment","Remark","Rate","Investigation","Qualification","Attachment","Remark","Rate","Investigation","Qualification","Attachment","Remark"]
[19,"Natural ventilation: Openings on opposing walls of room",0,null,null,null,null,0,null,null,null,null,0,null,null,null,null,0,null,null,null,null,0,null,null,null,null,0,null,null,null,null,0,null,null,null,null,0,null,null,null,null,1,null,null,null,null,1,null,null,null,null,1,null,null,null,null,1,null,null,null,null,1,null,null,null,null,1,null,null,null,null,0,null,null,null,null,1,null,null,null,null,1,null,null,null,null,1,null,null,null,null,1,null,null,null,null,1,null,null,null,null,1,null,null,null,null,1,null,null,null,null,1,null,null,null,null,1,null,null,null,null,1,null,null,null,null,1,null,null,null,null,1,null,null,null,null,1,null,null,null,null,null,null,null,null,null,null,null,null,null,null,null,null,null,null,null,null,null,null,null,null,null,null,null,null,null,null,null,null,null,null,null,null,null,null,null,null,null,null,null,null,null,null,null,null,null,null,null,null,null,null,null,null,null,null,null,null,null,null,null,null,null,null,null,null,null,null,null,null,null,null,0,null,null,null,null,1,null,null,null,null,1,null,null,null,null,1,null,null,null,null,1,null,null,null,null,1,null,null,null,null,1]
[20,"Natural ventilation: Areas of openings (window/door) of at least 10% of area of room (length*width of the floor) on opposing sides of room (total areas of windows and doors ≥20% total area of the floor)",2,null,null,null,null,2,null,null,null,null,2,null,null,null,null,2,null,null,null,null,2,null,null,null,null,2,null,null,null,null,2,null,null,null,null,2,null,null,null,null,2,null,null,null,null,2,null,null,null,null,2,null,null,null,null,2,null,null,null,null,2,null,null,null,null,2,null,null,null,null,2,null,null,null,null,2,null,null,null,null,2,null,null,null,null,2,null,null,null,null,2,null,null,null,null,2,null,null,null,null,2,null,null,null,null,2,null,null,null,null,2,null,null,null,null,2,null,null,null,null,2,null,null,null,null,2,null,null,null,null,2,null,null,null,null,2,null,null,null,null,null,null,null,null,null,null,null,null,null,null,null,null,null,null,null,null,null,null,null,null,null,null,null,null,null,null,null,null,null,null,null,null,null,null,null,null,null,null,null,null,null,null,null,null,null,null,null,null,null,null,null,null,null,null,null,null,null,null,null,null,null,null,null,null,null,null,null,null,null,null,2,null,null,null,null,2,null,null,null,null,2,null,null,null,null,2,null,null,null,null,2,null,null,null,null,2,null,null,null,null,2]
[21,"Natural ventilation: Signage is in place to keep doors and windows open",0,null,null,null,null,0,null,null,null,null,0,null,null,null,null,0,null,null,null,null,0,null,null,null,null,0,null,null,null,null,1,null,null,null,null,0,null,null,null,null,0,null,null,null,null,0,null,null,null,null,0,null,null,null,null,1,null,null,null,null,1,null,null,null,null,2,null,null,null,null,0,null,null,null,null,0,null,null,null,null,0,null,null,null,null,0,null,null,null,null,0,null,null,null,null,1,null,null,null,null,2,null,null,null,null,0,null,null,null,null,0,null,null,null,null,0,null,null,null,null,0,null,null,null,null,0,null,null,null,null,2,null,null,null,null,2,null,null,null,null,null,null,null,null,null,null,null,null,null,null,null,null,null,null,null,null,null,null,null,null,null,null,null,null,null,null,null,null,null,null,null,null,null,null,null,null,null,null,null,null,null,null,null,null,null,null,null,null,null,null,null,null,null,null,null,null,null,null,null,null,null,null,null,null,null,null,null,null,null,null,0,null,null,null,null,0,null,null,null,null,0,null,null,null,null,0,null,null,null,null,0,null,null,null,null,2,null,null,null,null,2]
[22,"Natural ventilation: All appropriate windows/doors are open on observation",2,null,null,null,null,2,null,null,null,null,2,null,null,null,null,2,null,null,null,null,2,null,null,null,null,2,null,null,null,null,2,null,null,null,null,1,null,null,null,null,1,null,null,null,null,1,null,null,null,null,1,null,null,null,null,1,null,null,null,null,1,null,null,null,null,2,null,null,null,null,1,null,null,null,null,1,null,null,null,null,1,null,null,null,null,1,null,null,null,null,1,null,null,null,null,1,null,null,null,null,2,null,null,null,null,1,null,null,null,null,1,null,null,null,null,1,null,null,null,null,1,null,null,null,null,1,null,null,null,null,2,null,null,null,null,2,null,null,null,null,null,null,null,null,null,null,null,null,null,null,null,null,null,null,null,null,null,null,null,null,null,null,null,null,null,null,null,null,null,null,null,null,null,null,null,null,null,null,null,null,null,null,null,null,null,null,null,null,null,null,null,null,null,null,null,null,null,null,null,null,null,null,null,null,null,null,null,null,null,null,1,null,null,null,null,1,null,null,null,null,1,null,null,null,null,1,null,null,null,null,1,null,null,null,null,2,null,null,null,null,2]
[23,"Natural ventilation and mechanical ventilation: No chemical or human odors relative to the outdoors",2,null,null,null,null,2,null,null,null,null,2,null,null,null,null,2,null,null,null,null,2,null,null,null,null,2,null,null,null,null,2,null,null,null,null,2,null,null,null,null,2,null,null,null,null,2,null,null,null,null,2,null,null,null,null,2,null,null,null,null,2,null,null,null,null,2,null,null,null,null,2,null,null,null,null,2,null,null,null,null,2,null,null,null,null,2,null,null,null,null,2,null,null,null,null,2,null,null,null,null,2,null,null,null,null,2,null,null,null,null,2,null,null,null,null,2,null,null,null,null,2,null,null,null,null,2,null,null,null,null,2,null,null,null,null,2,null,null,null,null,null,null,null,null,null,null,null,null,null,null,null,null,null,null,null,null,null,null,null,null,null,null,null,null,null,null,null,null,null,null,null,null,null,null,null,null,null,null,null,null,null,null,null,null,null,null,null,null,null,null,null,null,null,null,null,null,null,null,null,null,null,null,null,null,null,null,null,null,null,null,2,null,null,null,null,2,null,null,null,null,2,null,null,null,null,2,null,null,null,null,2,null,null,null,null,2,null,null,null,null,2]
[24,"Mechanical and natural ventilation: Visualization of airflow patterns with smoke from supply and exhaust grilles/openings (use smoke tube, incense etc. for smoke)",2,null,null,null,null,2,null,null,null,null,2,null,null,null,null,2,null,null,null,null,2,null,null,null,null,2,null,null,null,null,2,null,null,null,null,2,null,null,null,null,2,null,null,null,null,2,null,null,null,null,2,null,null,null,null,2,null,null,null,null,2,null,null,null,null,2,null,null,null,null,2,null,null,null,null,2,null,null,null,null,2,null,null,null,null,2,null,null,null,null,2,null,null,null,null,2,null,null,null,null,2,null,null,null,null,2,null,null,null,null,2,null,null,null,null,2,null,null,null,null,2,null,null,null,null,2,null,null,null,null,2,null,null,null,null,2,null,null,null,null,null,null,null,null,null,null,null,null,null,null,null,null,null,null,null,null,null,null,null,null,null,null,null,null,null,null,null,null,null,null,null,null,null,null,null,null,null,null,null,null,null,null,null,null,null,null,null,null,null,null,null,null,null,null,null,null,null,null,null,null,null,null,null,null,null,null,null,null,null,null,2,null,null,null,null,2,null,null,null,null,2,null,null,null,null,2,null,null,null,null,2,null,null,null,null,2,null,null,null,null,2]
[25,"Mechanical ventilation: Regular maintenance for directional and extractor fans is conducted",1,null,null,null,null,1,null,null,null,null,1,null,null,null,null,1,null,null,null,null,1,null,null,null,null,1,null,null,null,null,1,null,null,null,null,1,null,null,null,null,1,null,null,null,null,1,null,null,null,null,1,null,null,null,null,1,null,null,null,null,1,null,null,null,null,1,null,null,null,null,1,null,null,null,null,1,null,null,null,null,1,null,null,null,null,1,null,null,null,null,1,null,null,null,null,1,null,null,null,null,1,null,null,null,null,1,null,null,null,null,1,null,null,null,null,1,null,null,null,null,1,null,null,null,null,1,null,null,null,null,2,null,null,null,null,2,null,null,null,null,null,null,null,null,null,null,null,null,null,null,null,null,null,null,null,null,null,null,null,null,null,null,null,null,null,null,null,null,null,null,null,null,null,null,null,null,null,null,null,null,null,null,null,null,null,null,null,null,null,null,null,null,null,null,null,null,null,null,null,null,null,null,null,null,null,null,null,null,null,null,1,null,null,null,null,1,null,null,null,null,1,null,null,null,null,1,null,null,null,null,1,null,null,null,null,2,null,null,null,null,2]
[26,"Patients are not crowded in waiting areas, hallways or wards",2,null,null,null,null,2,null,null,null,null,2,null,null,null,null,2,null,null,null,null,2,null,null,null,null,2,null,null,null,null,2,null,null,null,null,2,null,null,null,null,2,null,null,null,null,2,null,null,null,null,2,null,null,null,null,2,null,null,null,null,2,null,null,null,null,2,null,null,null,null,2,null,null,null,null,2,null,null,null,null,2,null,null,null,null,2,null,null,null,null,2,null,null,null,null,2,null,null,null,null,2,null,null,null,null,2,null,null,null,null,2,null,null,null,null,2,null,null,null,null,2,null,null,null,null,2,null,null,null,null,2,null,null,null,null,2,null,null,null,null,null,null,null,null,null,null,null,null,null,null,null,null,null,null,null,null,null,null,null,null,null,null,null,null,null,null,null,null,null,null,null,null,null,null,null,null,null,null,null,null,null,null,null,null,null,null,null,null,null,null,null,null,null,null,null,null,null,null,null,null,null,null,null,null,null,null,null,null,null,null,2,null,null,null,null,2,null,null,null,null,2,null,null,null,null,2,null,null,null,null,2,null,null,null,null,2,null,null,null,null,2]
[27,"Traditional UVGI is being used properly (based on China standards)","NA",null,null,null,null,"NA",null,null,null,null,"NA",null,null,null,null,"NA",null,null,null,null,"NA",null,null,null,null,"NA",null,null,null,null,"NA",null,null,null,null,"NA",null,null,null,null,"NA",null,null,null,null,"NA",null,null,null,null,"NA",null,null,null,null,"NA",null,null,null,null,"NA",null,null,null,null,"NA",null,null,null,null,"NA",null,null,null,null,"NA",null,null,null,null,"NA",null,null,null,null,"NA",null,null,null,null,"NA",null,null,null,null,"NA",null,null,null,null,"NA",null,null,null,null,"NA",null,null,null,null,"NA",null,null,null,null,"NA",null,null,null,null,"NA",null,null,null,null,"NA",null,null,null,null,"NA",null,null,null,null,"NA",null,null,null,null,null,null,null,null,null,null,null,null,null,null,null,null,null,null,null,null,null,null,null,null,null,null,null,null,null,null,null,null,null,null,null,null,null,null,null,null,null,null,null,null,null,null,null,null,null,null,null,null,null,null,null,null,null,null,null,null,null,null,null,null,null,null,null,null,null,null,null,null,null,null,"NA",null,null,null,null,"NA",null,null,null,null,"NA",null,null,null,null,"NA",null,null,null,null,"NA",null,null,null,null,"NA",null,null,null,null,"NA"]
[28,"Upper-room UVGI is being used properly (based on China standards)",1,null,null,null,null,1,null,null,null,null,1,null,null,null,null,1,null,null,null,null,1,null,null,null,null,1,null,null,null,null,1,null,null,null,null,"NA",null,null,null,null,"NA",null,null,null,null,"NA",null,null,null,null,"NA",null,null,null,null,"NA",null,null,null,null,"NA",null,null,null,null,"NA",null,null,null,null,"NA",null,null,null,null,"NA",null,null,null,null,"NA",null,null,null,null,"NA",null,null,null,null,"NA",null,null,null,null,"NA",null,null,null,null,"NA",null,null,null,null,2,null,null,null,null,2,null,null,null,null,2,null,null,null,null,2,null,null,null,null,2,null,null,null,null,2,null,null,null,null,2,null,null,null,null,null,null,null,null,null,null,null,null,null,null,null,null,null,null,null,null,null,null,null,null,null,null,null,null,null,null,null,null,null,null,null,null,null,null,null,null,null,null,null,null,null,null,null,null,null,null,null,null,null,null,null,null,null,null,null,null,null,null,null,null,null,null,null,null,null,null,null,null,null,null,"NA",null,null,null,null,"NA",null,null,null,null,"NA",null,null,null,null,"NA",null,null,null,null,"NA",null,null,null,null,"NA",null,null,null,null,"NA"]
[null,"The implementation of environmental controls indicators",{"$f":"SUM(C26:C35)/(2*(COUNTIF(C26:C35,\"<>NA\")))","v":0.66666666666666663},null,null,null,null,{"$f":"SUM(H26:H35)/(2*(COUNTIF(H26:H35,\"<>NA\")))","v":0.66666666666666663},null,null,null,null,{"$f":"SUM(M26:M35)/(2*(COUNTIF(M26:M35,\"<>NA\")))","v":0.66666666666666663},null,null,null,null,{"$f":"SUM(R26:R35)/(2*(COUNTIF(R26:R35,\"<>NA\")))","v":0.66666666666666663},null,null,null,null,{"$f":"SUM(W26:W35)/(2*(COUNTIF(W26:W35,\"<>NA\")))","v":0.66666666666666663},null,null,null,null,{"$f":"SUM(AB26:AB35)/(2*(COUNTIF(AB26:AB35,\"<>NA\")))","v":0.66666666666666663},null,null,null,null,{"$f":"SUM(AG26:AG35)/(2*(COUNTIF(AG26:AG35,\"<>NA\")))","v":0.72222222222222221},null,null,null,null,{"$f":"SUM(AL26:AL35)/(2*(COUNTIF(AL26:AL35,\"<>NA\")))","v":0.625},null,null,null,null,{"$f":"SUM(AQ26:AQ35)/(2*(COUNTIF(AQ26:AQ35,\"<>NA\")))","v":0.6875},null,null,null,null,{"$f":"SUM(AV26:AV35)/(2*(COUNTIF(AV26:AV35,\"<>NA\")))","v":0.6875},null,null,null,null,{"$f":"SUM(BA26:BA35)/(2*(COUNTIF(BA26:BA35,\"<>NA\")))","v":0.6875},null,null,null,null,{"$f":"SUM(BF26:BF35)/(2*(COUNTIF(BF26:BF35,\"<>NA\")))","v":0.75},null,null,null,null,{"$f":"SUM(BK26:BK35)/(2*(COUNTIF(BK26:BK35,\"<>NA\")))","v":0.75},null,null,null,null,{"$f":"SUM(BP26:BP35)/(2*(COUNTIF(BP26:BP35,\"<>NA\")))","v":0.875},null,null,null,null,{"$f":"SUM(BU26:BU35)/(2*(COUNTIF(BU26:BU35,\"<>NA\")))","v":0.625},null,null,null,null,{"$f":"SUM(BZ26:BZ35)/(2*(COUNTIF(BZ26:BZ35,\"<>NA\")))","v":0.6875},null,null,null,null,{"$f":"SUM(CE26:CE35)/(2*(COUNTIF(CE26:CE35,\"<>NA\")))","v":0.6875},null,null,null,null,{"$f":"SUM(CJ26:CJ35)/(2*(COUNTIF(CJ26:CJ35,\"<>NA\")))","v":0.6875},null,null,null,null,{"$f":"SUM(CO26:CO35)/(2*(COUNTIF(CO26:CO35,\"<>NA\")))","v":0.6875},null,null,null,null,{"$f":"SUM(CT26:CT35)/(2*(COUNTIF(CT26:CT35,\"<>NA\")))","v":0.75},null,null,null,null,{"$f":"SUM(CY26:CY35)/(2*(COUNTIF(CY26:CY35,\"<>NA\")))","v":0.875},null,null,null,null,{"$f":"SUM(DD26:DD35)/(2*(COUNTIF(DD26:DD35,\"<>NA\")))","v":0.72222222222222221},null,null,null,null,{"$f":"SUM(DI26:DI35)/(2*(COUNTIF(DI26:DI35,\"<>NA\")))","v":0.72222222222222221},null,null,null,null,{"$f":"SUM(DN26:DN35)/(2*(COUNTIF(DN26:DN35,\"<>NA\")))","v":0.72222222222222221},null,null,null,null,{"$f":"SUM(DS26:DS35)/(2*(COUNTIF(DS26:DS35,\"<>NA\")))","v":0.72222222222222221},null,null,null,null,{"$f":"SUM(DX26:DX35)/(2*(COUNTIF(DX26:DX35,\"<>NA\")))","v":0.72222222222222221},null,null,null,null,{"$f":"SUM(EC26:EC35)/(2*(COUNTIF(EC26:EC35,\"<>NA\")))","v":0.94444444444444442},null,null,null,null,{"$f":"SUM(EH26:EH35)/(2*(COUNTIF(EH26:EH35,\"<>NA\")))","v":0.94444444444444442},null,null,null,null,{"$f":"SUM(EM26:EM35)/(2*(COUNTIF(EM26:EM35,\"<>NA\")))","v":0},null,null,null,null,{"$f":"SUM(ER26:ER35)/(2*(COUNTIF(ER26:ER35,\"<>NA\")))","v":0},null,null,null,null,{"$f":"SUM(EW26:EW35)/(2*(COUNTIF(EW26:EW35,\"<>NA\")))","v":0},null,null,null,null,{"$f":"SUM(FB26:FB35)/(2*(COUNTIF(FB26:FB35,\"<>NA\")))","v":0},null,null,null,null,{"$f":"SUM(FG26:FG35)/(2*(COUNTIF(FG26:FG35,\"<>NA\")))","v":0},null,null,null,null,{"$f":"SUM(FL26:FL35)/(2*(COUNTIF(FL26:FL35,\"<>NA\")))","v":0},null,null,null,null,{"$f":"SUM(FQ26:FQ35)/(2*(COUNTIF(FQ26:FQ35,\"<>NA\")))","v":0},null,null,null,null,{"$f":"SUM(FV26:FV35)/(2*(COUNTIF(FV26:FV35,\"<>NA\")))","v":0},null,null,null,null,{"$f":"SUM(GA26:GA35)/(2*(COUNTIF(GA26:GA35,\"<>NA\")))","v":0},null,null,null,null,{"$f":"SUM(GF26:GF35)/(2*(COUNTIF(GF26:GF35,\"<>NA\")))","v":0},null,null,null,null,{"$f":"SUM(GK26:GK35)/(2*(COUNTIF(GK26:GK35,\"<>NA\")))","v":0},null,null,null,null,{"$f":"SUM(GP26:GP35)/(2*(COUNTIF(GP26:GP35,\"<>NA\")))","v":0},null,null,null,null,{"$f":"SUM(GU26:GU35)/(2*(COUNTIF(GU26:GU35,\"<>NA\")))","v":0},null,null,null,null,{"$f":"SUM(GZ26:GZ35)/(2*(COUNTIF(GZ26:GZ35,\"<>NA\")))","v":0},null,null,null,null,{"$f":"SUM(HE26:HE35)/(2*(COUNTIF(HE26:HE35,\"<>NA\")))","v":0.625},null,null,null,null,{"$f":"SUM(HJ26:HJ35)/(2*(COUNTIF(HJ26:HJ35,\"<>NA\")))","v":0.6875},null,null,null,null,{"$f":"SUM(HO26:HO35)/(2*(COUNTIF(HO26:HO35,\"<>NA\")))","v":0.6875},null,null,null,null,{"$f":"SUM(HT26:HT35)/(2*(COUNTIF(HT26:HT35,\"<>NA\")))","v":0.6875},null,null,null,null,{"$f":"SUM(HY26:HY35)/(2*(COUNTIF(HY26:HY35,\"<>NA\")))","v":0.6875},null,null,null,null,{"$f":"SUM(ID26:ID35)/(2*(COUNTIF(ID26:ID35,\"<>NA\")))","v":0.9375},null,null,null,null,{"$f":"SUM(II26:II35)/(2*(COUNTIF(II26:II35,\"<>NA\")))","v":0.9375},null,null,null,null,{"$f":"SUM(IN26:IN35)/(2*(COUNTIF(IN26:IN35,\"<>NA\")))","v":0},null,null,null,null,{"$f":"SUM(IS26:IS35)/(2*(COUNTIF(IS26:IS35,\"<>NA\")))","v":0},null,null,null,null,{"$f":"SUM(IX26:IX35)/(2*(COUNTIF(IX26:IX35,\"<>NA\")))","v":0},null,null,null,null,{"$f":"SUM(JC26:JC35)/(2*(COUNTIF(JC26:JC35,\"<>NA\")))","v":0},null,null,null,null,{"$f":"SUM(JH26:JH35)/(2*(COUNTIF(JH26:JH35,\"<>NA\")))","v":0},null,null,null,null,{"$f":"SUM(JM26:JM35)/(2*(COUNTIF(JM26:JM35,\"<>NA\")))","v":0},null,null,null,null,{"$f":"SUM(JR26:JR35)/(2*(COUNTIF(JR26:JR35,\"<>NA\")))","v":0}]
[null,"Personal protective equipment indicators","Rate","Investigation","Qualification","Attachment","Remark","Rate","Investigation","Qualification","Attachment","Remark","Rate","Investigation","Qualification","Attachment","Remark","Rate","Investigation","Qualification","Attachment","Remark","Rate","Investigation","Qualification","Attachment","Remark","Rate","Investigation","Qualification","Attachment","Remark","Rate","Investigation","Qualification","Attachment","Remark","Rate","Investigation","Qualification","Attachment","Remark","Rate","Investigation","Qualification","Attachment","Remark","Rate","Investigation","Qualification","Attachment","Remark","Rate","Investigation","Qualification","Attachment","Remark","Rate","Investigation","Qualification","Attachment","Remark","Rate","Investigation","Qualification","Attachment","Remark","Rate","Investigation","Qualification","Attachment","Remark","Rate","Investigation","Qualification","Attachment","Remark","Rate","Investigation","Qualification","Attachment","Remark","Rate","Investigation","Qualification","Attachment","Remark","Rate","Investigation","Qualification","Attachment","Remark","Rate","Investigation","Qualification","Attachment","Remark","Rate","Investigation","Qualification","Attachment","Remark","Rate","Investigation","Qualification","Attachment","Remark","Rate","Investigation","Qualification","Attachment","Remark","Rate","Investigation","Qualification","Attachment","Remark","Rate","Investigation","Qualification","Attachment","Remark","Rate","Investigation","Qualification","Attachment","Remark","Rate","Investigation","Qualification","Attachment","Remark","Rate","Investigation","Qualification","Attachment","Remark","Rate","Investigation","Qualification","Attachment","Remark","Rate","Investigation","Qualification","Attachment","Remark","Rate","Investigation","Qualification","Attachment","Remark","Rate","Investigation","Qualification","Attachment","Remark","Rate","Investigation","Qualification","Attachment","Remark",null,"Investigation","Qualification","Attachment","Remark","Rate","Investigation","Qualification","Attachment","Remark","Rate","Investigation","Qualification","Attachment","Remark","Rate","Investigation","Qualification","Attachment","Remark","Rate","Investigation","Qualification","Attachment","Remark","Rate","Investigation","Qualification","Attachment","Remark","Rate","Investigation","Qualification","Attachment","Remark","Rate","Investigation","Qualification","Attachment","Remark","Rate","Investigation","Qualification","Attachment","Remark","Rate","Investigation","Qualification","Attachment","Remark","Rate","Investigation","Qualification","Attachment","Remark","Rate","Investigation","Qualification","Attachment","Remark","Rate","Investigation","Qualification","Attachment","Remark",null,"Investigation","Qualification","Attachment","Remark","Rate","Investigation","Qualification","Attachment","Remark","Rate","Investigation","Qualification","Attachment","Remark","Rate","Investigation","Qualification","Attachment","Remark","Rate","Investigation","Qualification","Attachment","Remark","Rate","Investigation","Qualification","Attachment","Remark","Rate","Investigation","Qualification","Attachment","Remark","Rate","Investigation","Qualification","Attachment","Remark","Rate","Investigation","Qualification","Attachment","Remark","Rate","Investigation","Qualification","Attachment","Remark","Rate","Investigation","Qualification","Attachment","Remark"]
[29,"Surgical masks are available for patients with cough or other TB symptoms",1,null,null,null,null,1,null,null,null,null,1,null,null,null,null,1,null,null,null,null,1,null,null,null,null,1,null,null,null,null,1,null,null,null,null,1,null,null,null,null,1,null,null,null,null,1,null,null,null,null,1,null,null,null,null,1,null,null,null,null,1,null,null,null,null,2,null,null,null,null,1,null,null,null,null,1,null,null,null,null,1,null,null,null,null,1,null,null,null,null,1,null,null,null,null,1,null,null,null,null,2,null,null,null,null,1,null,null,null,null,1,null,null,null,null,1,null,null,null,null,1,null,null,null,null,1,null,null,null,null,2,null,null,null,null,2,null,null,null,null,null,null,null,null,null,null,null,null,null,null,null,null,null,null,null,null,null,null,null,null,null,null,null,null,null,null,null,null,null,null,null,null,null,null,null,null,null,null,null,null,null,null,null,null,null,null,null,null,null,null,null,null,null,null,null,null,null,null,null,null,null,null,null,null,null,null,null,null,null,null,1,null,null,null,null,1,null,null,null,null,1,null,null,null,null,1,null,null,null,null,1,null,null,null,null,2,null,null,null,null,2]
[30,"Respirators that meet the national or international standards are readily available to all staff who have contact with patients with TB or suspected of having TB in this department",2,null,null,null,null,2,null,null,null,null,2,null,null,null,null,2,null,null,null,null,2,null,null,null,null,2,null,null,null,null,2,null,null,null,null,2,null,null,null,null,2,null,null,null,null,2,null,null,null,null,2,null,null,null,null,2,null,null,null,null,2,null,null,null,null,2,null,null,null,null,2,null,null,null,null,2,null,null,null,null,2,null,null,null,null,2,null,null,null,null,2,null,null,null,null,2,null,null,null,null,2,null,null,null,null,2,null,null,null,null,2,null,null,null,null,2,null,null,null,null,2,null,null,null,null,2,null,null,null,null,2,null,null,null,null,2,null,null,null,null,null,null,null,null,null,null,null,null,null,null,null,null,null,null,null,null,null,null,null,null,null,null,null,null,null,null,null,null,null,null,null,null,null,null,null,null,null,null,null,null,null,null,null,null,null,null,null,null,null,null,null,null,null,null,null,null,null,null,null,null,null,null,null,null,null,null,null,null,null,null,2,null,null,null,null,2,null,null,null,null,2,null,null,null,null,2,null,null,null,null,2,null,null,null,null,2,null,null,null,null,2]
[31,"Staff were trained on proper respirator use in the past year",2,null,null,null,null,2,null,null,null,null,2,null,null,null,null,2,null,null,null,null,2,null,null,null,null,2,null,null,null,null,2,null,null,null,null,2,null,null,null,null,2,null,null,null,null,2,null,null,null,null,2,null,null,null,null,2,null,null,null,null,2,null,null,null,null,2,null,null,null,null,2,null,null,null,null,2,null,null,null,null,2,null,null,null,null,2,null,null,null,null,2,null,null,null,null,2,null,null,null,null,2,null,null,null,null,2,null,null,null,null,2,null,null,null,null,2,null,null,null,null,2,null,null,null,null,2,null,null,null,null,2,null,null,null,null,2,null,null,null,null,null,null,null,null,null,null,null,null,null,null,null,null,null,null,null,null,null,null,null,null,null,null,null,null,null,null,null,null,null,null,null,null,null,null,null,null,null,null,null,null,null,null,null,null,null,null,null,null,null,null,null,null,null,null,null,null,null,null,null,null,null,null,null,null,null,null,null,null,null,null,2,null,null,null,null,2,null,null,null,null,2,null,null,null,null,2,null,null,null,null,2,null,null,null,null,2,null,null,null,null,2]
[32,"Staff can demonstrate proper respirator use (i.e., putting on, removing, seal check, and storage)",2,null,null,null,null,2,null,null,null,null,2,null,null,null,null,2,null,null,null,null,2,null,null,null,null,2,null,null,null,null,2,null,null,null,null,2,null,null,null,null,2,null,null,null,null,2,null,null,null,null,2,null,null,null,null,2,null,null,null,null,2,null,null,null,null,2,null,null,null,null,2,null,null,null,null,2,null,null,null,null,2,null,null,null,null,2,null,null,null,null,2,null,null,null,null,2,null,null,null,null,2,null,null,null,null,2,null,null,null,null,2,null,null,null,null,2,null,null,null,null,2,null,null,null,null,2,null,null,null,null,2,null,null,null,null,2,null,null,null,null,null,null,null,null,null,null,null,null,null,null,null,null,null,null,null,null,null,null,null,null,null,null,null,null,null,null,null,null,null,null,null,null,null,null,null,null,null,null,null,null,null,null,null,null,null,null,null,null,null,null,null,null,null,null,null,null,null,null,null,null,null,null,null,null,null,null,null,null,null,null,2,null,null,null,null,2,null,null,null,null,2,null,null,null,null,2,null,null,null,null,2,null,null,null,null,2,null,null,null,null,2]
[33,"There have been no stock-outs of surgical masks in the past 3 months",2,null,null,null,null,2,null,null,null,null,2,null,null,null,null,2,null,null,null,null,2,null,null,null,null,2,null,null,null,null,2,null,null,null,null,2,null,null,null,null,2,null,null,null,null,2,null,null,null,null,2,null,null,null,null,2,null,null,null,null,2,null,null,null,null,2,null,null,null,null,2,null,null,null,null,2,null,null,null,null,2,null,null,null,null,2,null,null,null,null,2,null,null,null,null,2,null,null,null,null,2,null,null,null,null,2,null,null,null,null,2,null,null,null,null,2,null,null,null,null,2,null,null,null,null,2,null,null,null,null,2,null,null,null,null,2,null,null,null,null,null,null,null,null,null,null,null,null,null,null,null,null,null,null,null,null,null,null,null,null,null,null,null,null,null,null,null,null,null,null,null,null,null,null,null,null,null,null,null,null,null,null,null,null,null,null,null,null,null,null,null,null,null,null,null,null,null,null,null,null,null,null,null,null,null,null,null,null,null,null,2,null,null,null,null,2,null,null,null,null,2,null,null,null,null,2,null,null,null,null,2,null,null,null,null,2,null,null,null,null,2]
[34,"There have been no stock-outs of respirators in the past 3 months",2,null,null,null,null,2,null,null,null,null,2,null,null,null,null,2,null,null,null,null,2,null,null,null,null,2,null,null,null,null,2,null,null,null,null,2,null,null,null,null,2,null,null,null,null,2,null,null,null,null,2,null,null,null,null,2,null,null,null,null,2,null,null,null,null,2,null,null,null,null,2,null,null,null,null,2,null,null,null,null,2,null,null,null,null,2,null,null,null,null,2,null,null,null,null,2,null,null,null,null,2,null,null,null,null,2,null,null,null,null,2,null,null,null,null,2,null,null,null,null,2,null,null,null,null,2,null,null,null,null,2,null,null,null,null,2,null,null,null,null,null,null,null,null,null,null,null,null,null,null,null,null,null,null,null,null,null,null,null,null,null,null,null,null,null,null,null,null,null,null,null,null,null,null,null,null,null,null,null,null,null,null,null,null,null,null,null,null,null,null,null,null,null,null,null,null,null,null,null,null,null,null,null,null,null,null,null,null,null,null,2,null,null,null,null,2,null,null,null,null,2,null,null,null,null,2,null,null,null,null,2,null,null,null,null,2,null,null,null,null,2]
[null,"The implementation of personal protective equipment indicators",{"$f":"SUM(C38:C43)/(2*(COUNTIF(C38:C43,\"<>NA\")))","v":0.91666666666666663},null,null,null,null,{"$f":"SUM(H38:H43)/(2*(COUNTIF(H38:H43,\"<>NA\")))","v":0.91666666666666663},null,null,null,null,{"$f":"SUM(M38:M43)/(2*(COUNTIF(M38:M43,\"<>NA\")))","v":0.91666666666666663},null,null,null,null,{"$f":"SUM(R38:R43)/(2*(COUNTIF(R38:R43,\"<>NA\")))","v":0.91666666666666663},null,null,null,null,{"$f":"SUM(W38:W43)/(2*(COUNTIF(W38:W43,\"<>NA\")))","v":0.91666666666666663},null,null,null,null,{"$f":"SUM(AB38:AB43)/(2*(COUNTIF(AB38:AB43,\"<>NA\")))","v":0.91666666666666663},null,null,null,null,{"$f":"SUM(AG38:AG43)/(2*(COUNTIF(AG38:AG43,\"<>NA\")))","v":0.91666666666666663},null,null,null,null,{"$f":"SUM(AL38:AL43)/(2*(COUNTIF(AL38:AL43,\"<>NA\")))","v":0.91666666666666663},null,null,null,null,{"$f":"SUM(AQ38:AQ43)/(2*(COUNTIF(AQ38:AQ43,\"<>NA\")))","v":0.91666666666666663},null,null,null,null,{"$f":"SUM(AV38:AV43)/(2*(COUNTIF(AV38:AV43,\"<>NA\")))","v":0.91666666666666663},null,null,null,null,{"$f":"SUM(BA38:BA43)/(2*(COUNTIF(BA38:BA43,\"<>NA\")))","v":0.91666666666666663},null,null,null,null,{"$f":"SUM(BF38:BF43)/(2*(COUNTIF(BF38:BF43,\"<>NA\")))","v":0.91666666666666663},null,null,null,null,{"$f":"SUM(BK38:BK43)/(2*(COUNTIF(BK38:BK43,\"<>NA\")))","v":0.91666666666666663},null,null,null,null,{"$f":"SUM(BP38:BP43)/(2*(COUNTIF(BP38:BP43,\"<>NA\")))","v":1},null,null,null,null,{"$f":"SUM(BU38:BU43)/(2*(COUNTIF(BU38:BU43,\"<>NA\")))","v":0.91666666666666663},null,null,null,null,{"$f":"SUM(BZ38:BZ43)/(2*(COUNTIF(BZ38:BZ43,\"<>NA\")))","v":0.91666666666666663},null,null,null,null,{"$f":"SUM(CE38:CE43)/(2*(COUNTIF(CE38:CE43,\"<>NA\")))","v":0.91666666666666663},null,null,null,null,{"$f":"SUM(CJ38:CJ43)/(2*(COUNTIF(CJ38:CJ43,\"<>NA\")))","v":0.91666666666666663},null,null,null,null,{"$f":"SUM(CO38:CO43)/(2*(COUNTIF(CO38:CO43,\"<>NA\")))","v":0.91666666666666663},null,null,null,null,{"$f":"SUM(CT38:CT43)/(2*(COUNTIF(CT38:CT43,\"<>NA\")))","v":0.91666666666666663},null,null,null,null,{"$f":"SUM(CY38:CY43)/(2*(COUNTIF(CY38:CY43,\"<>NA\")))","v":1},null,null,null,null,{"$f":"SUM(DD38:DD43)/(2*(COUNTIF(DD38:DD43,\"<>NA\")))","v":0.91666666666666663},null,null,null,null,{"$f":"SUM(DI38:DI43)/(2*(COUNTIF(DI38:DI43,\"<>NA\")))","v":0.91666666666666663},null,null,null,null,{"$f":"SUM(DN38:DN43)/(2*(COUNTIF(DN38:DN43,\"<>NA\")))","v":0.91666666666666663},null,null,null,null,{"$f":"SUM(DS38:DS43)/(2*(COUNTIF(DS38:DS43,\"<>NA\")))","v":0.91666666666666663},null,null,null,null,{"$f":"SUM(DX38:DX43)/(2*(COUNTIF(DX38:DX43,\"<>NA\")))","v":0.91666666666666663},null,null,null,null,{"$f":"SUM(EC38:EC43)/(2*(COUNTIF(EC38:EC43,\"<>NA\")))","v":1},null,null,null,null,{"$f":"SUM(EH38:EH43)/(2*(COUNTIF(EH38:EH43,\"<>NA\")))","v":1},null,null,null,null,{"$f":"SUM(EM38:EM43)/(2*(COUNTIF(EM38:EM43,\"<>NA\")))","v":0},null,null,null,null,{"$f":"SUM(ER38:ER43)/(2*(COUNTIF(ER38:ER43,\"<>NA\")))","v":0},null,null,null,null,{"$f":"SUM(EW38:EW43)/(2*(COUNTIF(EW38:EW43,\"<>NA\")))","v":0},null,null,null,null,{"$f":"SUM(FB38:FB43)/(2*(COUNTIF(FB38:FB43,\"<>NA\")))","v":0},null,null,null,null,{"$f":"SUM(FG38:FG43)/(2*(COUNTIF(FG38:FG43,\"<>NA\")))","v":0},null,null,null,null,{"$f":"SUM(FL38:FL43)/(2*(COUNTIF(FL38:FL43,\"<>NA\")))","v":0},null,null,null,null,{"$f":"SUM(FQ38:FQ43)/(2*(COUNTIF(FQ38:FQ43,\"<>NA\")))","v":0},null,null,null,null,{"$f":"SUM(FV38:FV43)/(2*(COUNTIF(FV38:FV43,\"<>NA\")))","v":0},null,null,null,null,{"$f":"SUM(GA38:GA43)/(2*(COUNTIF(GA38:GA43,\"<>NA\")))","v":0},null,null,null,null,{"$f":"SUM(GF38:GF43)/(2*(COUNTIF(GF38:GF43,\"<>NA\")))","v":0},null,null,null,null,{"$f":"SUM(GK38:GK43)/(2*(COUNTIF(GK38:GK43,\"<>NA\")))","v":0},null,null,null,null,{"$f":"SUM(GP38:GP43)/(2*(COUNTIF(GP38:GP43,\"<>NA\")))","v":0},null,null,null,null,{"$f":"SUM(GU38:GU43)/(2*(COUNTIF(GU38:GU43,\"<>NA\")))","v":0},null,null,null,null,{"$f":"SUM(GZ38:GZ43)/(2*(COUNTIF(GZ38:GZ43,\"<>NA\")))","v":0},null,null,null,null,{"$f":"SUM(HE38:HE43)/(2*(COUNTIF(HE38:HE43,\"<>NA\")))","v":0.91666666666666663},null,null,null,null,{"$f":"SUM(HJ38:HJ43)/(2*(COUNTIF(HJ38:HJ43,\"<>NA\")))","v":0.91666666666666663},null,null,null,null,{"$f":"SUM(HO38:HO43)/(2*(COUNTIF(HO38:HO43,\"<>NA\")))","v":0.91666666666666663},null,null,null,null,{"$f":"SUM(HT38:HT43)/(2*(COUNTIF(HT38:HT43,\"<>NA\")))","v":0.91666666666666663},null,null,null,null,{"$f":"SUM(HY38:HY43)/(2*(COUNTIF(HY38:HY43,\"<>NA\")))","v":0.91666666666666663},null,null,null,null,{"$f":"SUM(ID38:ID43)/(2*(COUNTIF(ID38:ID43,\"<>NA\")))","v":1},null,null,null,null,{"$f":"SUM(II38:II43)/(2*(COUNTIF(II38:II43,\"<>NA\")))","v":1},null,null,null,null,{"$f":"SUM(IN38:IN43)/(2*(COUNTIF(IN38:IN43,\"<>NA\")))","v":0},null,null,null,null,{"$f":"SUM(IS38:IS43)/(2*(COUNTIF(IS38:IS43,\"<>NA\")))","v":0},null,null,null,null,{"$f":"SUM(IX38:IX43)/(2*(COUNTIF(IX38:IX43,\"<>NA\")))","v":0},null,null,null,null,{"$f":"SUM(JC38:JC43)/(2*(COUNTIF(JC38:JC43,\"<>NA\")))","v":0},null,null,null,null,{"$f":"SUM(JH38:JH43)/(2*(COUNTIF(JH38:JH43,\"<>NA\")))","v":0},null,null,null,null,{"$f":"SUM(JM38:JM43)/(2*(COUNTIF(JM38:JM43,\"<>NA\")))","v":0},null,null,null,null,{"$f":"SUM(JR38:JR43)/(2*(COUNTIF(JR38:JR43,\"<>NA\")))","v":0}]
[null,"The overall implementation of all indicators",{"$f":"AVERAGE(C24,C36,C44)","v":0.68464052287581689},null,null,null,null,{"$f":"AVERAGE(H24,H36,H44)","v":0.70424836601307195},null,null,null,null,{"$f":"AVERAGE(M24,M36,M44)","v":0.71405228758169936},null,null,null,null,{"$f":"AVERAGE(R24,R36,R44)","v":0.72385620915032678},null,null,null,null,{"$f":"AVERAGE(W24,W36,W44)","v":0.72385620915032678},null,null,null,null,{"$f":"AVERAGE(AB24,AB36,AB44)","v":0.74346405228758172},null,null,null,null,{"$f":"AVERAGE(AG24,AG36,AG44)","v":0.8110021786492374},null,null,null,null,{"$f":"AVERAGE(AL24,AL36,AL44)","v":0.67075163398692805},null,null,null,null,{"$f":"AVERAGE(AQ24,AQ36,AQ44)","v":0.71119281045751626},null,null,null,null,{"$f":"AVERAGE(AV24,AV36,AV44)","v":0.7308006535947712},null,null,null,null,{"$f":"AVERAGE(BA24,BA36,BA44)","v":0.76021241830065367},null,null,null,null,{"$f":"AVERAGE(BF24,BF36,BF44)","v":0.79084967320261434},null,null,null,null,{"$f":"AVERAGE(BK24,BK36,BK44)","v":0.79084967320261434},null,null,null,null,{"$f":"AVERAGE(BP24,BP36,BP44)","v":0.88970588235294112},null,null,null,null,{"$f":"AVERAGE(BU24,BU36,BU44)","v":0.67075163398692805},null,null,null,null,{"$f":"AVERAGE(BZ24,BZ36,BZ44)","v":0.70138888888888884},null,null,null,null,{"$f":"AVERAGE(CE24,CE36,CE44)","v":0.70138888888888884},null,null,null,null,{"$f":"AVERAGE(CJ24,CJ36,CJ44)","v":0.74060457516339862},null,null,null,null,{"$f":"AVERAGE(CO24,CO36,CO44)","v":0.74060457516339862},null,null,null,null,{"$f":"AVERAGE(CT24,CT36,CT44)","v":0.79084967320261434},null,null,null,null,{"$f":"AVERAGE(CY24,CY36,CY44)","v":0.88970588235294112},null,null,null,null,{"$f":"AVERAGE(DD24,DD36,DD44)","v":0.70315904139433549},null,null,null,null,{"$f":"AVERAGE(DI24,DI36,DI44)","v":0.73257080610021774},null,null,null,null,{"$f":"AVERAGE(DN24,DN36,DN44)","v":0.76198257080610021},null,null,null,null,{"$f":"AVERAGE(DS24,DS36,DS44)","v":0.77178649237472763},null,null,null,null,{"$f":"AVERAGE(DX24,DX36,DX44)","v":0.77178649237472763},null,null,null,null,{"$f":"AVERAGE(EC24,EC36,EC44)","v":0.98148148148148151},null,null,null,null,{"$f":"AVERAGE(EH24,EH36,EH44)","v":0.98148148148148151},null,null,null,null,{"$f":"AVERAGE(EM24,EM36,EM44)","v":0},null,null,null,null,{"$f":"AVERAGE(ER24,ER36,ER44)","v":0},null,null,null,null,{"$f":"AVERAGE(EW24,EW36,EW44)","v":0},null,null,null,null,{"$f":"AVERAGE(FB24,FB36,FB44)","v":0},null,null,null,null,{"$f":"AVERAGE(FG24,FG36,FG44)","v":0},null,null,null,null,{"$f":"AVERAGE(FL24,FL36,FL44)","v":0},null,null,null,null,{"$f":"AVERAGE(FQ24,FQ36,FQ44)","v":0},null,null,null,null,{"$f":"AVERAGE(FV24,FV36,FV44)","v":0},null,null,null,null,{"$f":"AVERAGE(GA24,GA36,GA44)","v":0},null,null,null,null,{"$f":"AVERAGE(GF24,GF36,GF44)","v":0},null,null,null,null,{"$f":"AVERAGE(GK24,GK36,GK44)","v":0},null,null,null,null,{"$f":"AVERAGE(GP24,GP36,GP44)","v":0},null,null,null,null,{"$f":"AVERAGE(GU24,GU36,GU44)","v":0},null,null,null,null,{"$f":"AVERAGE(GZ24,GZ36,GZ44)","v":0},null,null,null,null,{"$f":"AVERAGE(HE24,HE36,HE44)","v":0.67075163398692805},null,null,null,null,{"$f":"AVERAGE(HJ24,HJ36,HJ44)","v":0.72099673202614378},null,null,null,null,{"$f":"AVERAGE(HO24,HO36,HO44)","v":0.75040849673202603},null,null,null,null,{"$f":"AVERAGE(HT24,HT36,HT44)","v":0.76021241830065367},null,null,null,null,{"$f":"AVERAGE(HY24,HY36,HY44)","v":0.76021241830065367},null,null,null,null,{"$f":"AVERAGE(ID24,ID36,ID44)","v":0.96936274509803921},null,null,null,null,{"$f":"AVERAGE(II24,II36,II44)","v":0.96936274509803921},null,null,null,null,{"$f":"AVERAGE(IN24,IN36,IN44)","v":0},null,null,null,null,{"$f":"AVERAGE(IS24,IS36,IS44)","v":0},null,null,null,null,{"$f":"AVERAGE(IX24,IX36,IX44)","v":0},null,null,null,null,{"$f":"AVERAGE(JC24,JC36,JC44)","v":0},null,null,null,null,{"$f":"AVERAGE(JH24,JH36,JH44)","v":0},null,null,null,null,{"$f":"AVERAGE(JM24,JM36,JM44)","v":0},null,null,null,null,{"$f":"AVERAGE(JR24,JR36,JR44)","v":0}]
[null,"Assessor","Assessor Name:",null,null,null,null,"Assessor Name:",null,null,null,null,"Assessor Name:",null,null,null,null,"Assessor Name:",null,null,null,null,"Assessor Name:",null,null,null,null,"Assessor Name:",null,null,null,null,null,null,null,null,null,"Assessor Name:",null,null,null,null,"Assessor Name:",null,null,null,null,"Assessor Name:",null,null,null,null,"Assessor Name:",null,null,null,null,"Assessor Name:",null,null,null,null,"Assessor Name:",null,null,null,null,"Assessor Name:",null,null,null,null,"Assessor Name:",null,null,null,null,"Assessor Name:",null,null,null,null,"Assessor Name:",null,null,null,null,"Assessor Name:",null,null,null,null,"Assessor Name:",null,null,null,null,"Assessor Name:",null,null,null,null,"Assessor Name:",null,null,null,null,"Assessor Name:",null,null,null,null,"Assessor Name:",null,null,null,null,"Assessor Name:",null,null,null,null,"Assessor Name:",null,null,null,null,"Assessor Name:",null,null,null,null,"Assessor Name:",null,null,null,null,"Assessor Name:",null,null,null,null,"Assessor Name:",null,null,null,null,"Assessor Name:",null,null,null,null,"Assessor Name:",null,null,null,null,"Assessor Name:",null,null,null,null,"Assessor Name:",null,null,null,null,"Assessor Name:",null,null,null,null,"Assessor Name:",null,null,null,null,"Assessor Name:",null,null,null,null,"Assessor Name:",null,null,null,null,"Assessor Name:",null,null,null,null,"Assessor Name:",null,null,null,null,"Assessor Name:",null,null,null,null,"Assessor Name:",null,null,null,null,"Assessor Name:",null,null,null,null,"Assessor Name:",null,null,null,null,"Assessor Name:",null,null,null,null,"Assessor Name:",null,null,null,null,"Assessor Name:",null,null,null,null,"Assessor Name:",null,null,null,null,"Assessor Name:",null,null,null,null,"Assessor Name:",null,null,null,null,"Assessor Name:",null,null,null,null,"Assessor Name:",null,null,null,null,"Assessor Name:",null,null,null,null,"Assessor Name:",null,null,null,null,"Assessor Name:",null,null,null,null,"Assessor Name:",null,null,null,null,"Assessor Name:"]

{"sheet":"Inpatient department & ward","index":4,"n_rows":45,"n_cols":282,"rows_kept":45,"cut":false,"hidden":false,"merged":[[3,2,3,6],[3,7,3,11],[3,12,3,16],[3,17,3,21],[3,22,3,26],[3,27,3,31],[3,32,3,36],[3,37,3,41],[3,42,3,46],[3,47,3,51],[3,52,3,56],[3,57,3,61],[3,62,3,66],[3,67,3,71],[3,72,3,76],[3,77,3,81],[3,82,3,86],[3,87,3,91],[3,92,3,96],[3,97,3,101],[3,102,3,106],[3,107,3,111],[3,112,3,116],[3,117,3,121],[3,122,3,126],[3,127,3,131],[3,132,3,136],[3,137,3,141],[3,142,3,146],[3,147,3,151],[3,152,3,156],[3,157,3,161],[3,162,3,166],[3,167,3,171],[3,172,3,176],[3,177,3,181],[3,182,3,186],[3,187,3,191],[3,192,3,196],[3,197,3,201],[3,202,3,206],[3,207,3,211],[3,212,3,216],[3,217,3,221],[3,222,3,226],[3,227,3,231],[3,232,3,236],[3,237,3,241],[3,242,3,246],[3,247,3,251],[3,252,3,256],[3,257,3,261],[3,262,3,266],[3,267,3,271],[3,272,3,276],[3,277,3,281],[44,2,44,6],[44,7,44,11],[44,12,44,16],[44,17,44,21],[44,22,44,26],[44,27,44,31],[44,32,44,36],[44,37,44,41],[44,42,44,46],[44,47,44,51],[44,52,44,56],[44,57,44,61],[44,62,44,66],[44,67,44,71],[44,72,44,76],[44,77,44,81],[44,82,44,86],[44,87,44,91],[44,92,44,96],[44,97,44,101],[44,102,44,106],[44,107,44,111],[44,112,44,116],[44,117,44,121],[44,122,44,126],[44,127,44,131],[44,132,44,136],[44,137,44,141],[44,142,44,146],[44,147,44,151],[44,152,44,156],[44,157,44,161],[44,162,44,166],[44,167,44,171],[44,172,44,176],[44,177,44,181],[44,182,44,186],[44,187,44,191],[44,192,44,196],[44,197,44,201],[44,247,44,251],[44,252,44,256],[44,257,44,261],[44,262,44,266],[44,267,44,271],[44,272,44,276],[44,277,44,281],[44,202,44,206],[44,207,44,211],[44,212,44,216],[44,217,44,221],[44,222,44,226],[44,227,44,231],[44,232,44,236],[44,237,44,241],[44,242,44,246]]}
[null,"Date viewing mode"]
[null,"Inpatient department/wards","1. Ward1",null,null,null,null,null,null,null,null,null,null,null,null,null,null,"1. Ward1"]
[null,"Assessment phase","Basic",null,null,null,null,"3 months",null,null,null,null,"6 months",null,null,null,null,"9 months",null,null,null,null,"12 months",null,null,null,null,"15 months",null,null,null,null,"18 months",null,null,null,null,"Basic",null,null,null,null,"3 months",null,null,null,null,"6 months",null,null,null,null,"9 months",null,null,null,null,"12 months",null,null,null,null,"15 months",null,null,null,null,"18 months",null,null,null,null,"Basic",null,null,null,null,"3 months",null,null,null,null,"6 months",null,null,null,null,"9 months",null,null,null,null,"12 months",null,null,null,null,"15 months",null,null,null,null,"18 months",null,null,null,null,"Basic",null,null,null,null,"3 months",null,null,null,null,"6 months",null,null,null,null,"9 months",null,null,null,null,"12 months",null,null,null,null,"15 months",null,null,null,null,"18 months",null,null,null,null,"Basic",null,null,null,null,"3 months",null,null,null,null,"6 months",null,null,null,null,"9 months",null,null,null,null,"12 months",null,null,null,null,"15 months",null,null,null,null,"18 months",null,null,null,null,"Basic",null,null,null,null,"3 months",null,null,null,null,"6 months",null,null,null,null,"9 months",null,null,null,null,"12 months",null,null,null,null,"15 months",null,null,null,null,"18 months",null,null,null,null,"Basic",null,null,null,null,"3 months",null,null,null,null,"6 months",null,null,null,null,"9 months",null,null,null,null,"12 months",null,null,null,null,"15 months",null,null,null,null,"18 months",null,null,null,null,"Basic",null,null,null,null,"3 months",null,null,null,null,"6 months",null,null,null,null,"9 months",null,null,null,null,"12 months",null,null,null,null,"15 months",null,null,null,null,"18 months"]
[null,"Date of assessment","Date",null,null,null,null,"Date",null,null,null,null,"Date",null,null,null,null,"Date",null,null,null,null,"Date",null,null,null,null,"Date",null,null,null,null,"Date",null,null,null,null,"Date",null,null,null,null,"Date",null,null,null,null,"Date",null,null,null,null,"Date",null,null,null,null,"Date",null,null,null,null,"Date",null,null,null,null,"Date",null,null,null,null,"Date",null,null,null,null,"Date",null,null,null,null,"Date",null,null,null,null,"Date",null,null,null,null,"Date",null,null,null,null,"Date",null,null,null,null,"Date",null,null,null,null,"Date",null,null,null,null,"Date",null,null,null,null,"Date",null,null,null,null,null,null,null,null,null,"Date",null,null,null,null,"Date",null,null,null,null,"Date",null,null,null,null,"Date",null,null,null,null,"Date",null,null,null,null,"Date",null,null,null,null,"Date",null,null,null,null,"Date",null,null,null,null,"Date",null,null,null,null,"Date",null,null,null,null,"Date",null,null,null,null,"Date",null,null,null,null,"Date",null,null,null,null,"Date",null,null,null,null,"Date",null,null,null,null,"Date",null,null,null,null,"Date",null,null,null,null,"Date",null,null,null,null,"Date",null,null,null,null,"Date",null,null,null,null,"Date",null,null,null,null,"Date",null,null,null,null,"Date",null,null,null,null,"Date",null,null,null,null,"Date",null,null,null,null,"Date",null,null,null,null,"Date",null,null,null,null,"Date",null,null,null,null,"Date",null,null,null,null,"Date",null,null,null,null,"Date"]
[null,"Administrative controls indicators","Rate","Investigation","Qualification","Attachment","Remark","Rate","Investigation","Qualification","Attachment","Remark","Rate","Investigation","Qualification","Attachment","Remark","Rate","Investigation","Qualification","Attachment","Remark","Rate","Investigation","Qualification","Attachment","Remark","Rate","Investigation","Qualification","Attachment","Remark",null,"Investigation","Qualification","Attachment","Remark","Rate","Investigation","Qualification","Attachment","Remark","Rate","Investigation","Qualification","Attachment","Remark","Rate","Investigation","Qualification","Attachment","Remark","Rate","Investigation","Qualification","Attachment","Remark","Rate","Investigation","Qualification","Attachment","Remark","Rate","Investigation","Qualification","Attachment","Remark","Rate","Investigation","Qualification","Attachment","Remark","Rate","Investigation","Qualification","Attachment","Remark","Rate","Investigation","Qualification","Attachment","Remark","Rate","Investigation","Qualification","Attachment","Remark","Rate","Investigation","Qualification","Attachment","Remark","Rate","Investigation","Qualification","Attachment","Remark",null,"Investigation","Qualification","Attachment","Remark","Rate","Investigation","Qualification","Attachment","Remark","Rate","Investigation","Qualification","Attachment","Remark","Rate","Investigation","Qualification","Attachment","Remark","Rate","Investigation","Qualification","Attachment","Remark","Rate","Investigation","Qualification","Attachment","Remark","Rate","Investigation","Qualification","Attachment","Remark","Rate","Investigation","Qualification","Attachment","Remark","Rate","Investigation","Qualification","Attachment","Remark","Rate","Investigation","Qualification","Attachment","Remark","Rate","Investigation","Qualification","Attachment","Remark","Rate","Investigation","Qualification","Attachment","Remark","Rate","Investigation","Qualification","Attachment","Remark",null,"Investigation","Qualification","Attachment","Remark","Rate","Investigation","Qualification","Attachment","Remark","Rate","Investigation","Qualification","Attachment","Remark","Rate","Investigation","Qualification","Attachment","Remark","Rate","Investigation","Qualification","Attachment","Remark","Rate","Investigation","Qualification","Attachment","Remark","Rate","Investigation","Qualification","Attachment","Remark","Rate","Investigation","Qualification","Attachment","Remark","Rate","Investigation","Qualification","Attachment","Remark","Rate","Investigation","Qualification","Attachment","Remark","Rate","Investigation","Qualification","Attachment","Remark","Rate","Investigation","Qualification","Attachment","Remark","Rate","Investigation","Qualification","Attachment","Remark",null,"Investigation","Qualification","Attachment","Remark","Rate","Investigation","Qualification","Attachment","Remark","Rate","Investigation","Qualification","Attachment","Remark","Rate","Investigation","Qualification","Attachment","Remark","Rate","Investigation","Qualification","Attachment","Remark","Rate","Investigation","Qualification","Attachment","Remark","Rate","Investigation","Qualification","Attachment","Remark","Rate","Investigation","Qualification","Attachment","Remark","Rate","Investigation","Qualification","Attachment","Remark","Rate","Investigation","Qualification","Attachment","Remark","Rate","Investigation","Qualification","Attachment","Remark"]
[1,"Patients are routinely asked about cough upon entering the ward (e.g. at admission)",0,6,null,null,null,2,null,null,null,null,2,null,null,null,null,2,null,null,null,null,2,null,null,null,null,2,null,null,null,null,2]
[2,"Patients receive guidance and education on cough etiquette",1,null,null,null,null,1,null,null,null,null,1,null,null,null,null,1,null,null,null,null,2,null,null,null,null,2,null,null,null,null,2]
[3,"Patients with cough or other symptoms of TB are promptly separated from others",1,null,null,null,null,1,null,null,null,null,1,null,null,null,null,1,null,null,null,null,1,null,null,null,null,2,null,null,null,null,2]
[4,"Signage for cough etiquette is present",1,null,null,null,null,1,null,null,null,null,1,null,null,null,null,1,null,null,null,null,2,null,null,null,null,2,null,null,null,null,2]
[5,"Supplies are available for coughing patients (tissues, masks, cloths, trash bins, etc.)",2,null,null,null,null,2,null,null,null,null,2,null,null,null,null,2,null,null,null,null,2,null,null,null,null,2,null,null,null,null,2]
[6,"Sputum samples are collected in a designated area with good ventilation away from others",0,null,null,null,null,1,null,null,null,null,1,null,null,null,null,1,null,null,null,null,2,null,null,null,null,2,null,null,null,null,2]
[7,"Sputum smear results are received within 24 hours (the time between sputum collection and sending the test result to the doctor)",2,null,null,null,null,2,null,null,null,null,2,null,null,null,null,2,null,null,null,null,2,null,null,null,null,2,null,null,null,null,2]
[8,"Xpert MTB/RIF results are received within 24 hours (the time between sputum collection and sending the test result to the doctor)","NA",null,null,null,null,"NA",null,null,null,null,"NA",null,null,null,null,"NA",null,null,null,null,"NA",null,null,null,null,"NA",null,null,null,null,"NA"]
[9,"Drug resistance testing is performed in persons with suspected drug-resistant TB  (five categories as defined by China NTP: 1. Chronic infectious patients /patients with failed treatment; 2. Smear positive patients also have close contact with MDR-TB patients; 3. Patients failed initial treatment; 4. Recurrent patients and patients who return for treatment; 5. New cases stay smear positive at the end of three months treatment)",2,null,null,null,null,2,null,null,null,null,2,null,null,null,null,2,null,null,null,null,2,null,null,null,null,2,null,null,null,null,2]
[10,"Patients with suspected TB are separated from other patients in a separate room/ward",0,null,null,null,null,0,null,null,null,null,0,null,null,null,null,0,null,null,null,null,0,null,null,null,null,2,null,null,null,null,2]
[11,"Diagnosed TB patients are separated from other patients in a separate room/ward",0,null,null,null,null,1,null,null,null,null,1,null,null,null,null,1,null,null,null,null,2,null,null,null,null,2,null,null,null,null,2]
[12,"Patients with suspected drug-resistant TB are separated from other patients in a separate room/ward (five categories of suspected drug-resistant TB as defined by China NTP: 1. Chronic infectious patients /patients with failed treatment; 2. Smear positive patients also have close contact with MDR-TB patients; 3. Patients failed initial treatment; 4. Recurrent patients and patients who return for treatment; 5. New cases stay smear positive at the end of three months treatment)",0,null,null,null,null,1,null,null,null,null,1,null,null,null,null,1,null,null,null,null,2,null,null,null,null,2,null,null,null,null,2]
[13,"Diagnosed DR TB patients are separated from other patients in a separate room/ward","NA",null,null,null,null,"NA",null,null,null,null,"NA",null,null,null,null,"NA",null,null,null,null,"NA",null,null,null,null,"NA",null,null,null,null,"NA"]
[14,"Whether or not have non-TB patients in the TB ward?",1,null,null,null,null,1,null,null,null,null,1,null,null,null,null,1,null,null,null,null,1,null,null,null,null,1,null,null,null,null,1]
[15,"There is a formal system for linking patients diagnosed with TB in the inpatient setting to outpatient care for follow-up (or to TB/DOT clinic for follow-up)",2,null,null,null,null,2,null,null,null,null,2,null,null,null,null,2,null,null,null,null,2,null,null,null,null,2,null,null,null,null,2]
[null,"The implementation of administrative controls indicators",{"$f":"SUM(C6:C20)/(2*(COUNTIF(C6:C20,\"<>NA\")))","v":0.46153846153846156},null,null,null,null,{"$f":"SUM(H6:H20)/(2*(COUNTIF(H6:H20,\"<>NA\")))","v":0.65384615384615385},null,null,null,null,{"$f":"SUM(M6:M20)/(2*(COUNTIF(M6:M20,\"<>NA\")))","v":0.65384615384615385},null,null,null,null,{"$f":"SUM(R6:R20)/(2*(COUNTIF(R6:R20,\"<>NA\")))","v":0.65384615384615385},null,null,null,null,{"$f":"SUM(W6:W20)/(2*(COUNTIF(W6:W20,\"<>NA\")))","v":0.84615384615384615},null,null,null,null,{"$f":"SUM(AB6:AB20)/(2*(COUNTIF(AB6:AB20,\"<>NA\")))","v":0.96153846153846156},null,null,null,null,{"$f":"SUM(AG6:AG20)/(2*(COUNTIF(AG6:AG20,\"<>NA\")))","v":0.96153846153846156},null,null,null,null,{"$f":"SUM(AL6:AL20)/(2*(COUNTIF(AL6:AL20,\"<>NA\")))","v":0},null,null,null,null,{"$f":"SUM(AQ6:AQ20)/(2*(COUNTIF(AQ6:AQ20,\"<>NA\")))","v":0},null,null,null,null,{"$f":"SUM(AV6:AV20)/(2*(COUNTIF(AV6:AV20,\"<>NA\")))","v":0},null,null,null,null,{"$f":"SUM(BA6:BA20)/(2*(COUNTIF(BA6:BA20,\"<>NA\")))","v":0},null,null,null,null,{"$f":"SUM(BF6:BF20)/(2*(COUNTIF(BF6:BF20,\"<>NA\")))","v":0},null,null,null,null,{"$f":"SUM(BK6:BK20)/(2*(COUNTIF(BK6:BK20,\"<>NA\")))","v":0},null,null,null,null,{"$f":"SUM(BP6:BP20)/(2*(COUNTIF(BP6:BP20,\"<>NA\")))","v":0},null,null,null,null,{"$f":"SUM(BU6:BU20)/(2*(COUNTIF(BU6:BU20,\"<>NA\")))","v":0},null,null,null,null,{"$f":"SUM(BZ6:BZ20)/(2*(COUNTIF(BZ6:BZ20,\"<>NA\")))","v":0},null,null,null,null,{"$f":"SUM(CE6:CE20)/(2*(COUNTIF(CE6:CE20,\"<>NA\")))","v":0},null,null,null,null,{"$f":"SUM(CJ6:CJ20)/(2*(COUNTIF(CJ6:CJ20,\"<>NA\")))","v":0},null,null,null,null,{"$f":"SUM(CO6:CO20)/(2*(COUNTIF(CO6:CO20,\"<>NA\")))","v":0},null,null,null,null,{"$f":"SUM(CT6:CT20)/(2*(COUNTIF(CT6:CT20,\"<>NA\")))","v":0},null,null,null,null,{"$f":"SUM(CY6:CY20)/(2*(COUNTIF(CY6:CY20,\"<>NA\")))","v":0},null,null,null,null,{"$f":"SUM(DD6:DD20)/(2*(COUNTIF(DD6:DD20,\"<>NA\")))","v":0},null,null,null,null,{"$f":"SUM(DI6:DI20)/(2*(COUNTIF(DI6:DI20,\"<>NA\")))","v":0},null,null,null,null,{"$f":"SUM(DN6:DN20)/(2*(COUNTIF(DN6:DN20,\"<>NA\")))","v":0},null,null,null,null,{"$f":"SUM(DS6:DS20)/(2*(COUNTIF(DS6:DS20,\"<>NA\")))","v":0},null,null,null,null,{"$f":"SUM(DX6:DX20)/(2*(COUNTIF(DX6:DX20,\"<>NA\")))","v":0},null,null,null,null,{"$f":"SUM(EC6:EC20)/(2*(COUNTIF(EC6:EC20,\"<>NA\")))","v":0},null,null,null,null,{"$f":"SUM(EH6:EH20)/(2*(COUNTIF(EH6:EH20,\"<>NA\")))","v":0},null,null,null,null,{"$f":"SUM(EM6:EM20)/(2*(COUNTIF(EM6:EM20,\"<>NA\")))","v":0},null,null,null,null,{"$f":"SUM(ER6:ER20)/(2*(COUNTIF(ER6:ER20,\"<>NA\")))","v":0},null,null,null,null,{"$f":"SUM(EW6:EW20)/(2*(COUNTIF(EW6:EW20,\"<>NA\")))","v":0},null,null,null,null,{"$f":"SUM(FB6:FB20)/(2*(COUNTIF(FB6:FB20,\"<>NA\")))","v":0},null,null,null,null,{"$f":"SUM(FG6:FG20)/(2*(COUNTIF(FG6:FG20,\"<>NA\")))","v":0},null,null,null,null,{"$f":"SUM(FL6:FL20)/(2*(COUNTIF(FL6:FL20,\"<>NA\")))","v":0},null,null,null,null,{"$f":"SUM(FQ6:FQ20)/(2*(COUNTIF(FQ6:FQ20,\"<>NA\")))","v":0},null,null,null,null,{"$f":"SUM(FV6:FV20)/(2*(COUNTIF(FV6:FV20,\"<>NA\")))","v":0},null,null,null,null,{"$f":"SUM(GA6:GA20)/(2*(COUNTIF(GA6:GA20,\"<>NA\")))","v":0},null,null,null,null,{"$f":"SUM(GF6:GF20)/(2*(COUNTIF(GF6:GF20,\"<>NA\")))","v":0},null,null,null,null,{"$f":"SUM(GK6:GK20)/(2*(COUNTIF(GK6:GK20,\"<>NA\")))","v":0},null,null,null,null,{"$f":"SUM(GP6:GP20)/(2*(COUNTIF(GP6:GP20,\"<>NA\")))","v":0},null,null,null,null,{"$f":"SUM(GU6:GU20)/(2*(COUNTIF(GU6:GU20,\"<>NA\")))","v":0},null,null,null,null,{"$f":"SUM(GZ6:GZ20)/(2*(COUNTIF(GZ6:GZ20,\"<>NA\")))","v":0},null,null,null,null,{"$f":"SUM(HE6:HE20)/(2*(COUNTIF(HE6:HE20,\"<>NA\")))","v":0},null,null,null,null,{"$f":"SUM(HJ6:HJ20)/(2*(COUNTIF(HJ6:HJ20,\"<>NA\")))","v":0},null,null,null,null,{"$f":"SUM(HO6:HO20)/(2*(COUNTIF(HO6:HO20,\"<>NA\")))","v":0},null,null,null,null,{"$f":"SUM(HT6:HT20)/(2*(COUNTIF(HT6:HT20,\"<>NA\")))","v":0},null,null,null,null,{"$f":"SUM(HY6:HY20)/(2*(COUNTIF(HY6:HY20,\"<>NA\")))","v":0},null,null,null,null,{"$f":"SUM(ID6:ID20)/(2*(COUNTIF(ID6:ID20,\"<>NA\")))","v":0},null,null,null,null,{"$f":"SUM(II6:II20)/(2*(COUNTIF(II6:II20,\"<>NA\")))","v":0},null,null,null,null,{"$f":"SUM(IN6:IN20)/(2*(COUNTIF(IN6:IN20,\"<>NA\")))","v":0},null,null,null,null,{"$f":"SUM(IS6:IS20)/(2*(COUNTIF(IS6:IS20,\"<>NA\")))","v":0},null,null,null,null,{"$f":"SUM(IX6:IX20)/(2*(COUNTIF(IX6:IX20,\"<>NA\")))","v":0},null,null,null,null,{"$f":"SUM(JC6:JC20)/(2*(COUNTIF(JC6:JC20,\"<>NA\")))","v":0},null,null,null,null,{"$f":"SUM(JH6:JH20)/(2*(COUNTIF(JH6:JH20,\"<>NA\")))","v":0},null,null,null,null,{"$f":"SUM(JM6:JM20)/(2*(COUNTIF(JM6:JM20,\"<>NA\")))","v":0},null,null,null,null,{"$f":"SUM(JR6:JR20)/(2*(COUNTIF(JR6:JR20,\"<>NA\")))","v":0}]
[null,"Environmental controls indicators","Rate","Investigation","Qualification","Attachment","Remark","Rate","Investigation","Qualification","Attachment","Remark","Rate","Investigation","Qualification","Attachment","Remark","Rate","Investigation","Qualification","Attachment","Remark","Rate","Investigation","Qualification","Attachment","Remark","Rate","Investigation","Qualification","Attachment","Remark",null,"Investigation","Qualification","Attachment","Remark","Rate","Investigation","Qualification","Attachment","Remark","Rate","Investigation","Qualification","Attachment","Remark","Rate","Investigation","Qualification","Attachment","Remark","Rate","Investigation","Qualification","Attachment","Remark","Rate","Investigation","Qualification","Attachment","Remark","Rate","Investigation","Qualification","Attachment","Remark","Rate","Investigation","Qualification","Attachment","Remark","Rate","Investigation","Qualification","Attachment","Remark","Rate","Investigation","Qualification","Attachment","Remark","Rate","Investigation","Qualification","Attachment","Remark","Rate","Investigation","Qualification","Attachment","Remark","Rate","Investigation","Qualification","Attachment","Remark",null,"Investigation","Qualification","Attachment","Remark","Rate","Investigation","Qualification","Attachment","Remark","Rate","Investigation","Qualification","Attachment","Remark","Rate","Investigation","Qualification","Attachment","Remark","Rate","Investigation","Qualification","Attachment","Remark","Rate","Investigation","Qualification","Attachment","Remark","Rate","Investigation","Qualification","Attachment","Remark","Rate","Investigation","Qualification","Attachment","Remark","Rate","Investigation","Qualification","Attachment","Remark","Rate","Investigation","Qualification","Attachment","Remark","Rate","Investigation","Qualification","Attachment","Remark","Rate","Investigation","Qualification","Attachment","Remark","Rate","Investigation","Qualification","Attachment","Remark",null,"Investigation","Qualification","Attachment","Remark","Rate","Investigation","Qualification","Attachment","Remark","Rate","Investigation","Qualification","Attachment","Remark","Rate","Investigation","Qualification","Attachment","Remark","Rate","Investigation","Qualification","Attachment","Remark","Rate","Investigation","Qualification","Attachment","Remark","Rate","Investigation","Qualification","Attachment","Remark","Rate","Investigation","Qualification","Attachment","Remark","Rate","Investigation","Qualification","Attachment","Remark","Rate","Investigation","Qualification","Attachment","Remark","Rate","Investigation","Qualification","Attachment","Remark","Rate","Investigation","Qualification","Attachment","Remark","Rate","Investigation","Qualification","Attachment","Remark",null,"Investigation","Qualification","Attachment","Remark","Rate","Investigation","Qualification","Attachment","Remark","Rate","Investigation","Qualification","Attachment","Remark","Rate","Investigation","Qualification","Attachment","Remark","Rate","Investigation","Qualification","Attachment","Remark","Rate","Investigation","Qualification","Attachment","Remark","Rate","Investigation","Qualification","Attachment","Remark","Rate","Investigation","Qualification","Attachment","Remark","Rate","Investigation","Qualification","Attachment","Remark","Rate","Investigation","Qualification","Attachment","Remark","Rate","Investigation","Qualification","Attachment","Remark"]
[16,"Natural ventilation: Openings on opposing walls of room",2,null,null,null,null,2,null,null,null,null,2,null,null,null,null,2,null,null,null,null,2,null,null,null,null,2,null,null,null,null,2]
[17,"Natural ventilation: Areas of openings (window/door) of at least 10% of area of room (length*width of the floor) on opposing sides of room (total areas of windows and doors ≥20% total area of the floor)",2,null,null,null,null,2,null,null,null,null,2,null,null,null,null,2,null,null,null,null,2,null,null,null,null,2,null,null,null,null,2]
[18,"Natural ventilation: Signage is in place to keep doors and windows open",0,null,null,null,null,0,null,null,null,null,0,null,null,null,null,0,null,null,null,null,2,null,null,null,null,2,null,null,null,null,2]
[19,"Natural ventilation: All appropriate windows/doors are open on observation",1,null,null,null,null,1,null,null,null,null,2,null,null,null,null,2,null,null,null,null,2,null,null,null,null,2,null,null,null,null,2]
[20,"Natural ventilation and mechanical ventilation: No chemical or human odors relative to the outdoors",2,null,null,null,null,2,null,null,null,null,2,null,null,null,null,2,null,null,null,null,2,null,null,null,null,2,null,null,null,null,2]
[21,"Mechanical and natural ventilation: Visualization of airflow patterns with smoke from supply and exhaust grilles/openings (use smoke tube, incense etc. for smoke)",1,null,null,null,null,1,null,null,null,null,2,null,null,null,null,2,null,null,null,null,2,null,null,null,null,2,null,null,null,null,2]
[22,"Mechanical ventilation: Regular maintenance for directional and extractor fans is conducted",1,null,null,null,null,1,null,null,null,null,1,null,null,null,null,1,null,null,null,null,1,null,null,null,null,2,null,null,null,null,2]
[23,"Occupancy of wards does not exceed one person per 6 square meters",2,null,null,null,null,2,null,null,null,null,2,null,null,null,null,2,null,null,null,null,2,null,null,null,null,2,null,null,null,null,2]
[24,"If beds are present, there is at least 1.1 meters between two beds, for prevention of droplet transmission",2,null,null,null,null,2,null,null,null,null,2,null,null,null,null,2,null,null,null,null,2,null,null,null,null,2,null,null,null,null,2]
[25,"Patients are not crowded in waiting areas, hallways or wards",2,null,null,null,null,2,null,null,null,null,2,null,null,null,null,2,null,null,null,null,2,null,null,null,null,2,null,null,null,null,2]
[26,"Traditional UVGI is being used properly (based on China standards)",2,null,null,null,null,2,null,null,null,null,2,null,null,null,null,2,null,null,null,null,2,null,null,null,null,2,null,null,null,null,2]
[27,"Upper-room UVGI is being used properly (based on China standards)","NA",null,null,null,null,"NA",null,null,null,null,"NA",null,null,null,null,"NA",null,null,null,null,"NA",null,null,null,null,"NA",null,null,null,null,"NA"]
[null,"The implementation of environmental controls indicators",{"$f":"SUM(C23:C34)/(2*(COUNTIF(C23:C34,\"<>NA\")))","v":0.77272727272727271},null,null,null,null,{"$f":"SUM(H23:H34)/(2*(COUNTIF(H23:H34,\"<>NA\")))","v":0.77272727272727271},null,null,null,null,{"$f":"SUM(M23:M34)/(2*(COUNTIF(M23:M34,\"<>NA\")))","v":0.86363636363636365},null,null,null,null,{"$f":"SUM(R23:R34)/(2*(COUNTIF(R23:R34,\"<>NA\")))","v":0.86363636363636365},null,null,null,null,{"$f":"SUM(W23:W34)/(2*(COUNTIF(W23:W34,\"<>NA\")))","v":0.95454545454545459},null,null,null,null,{"$f":"SUM(AB23:AB34)/(2*(COUNTIF(AB23:AB34,\"<>NA\")))","v":1},null,null,null,null,{"$f":"SUM(AG23:AG34)/(2*(COUNTIF(AG23:AG34,\"<>NA\")))","v":1},null,null,null,null,{"$f":"SUM(AL23:AL34)/(2*(COUNTIF(AL23:AL34,\"<>NA\")))","v":0},null,null,null,null,{"$f":"SUM(AQ23:AQ34)/(2*(COUNTIF(AQ23:AQ34,\"<>NA\")))","v":0},null,null,null,null,{"$f":"SUM(AV23:AV34)/(2*(COUNTIF(AV23:AV34,\"<>NA\")))","v":0},null,null,null,null,{"$f":"SUM(BA23:BA34)/(2*(COUNTIF(BA23:BA34,\"<>NA\")))","v":0},null,null,null,null,{"$f":"SUM(BF23:BF34)/(2*(COUNTIF(BF23:BF34,\"<>NA\")))","v":0},null,null,null,null,{"$f":"SUM(BK23:BK34)/(2*(COUNTIF(BK23:BK34,\"<>NA\")))","v":0},null,null,null,null,{"$f":"SUM(BP23:BP34)/(2*(COUNTIF(BP23:BP34,\"<>NA\")))","v":0},null,null,null,null,{"$f":"SUM(BU23:BU34)/(2*(COUNTIF(BU23:BU34,\"<>NA\")))","v":0},null,null,null,null,{"$f":"SUM(BZ23:BZ34)/(2*(COUNTIF(BZ23:BZ34,\"<>NA\")))","v":0},null,null,null,null,{"$f":"SUM(CE23:CE34)/(2*(COUNTIF(CE23:CE34,\"<>NA\")))","v":0},null,null,null,null,{"$f":"SUM(CJ23:CJ34)/(2*(COUNTIF(CJ23:CJ34,\"<>NA\")))","v":0},null,null,null,null,{"$f":"SUM(CO23:CO34)/(2*(COUNTIF(CO23:CO34,\"<>NA\")))","v":0},null,null,null,null,{"$f":"SUM(CT23:CT34)/(2*(COUNTIF(CT23:CT34,\"<>NA\")))","v":0},null,null,null,null,{"$f":"SUM(CY23:CY34)/(2*(COUNTIF(CY23:CY34,\"<>NA\")))","v":0},null,null,null,null,{"$f":"SUM(DD23:DD34)/(2*(COUNTIF(DD23:DD34,\"<>NA\")))","v":0},null,null,null,null,{"$f":"SUM(DI23:DI34)/(2*(COUNTIF(DI23:DI34,\"<>NA\")))","v":0},null,null,null,null,{"$f":"SUM(DN23:DN34)/(2*(COUNTIF(DN23:DN34,\"<>NA\")))","v":0},null,null,null,null,{"$f":"SUM(DS23:DS34)/(2*(COUNTIF(DS23:DS34,\"<>NA\")))","v":0},null,null,null,null,{"$f":"SUM(DX23:DX34)/(2*(COUNTIF(DX23:DX34,\"<>NA\")))","v":0},null,null,null,null,{"$f":"SUM(EC23:EC34)/(2*(COUNTIF(EC23:EC34,\"<>NA\")))","v":0},null,null,null,null,{"$f":"SUM(EH23:EH34)/(2*(COUNTIF(EH23:EH34,\"<>NA\")))","v":0},null,null,null,null,{"$f":"SUM(EM23:EM34)/(2*(COUNTIF(EM23:EM34,\"<>NA\")))","v":0},null,null,null,null,{"$f":"SUM(ER23:ER34)/(2*(COUNTIF(ER23:ER34,\"<>NA\")))","v":0},null,null,null,null,{"$f":"SUM(EW23:EW34)/(2*(COUNTIF(EW23:EW34,\"<>NA\")))","v":0},null,null,null,null,{"$f":"SUM(FB23:FB34)/(2*(COUNTIF(FB23:FB34,\"<>NA\")))","v":0},null,null,null,null,{"$f":"SUM(FG23:FG34)/(2*(COUNTIF(FG23:FG34,\"<>NA\")))","v":0},null,null,null,null,{"$f":"SUM(FL23:FL34)/(2*(COUNTIF(FL23:FL34,\"<>NA\")))","v":0},null,null,null,null,{"$f":"SUM(FQ23:FQ34)/(2*(COUNTIF(FQ23:FQ34,\"<>NA\")))","v":0},null,null,null,null,{"$f":"SUM(FV23:FV34)/(2*(COUNTIF(FV23:FV34,\"<>NA\")))","v":0},null,null,null,null,{"$f":"SUM(GA23:GA34)/(2*(COUNTIF(GA23:GA34,\"<>NA\")))","v":0},null,null,null,null,{"$f":"SUM(GF23:GF34)/(2*(COUNTIF(GF23:GF34,\"<>NA\")))","v":0},null,null,null,null,{"$f":"SUM(GK23:GK34)/(2*(COUNTIF(GK23:GK34,\"<>NA\")))","v":0},null,null,null,null,{"$f":"SUM(GP23:GP34)/(2*(COUNTIF(GP23:GP34,\"<>NA\")))","v":0},null,null,null,null,{"$f":"SUM(GU23:GU34)/(2*(COUNTIF(GU23:GU34,\"<>NA\")))","v":0},null,null,null,null,{"$f":"SUM(GZ23:GZ34)/(2*(COUNTIF(GZ23:GZ34,\"<>NA\")))","v":0},null,null,null,null,{"$f":"SUM(HE23:HE34)/(2*(COUNTIF(HE23:HE34,\"<>NA\")))","v":0},null,null,null,null,{"$f":"SUM(HJ23:HJ34)/(2*(COUNTIF(HJ23:HJ34,\"<>NA\")))","v":0},null,null,null,null,{"$f":"SUM(HO23:HO34)/(2*(COUNTIF(HO23:HO34,\"<>NA\")))","v":0},null,null,null,null,{"$f":"SUM(HT23:HT34)/(2*(COUNTIF(HT23:HT34,\"<>NA\")))","v":0},null,null,null,null,{"$f":"SUM(HY23:HY34)/(2*(COUNTIF(HY23:HY34,\"<>NA\")))","v":0},null,null,null,null,{"$f":"SUM(ID23:ID34)/(2*(COUNTIF(ID23:ID34,\"<>NA\")))","v":0},null,null,null,null,{"$f":"SUM(II23:II34)/(2*(COUNTIF(II23:II34,\"<>NA\")))","v":0},null,null,null,null,{"$f":"SUM(IN23:IN34)/(2*(COUNTIF(IN23:IN34,\"<>NA\")))","v":0},null,null,null,null,{"$f":"SUM(IS23:IS34)/(2*(COUNTIF(IS23:IS34,\"<>NA\")))","v":0},null,null,null,null,{"$f":"SUM(IX23:IX34)/(2*(COUNTIF(IX23:IX34,\"<>NA\")))","v":0},null,null,null,null,{"$f":"SUM(JC23:JC34)/(2*(COUNTIF(JC23:JC34,\"<>NA\")))","v":0},null,null,null,null,{"$f":"SUM(JH23:JH34)/(2*(COUNTIF(JH23:JH34,\"<>NA\")))","v":0},null,null,null,null,{"$f":"SUM(JM23:JM34)/(2*(COUNTIF(JM23:JM34,\"<>NA\")))","v":0},null,null,null,null,{"$f":"SUM(JR23:JR34)/(2*(COUNTIF(JR23:JR34,\"<>NA\")))","v":0}]
[null,"Personal protective equipment indicators","Rate","Investigation","Qualification","Attachment","Remark","Rate","Investigation","Qualification","Attachment","Remark","Rate","Investigation","Qualification","Attachment","Remark","Rate","Investigation","Qualification","Attachment","Remark","Rate","Investigation","Qualification","Attachment","Remark","Rate","Investigation","Qualification","Attachment","Remark",null,"Investigation","Qualification","Attachment","Remark","Rate","Investigation","Qualification","Attachment","Remark","Rate","Investigation","Qualification","Attachment","Remark","Rate","Investigation","Qualification","Attachment","Remark","Rate","Investigation","Qualification","Attachment","Remark","Rate","Investigation","Qualification","Attachment","Remark","Rate","Investigation","Qualification","Attachment","Remark","Rate","Investigation","Qualification","Attachment","Remark","Rate","Investigation","Qualification","Attachment","Remark","Rate","Investigation","Qualification","Attachment","Remark","Rate","Investigation","Qualification","Attachment","Remark","Rate","Investigation","Qualification","Attachment","Remark","Rate","Investigation","Qualification","Attachment","Remark",null,"Investigation","Qualification","Attachment","Remark","Rate","Investigation","Qualification","Attachment","Remark","Rate","Investigation","Qualification","Attachment","Remark","Rate","Investigation","Qualification","Attachment","Remark","Rate","Investigation","Qualification","Attachment","Remark","Rate","Investigation","Qualification","Attachment","Remark","Rate","Investigation","Qualification","Attachment","Remark","Rate","Investigation","Qualification","Attachment","Remark","Rate","Investigation","Qualification","Attachment","Remark","Rate","Investigation","Qualification","Attachment","Remark","Rate","Investigation","Qualification","Attachment","Remark","Rate","Investigation","Qualification","Attachment","Remark","Rate","Investigation","Qualification","Attachment","Remark",null,"Investigation","Qualification","Attachment","Remark","Rate","Investigation","Qualification","Attachment","Remark","Rate","Investigation","Qualification","Attachment","Remark","Rate","Investigation","Qualification","Attachment","Remark","Rate","Investigation","Qualification","Attachment","Remark","Rate","Investigation","Qualification","Attachment","Remark","Rate","Investigation","Qualification","Attachment","Remark","Rate","Investigation","Qualification","Attachment","Remark","Rate","Investigation","Qualification","Attachment","Remark","Rate","Investigation","Qualification","Attachment","Remark","Rate","Investigation","Qualification","Attachment","Remark","Rate","Investigation","Qualification","Attachment","Remark","Rate","Investigation","Qualification","Attachment","Remark",null,"Investigation","Qualification","Attachment","Remark","Rate","Investigation","Qualification","Attachment","Remark","Rate","Investigation","Qualification","Attachment","Remark","Rate","Investigation","Qualification","Attachment","Remark","Rate","Investigation","Qualification","Attachment","Remark","Rate","Investigation","Qualification","Attachment","Remark","Rate","Investigation","Qualification","Attachment","Remark","Rate","Investigation","Qualification","Attachment","Remark","Rate","Investigation","Qualification","Attachment","Remark","Rate","Investigation","Qualification","Attachment","Remark","Rate","Investigation","Qualification","Attachment","Remark"]
[28,"Surgical masks are available for patients with cough or other TB symptoms",1,null,null,null,null,1,null,null,null,null,1,null,null,null,null,1,null,null,null,null,1,null,null,null,null,2,null,null,null,null,2]
[29,"Respirators that meet the national or international standard are readily available to all staff who have contact with patients with TB or suspected of having TB in this ward",2,null,null,null,null,2,null,null,null,null,2,null,null,null,null,2,null,null,null,null,2,null,null,null,null,2,null,null,null,null,2]
[30,"Staff were trained on proper respirator use in the past year",2,null,null,null,null,2,null,null,null,null,2,null,null,null,null,2,null,null,null,null,2,null,null,null,null,2,null,null,null,null,2]
[31,"Staff can demonstrate proper respirator use (i.e., putting on, removing, seal check, and storage)",2,null,null,null,null,2,null,null,null,null,2,null,null,null,null,2,null,null,null,null,2,null,null,null,null,2,null,null,null,null,2]
[32,"There have been no stock-outs of surgical masks in the past 3 months",2,null,null,null,null,2,null,null,null,null,2,null,null,null,null,2,null,null,null,null,2,null,null,null,null,2,null,null,null,null,2]
[33,"There have been no stock-outs of respirators in the past 3 months",2,null,null,null,null,2,null,null,null,null,2,null,null,null,null,2,null,null,null,null,2,null,null,null,null,2,null,null,null,null,2]
[null,"The implementation of personal protective equipment indicators",{"$f":"SUM(C37:C42)/(2*(COUNTIF(C37:C42,\"<>NA\")))","v":0.91666666666666663},null,null,null,null,{"$f":"SUM(H37:H42)/(2*(COUNTIF(H37:H42,\"<>NA\")))","v":0.91666666666666663},null,null,null,null,{"$f":"SUM(M37:M42)/(2*(COUNTIF(M37:M42,\"<>NA\")))","v":0.91666666666666663},null,null,null,null,{"$f":"SUM(R37:R42)/(2*(COUNTIF(R37:R42,\"<>NA\")))","v":0.91666666666666663},null,null,null,null,{"$f":"SUM(W37:W42)/(2*(COUNTIF(W37:W42,\"<>NA\")))","v":0.91666666666666663},null,null,null,null,{"$f":"SUM(AB37:AB42)/(2*(COUNTIF(AB37:AB42,\"<>NA\")))","v":1},null,null,null,null,{"$f":"SUM(AG37:AG42)/(2*(COUNTIF(AG37:AG42,\"<>NA\")))","v":1},null,null,null,null,{"$f":"SUM(AL37:AL42)/(2*(COUNTIF(AL37:AL42,\"<>NA\")))","v":0},null,null,null,null,{"$f":"SUM(AQ37:AQ42)/(2*(COUNTIF(AQ37:AQ42,\"<>NA\")))","v":0},null,null,null,null,{"$f":"SUM(AV37:AV42)/(2*(COUNTIF(AV37:AV42,\"<>NA\")))","v":0},null,null,null,null,{"$f":"SUM(BA37:BA42)/(2*(COUNTIF(BA37:BA42,\"<>NA\")))","v":0},null,null,null,null,{"$f":"SUM(BF37:BF42)/(2*(COUNTIF(BF37:BF42,\"<>NA\")))","v":0},null,null,null,null,{"$f":"SUM(BK37:BK42)/(2*(COUNTIF(BK37:BK42,\"<>NA\")))","v":0},null,null,null,null,{"$f":"SUM(BP37:BP42)/(2*(COUNTIF(BP37:BP42,\"<>NA\")))","v":0},null,null,null,null,{"$f":"SUM(BU37:BU42)/(2*(COUNTIF(BU37:BU42,\"<>NA\")))","v":0},null,null,null,null,{"$f":"SUM(BZ37:BZ42)/(2*(COUNTIF(BZ37:BZ42,\"<>NA\")))","v":0},null,null,null,null,{"$f":"SUM(CE37:CE42)/(2*(COUNTIF(CE37:CE42,\"<>NA\")))","v":0},null,null,null,null,{"$f":"SUM(CJ37:CJ42)/(2*(COUNTIF(CJ37:CJ42,\"<>NA\")))","v":0},null,null,null,null,{"$f":"SUM(CO37:CO42)/(2*(COUNTIF(CO37:CO42,\"<>NA\")))","v":0},null,null,null,null,{"$f":"SUM(CT37:CT42)/(2*(COUNTIF(CT37:CT42,\"<>NA\")))","v":0},null,null,null,null,{"$f":"SUM(CY37:CY42)/(2*(COUNTIF(CY37:CY42,\"<>NA\")))","v":0},null,null,null,null,{"$f":"SUM(DD37:DD42)/(2*(COUNTIF(DD37:DD42,\"<>NA\")))","v":0},null,null,null,null,{"$f":"SUM(DI37:DI42)/(2*(COUNTIF(DI37:DI42,\"<>NA\")))","v":0},null,null,null,null,{"$f":"SUM(DN37:DN42)/(2*(COUNTIF(DN37:DN42,\"<>NA\")))","v":0},null,null,null,null,{"$f":"SUM(DS37:DS42)/(2*(COUNTIF(DS37:DS42,\"<>NA\")))","v":0},null,null,null,null,{"$f":"SUM(DX37:DX42)/(2*(COUNTIF(DX37:DX42,\"<>NA\")))","v":0},null,null,null,null,{"$f":"SUM(EC37:EC42)/(2*(COUNTIF(EC37:EC42,\"<>NA\")))","v":0},null,null,null,null,{"$f":"SUM(EH37:EH42)/(2*(COUNTIF(EH37:EH42,\"<>NA\")))","v":0},null,null,null,null,{"$f":"SUM(EM37:EM42)/(2*(COUNTIF(EM37:EM42,\"<>NA\")))","v":0},null,null,null,null,{"$f":"SUM(ER37:ER42)/(2*(COUNTIF(ER37:ER42,\"<>NA\")))","v":0},null,null,null,null,{"$f":"SUM(EW37:EW42)/(2*(COUNTIF(EW37:EW42,\"<>NA\")))","v":0},null,null,null,null,{"$f":"SUM(FB37:FB42)/(2*(COUNTIF(FB37:FB42,\"<>NA\")))","v":0},null,null,null,null,{"$f":"SUM(FG37:FG42)/(2*(COUNTIF(FG37:FG42,\"<>NA\")))","v":0},null,null,null,null,{"$f":"SUM(FL37:FL42)/(2*(COUNTIF(FL37:FL42,\"<>NA\")))","v":0},null,null,null,null,{"$f":"SUM(FQ37:FQ42)/(2*(COUNTIF(FQ37:FQ42,\"<>NA\")))","v":0},null,null,null,null,{"$f":"SUM(FV37:FV42)/(2*(COUNTIF(FV37:FV42,\"<>NA\")))","v":0},null,null,null,null,{"$f":"SUM(GA37:GA42)/(2*(COUNTIF(GA37:GA42,\"<>NA\")))","v":0},null,null,null,null,{"$f":"SUM(GF37:GF42)/(2*(COUNTIF(GF37:GF42,\"<>NA\")))","v":0},null,null,null,null,{"$f":"SUM(GK37:GK42)/(2*(COUNTIF(GK37:GK42,\"<>NA\")))","v":0},null,null,null,null,{"$f":"SUM(GP37:GP42)/(2*(COUNTIF(GP37:GP42,\"<>NA\")))","v":0},null,null,null,null,{"$f":"SUM(GU37:GU42)/(2*(COUNTIF(GU37:GU42,\"<>NA\")))","v":0},null,null,null,null,{"$f":"SUM(GZ37:GZ42)/(2*(COUNTIF(GZ37:GZ42,\"<>NA\")))","v":0},null,null,null,null,{"$f":"SUM(HE37:HE42)/(2*(COUNTIF(HE37:HE42,\"<>NA\")))","v":0},null,null,null,null,{"$f":"SUM(HJ37:HJ42)/(2*(COUNTIF(HJ37:HJ42,\"<>NA\")))","v":0},null,null,null,null,{"$f":"SUM(HO37:HO42)/(2*(COUNTIF(HO37:HO42,\"<>NA\")))","v":0},null,null,null,null,{"$f":"SUM(HT37:HT42)/(2*(COUNTIF(HT37:HT42,\"<>NA\")))","v":0},null,null,null,null,{"$f":"SUM(HY37:HY42)/(2*(COUNTIF(HY37:HY42,\"<>NA\")))","v":0},null,null,null,null,{"$f":"SUM(ID37:ID42)/(2*(COUNTIF(ID37:ID42,\"<>NA\")))","v":0},null,null,null,null,{"$f":"SUM(II37:II42)/(2*(COUNTIF(II37:II42,\"<>NA\")))","v":0},null,null,null,null,{"$f":"SUM(IN37:IN42)/(2*(COUNTIF(IN37:IN42,\"<>NA\")))","v":0},null,null,null,null,{"$f":"SUM(IS37:IS42)/(2*(COUNTIF(IS37:IS42,\"<>NA\")))","v":0},null,null,null,null,{"$f":"SUM(IX37:IX42)/(2*(COUNTIF(IX37:IX42,\"<>NA\")))","v":0},null,null,null,null,{"$f":"SUM(JC37:JC42)/(2*(COUNTIF(JC37:JC42,\"<>NA\")))","v":0},null,null,null,null,{"$f":"SUM(JH37:JH42)/(2*(COUNTIF(JH37:JH42,\"<>NA\")))","v":0},null,null,null,null,{"$f":"SUM(JM37:JM42)/(2*(COUNTIF(JM37:JM42,\"<>NA\")))","v":0},null,null,null,null,{"$f":"SUM(JR37:JR42)/(2*(COUNTIF(JR37:JR42,\"<>NA\")))","v":0}]
[null,"The overall implementation of all indicators",{"$f":"AVERAGE(C21,C35,C43)","v":0.71697746697746689},null,null,null,null,{"$f":"AVERAGE(H21,H35,H43)","v":0.7810800310800311},null,null,null,null,{"$f":"AVERAGE(M21,M35,M43)","v":0.81138306138306138},null,null,null,null,{"$f":"AVERAGE(R21,R35,R43)","v":0.81138306138306138},null,null,null,null,{"$f":"AVERAGE(W21,W35,W43)","v":0.90578865578865575},null,null,null,null,{"$f":"AVERAGE(AB21,AB35,AB43)","v":0.98717948717948723},null,null,null,null,{"$f":"AVERAGE(AG21,AG35,AG43)","v":0.98717948717948723},null,null,null,null,{"$f":"AVERAGE(AL21,AL35,AL43)","v":0},null,null,null,null,{"$f":"AVERAGE(AQ21,AQ35,AQ43)","v":0},null,null,null,null,{"$f":"AVERAGE(AV21,AV35,AV43)","v":0},null,null,null,null,{"$f":"AVERAGE(BA21,BA35,BA43)","v":0},null,null,null,null,{"$f":"AVERAGE(BF21,BF35,BF43)","v":0},null,null,null,null,{"$f":"AVERAGE(BK21,BK35,BK43)","v":0},null,null,null,null,{"$f":"AVERAGE(BP21,BP35,BP43)","v":0},null,null,null,null,{"$f":"AVERAGE(BU21,BU35,BU43)","v":0},null,null,null,null,{"$f":"AVERAGE(BZ21,BZ35,BZ43)","v":0},null,null,null,null,{"$f":"AVERAGE(CE21,CE35,CE43)","v":0},null,null,null,null,{"$f":"AVERAGE(CJ21,CJ35,CJ43)","v":0},null,null,null,null,{"$f":"AVERAGE(CO21,CO35,CO43)","v":0},null,null,null,null,{"$f":"AVERAGE(CT21,CT35,CT43)","v":0},null,null,null,null,{"$f":"AVERAGE(CY21,CY35,CY43)","v":0},null,null,null,null,{"$f":"AVERAGE(DD21,DD35,DD43)","v":0},null,null,null,null,{"$f":"AVERAGE(DI21,DI35,DI43)","v":0},null,null,null,null,{"$f":"AVERAGE(DN21,DN35,DN43)","v":0},null,null,null,null,{"$f":"AVERAGE(DS21,DS35,DS43)","v":0},null,null,null,null,{"$f":"AVERAGE(DX21,DX35,DX43)","v":0},null,null,null,null,{"$f":"AVERAGE(EC21,EC35,EC43)","v":0},null,null,null,null,{"$f":"AVERAGE(EH21,EH35,EH43)","v":0},null,null,null,null,{"$f":"AVERAGE(EM21,EM35,EM43)","v":0},null,null,null,null,{"$f":"AVERAGE(ER21,ER35,ER43)","v":0},null,null,null,null,{"$f":"AVERAGE(EW21,EW35,EW43)","v":0},null,null,null,null,{"$f":"AVERAGE(FB21,FB35,FB43)","v":0},null,null,null,null,{"$f":"AVERAGE(FG21,FG35,FG43)","v":0},null,null,null,null,{"$f":"AVERAGE(FL21,FL35,FL43)","v":0},null,null,null,null,{"$f":"AVERAGE(FQ21,FQ35,FQ43)","v":0},null,null,null,null,{"$f":"AVERAGE(FV21,FV35,FV43)","v":0},null,null,null,null,{"$f":"AVERAGE(GA21,GA35,GA43)","v":0},null,null,null,null,{"$f":"AVERAGE(GF21,GF35,GF43)","v":0},null,null,null,null,{"$f":"AVERAGE(GK21,GK35,GK43)","v":0},null,null,null,null,{"$f":"AVERAGE(GP21,GP35,GP43)","v":0},null,null,null,null,{"$f":"AVERAGE(GU21,GU35,GU43)","v":0},null,null,null,null,{"$f":"AVERAGE(GZ21,GZ35,GZ43)","v":0},null,null,null,null,{"$f":"AVERAGE(HE21,HE35,HE43)","v":0},null,null,null,null,{"$f":"AVERAGE(HJ21,HJ35,HJ43)","v":0},null,null,null,null,{"$f":"AVERAGE(HO21,HO35,HO43)","v":0},null,null,null,null,{"$f":"AVERAGE(HT21,HT35,HT43)","v":0},null,null,null,null,{"$f":"AVERAGE(HY21,HY35,HY43)","v":0},null,null,null,null,{"$f":"AVERAGE(ID21,ID35,ID43)","v":0},null,null,null,null,{"$f":"AVERAGE(II21,II35,II43)","v":0},null,null,null,null,{"$f":"AVERAGE(IN21,IN35,IN43)","v":0},null,null,null,null,{"$f":"AVERAGE(IS21,IS35,IS43)","v":0},null,null,null,null,{"$f":"AVERAGE(IX21,IX35,IX43)","v":0},null,null,null,null,{"$f":"AVERAGE(JC21,JC35,JC43)","v":0},null,null,null,null,{"$f":"AVERAGE(JH21,JH35,JH43)","v":0},null,null,null,null,{"$f":"AVERAGE(JM21,JM35,JM43)","v":0},null,null,null,null,{"$f":"AVERAGE(JR21,JR35,JR43)","v":0}]
[null,"Assessor","Assessor Name:",null,null,null,null,"Assessor Name:",null,null,null,null,"Assessor Name:",null,null,null,null,"Assessor Name:",null,null,null,null,"Assessor Name:",null,null,null,null,"Assessor Name:",null,null,null,null,"Assessor Name:",null,null,null,null,"Assessor Name:",null,null,null,null,"Assessor Name:",null,null,null,null,"Assessor Name:",null,null,null,null,"Assessor Name:",null,null,null,null,"Assessor Name:",null,null,null,null,"Assessor Name:",null,null,null,null,"Assessor Name:",null,null,null,null,"Assessor Name:",null,null,null,null,"Assessor Name:",null,null,null,null,"Assessor Name:",null,null,null,null,"Assessor Name:",null,null,null,null,"Assessor Name:",null,null,null,null,"Assessor Name:",null,null,null,null,"Assessor Name:",null,null,null,null,"Assessor Name:",null,null,null,null,"Assessor Name:",null,null,null,null,"Assessor Name:",null,null,null,null,"Assessor Name:",null,null,null,null,"Assessor Name:",null,null,null,null,"Assessor Name:",null,null,null,null,"Assessor Name:",null,null,null,null,"Assessor Name:",null,null,null,null,"Assessor Name:",null,null,null,null,"Assessor Name:",null,null,null,null,"Assessor Name:",null,null,null,null,"Assessor Name:",null,null,null,null,"Assessor Name:",null,null,null,null,"Assessor Name:",null,null,null,null,"Assessor Name:",null,null,null,null,"Assessor Name:",null,null,null,null,"Assessor Name:",null,null,null,null,"Assessor Name:",null,null,null,null,"Assessor Name:",null,null,null,null,"Assessor Name:",null,null,null,null,"Assessor Name:",null,null,null,null,"Assessor Name:",null,null,null,null,"Assessor Name:",null,null,null,null,"Assessor Name:",null,null,null,null,"Assessor Name:",null,null,null,null,"Assessor Name:",null,null,null,null,"Assessor Name:",null,null,null,null,"Assessor Name:",null,null,null,null,"Assessor Name:",null,null,null,null,"Assessor Name:",null,null,null,null,"Assessor Name:",null,null,null,null,"Assessor Name:",null,null,null,null,"Assessor Name:",null,null,null,null,"Assessor Name:",null,null,null,null,"Assessor Name:"]

{"sheet":"setting","index":5,"n_rows":5,"n_cols":3,"rows_kept":5,"cut":false,"hidden":true,"merged":[]}
["#","Ch","En"]
[1,"调查数"]
[2,"合格数"]
[3,"文件"]
[4,"备注"]

{"sheet":"Laboratory","index":6,"n_rows":32,"n_cols":282,"rows_kept":32,"cut":false,"hidden":false,"merged":[[3,2,3,6],[3,7,3,11],[3,12,3,16],[3,17,3,21],[3,22,3,26],[3,27,3,31],[3,32,3,36],[3,37,3,41],[3,42,3,46],[3,47,3,51],[3,52,3,56],[3,57,3,61],[3,62,3,66],[3,67,3,71],[3,72,3,76],[3,77,3,81],[3,82,3,86],[3,87,3,91],[3,92,3,96],[3,97,3,101],[3,102,3,106],[3,107,3,111],[3,112,3,116],[3,117,3,121],[3,122,3,126],[3,127,3,131],[3,132,3,136],[3,137,3,141],[3,142,3,146],[3,147,3,151],[3,152,3,156],[3,157,3,161],[3,162,3,166],[3,167,3,171],[3,172,3,176],[3,177,3,181],[3,182,3,186],[3,187,3,191],[3,192,3,196],[3,197,3,201],[3,202,3,206],[3,207,3,211],[3,212,3,216],[3,217,3,221],[3,222,3,226],[3,227,3,231],[3,232,3,236],[3,237,3,241],[3,242,3,246],[3,247,3,251],[3,252,3,256],[3,257,3,261],[3,262,3,266],[3,267,3,271],[3,272,3,276],[3,277,3,281],[31,2,31,6],[31,7,31,11],[31,12,31,16],[31,17,31,21],[31,22,31,26],[31,27,31,31],[31,32,31,36],[31,37,31,41],[31,42,31,46],[31,47,31,51],[31,52,31,56],[31,57,31,61],[31,62,31,66],[31,67,31,71],[31,72,31,76],[31,77,31,81],[31,82,31,86],[31,87,31,91],[31,92,31,96],[31,97,31,101],[31,102,31,106],[31,107,31,111],[31,112,31,116],[31,117,31,121],[31,122,31,126],[31,127,31,131],[31,132,31,136],[31,137,31,141],[31,142,31,146],[31,147,31,151],[31,152,31,156],[31,157,31,161],[31,162,31,166],[31,167,31,171],[31,172,31,176],[31,177,31,181],[31,182,31,186],[31,187,31,191],[31,192,31,196],[31,197,31,201],[31,247,31,251],[31,252,31,256],[31,257,31,261],[31,262,31,266],[31,267,31,271],[31,272,31,276],[31,277,31,281],[31,202,31,206],[31,207,31,211],[31,212,31,216],[31,217,31,221],[31,222,31,226],[31,227,31,231],[31,232,31,236],[31,237,31,241],[31,242,31,246]]}
[null,"Date viewing mode"]
[null,"Laboratory","1. Laboratory 1",null,null,null,null,null,null,null,null,null,"1. Laboratory 1"]
[null,"Assessment phase","Basic",null,null,null,null,"3 months",null,null,null,null,"6 months",null,null,null,null,"9 months",null,null,null,null,"12 months",null,null,null,null,"15 months",null,null,null,null,"18 months",null,null,null,null,"Basic",null,null,null,null,"3 months",null,null,null,null,"6 months",null,null,null,null,"9 months",null,null,null,null,"12 months",null,null,null,null,"15 months",null,null,null,null,"18 months",null,null,null,null,"Basic",null,null,null,null,"3 months",null,null,null,null,"6 months",null,null,null,null,"9 months",null,null,null,null,"12 months",null,null,null,null,"15 months",null,null,null,null,"18 months",null,null,null,null,"Basic",null,null,null,null,"3 months",null,null,null,null,"6 months",null,null,null,null,"9 months",null,null,null,null,"12 months",null,null,null,null,"15 months",null,null,null,null,"18 months",null,null,null,null,"Basic",null,null,null,null,"3 months",null,null,null,null,"6 months",null,null,null,null,"9 months",null,null,null,null,"12 months",null,null,null,null,"15 months",null,null,null,null,"18 months",null,null,null,null,"Basic",null,null,null,null,"3 months",null,null,null,null,"6 months",null,null,null,null,"9 months",null,null,null,null,"12 months",null,null,null,null,"15 months",null,null,null,null,"18 months",null,null,null,null,"Basic",null,null,null,null,"3 months",null,null,null,null,"6 months",null,null,null,null,"9 months",null,null,null,null,"12 months",null,null,null,null,"15 months",null,null,null,null,"18 months",null,null,null,null,"Basic",null,null,null,null,"3 months",null,null,null,null,"6 months",null,null,null,null,"9 months",null,null,null,null,"12 months",null,null,null,null,"15 months",null,null,null,null,"18 months"]
[null,"Date of assessment","Date",null,null,null,null,"Date",null,null,null,null,"Date",null,null,null,null,"Date",null,null,null,null,"Date",null,null,null,null,"Date",null,null,null,null,"Date",null,null,null,null,"Date",null,null,null,null,"Date",null,null,null,null,"Date",null,null,null,null,"Date",null,null,null,null,"Date",null,null,null,null,"Date",null,null,null,null,"Date",null,null,null,null,"Date",null,null,null,null,"Date",null,null,null,null,"Date",null,null,null,null,"Date",null,null,null,null,"Date",null,null,null,null,"Date",null,null,null,null,"Date",null,null,null,null,"Date",null,null,null,null,"Date",null,null,null,null,"Date",null,null,null,null,"Date",null,null,null,null,"Date",null,null,null,null,"Date",null,null,null,null,"Date",null,null,null,null,"Date",null,null,null,null,"Date",null,null,null,null,"Date",null,null,null,null,"Date",null,null,null,null,"Date",null,null,null,null,"Date",null,null,null,null,"Date",null,null,null,null,"Date",null,null,null,null,"Date",null,null,null,null,"Date",null,null,null,null,"Date",null,null,null,null,"Date",null,null,null,null,"Date",null,null,null,null,"Date",null,null,null,null,"Date",null,null,null,null,"Date",null,null,null,null,"Date",null,null,null,null,"Date",null,null,null,null,"Date",null,null,null,null,"Date",null,null,null,null,"Date",null,null,null,null,"Date",null,null,null,null,"Date",null,null,null,null,"Date",null,null,null,null,"Date",null,null,null,null,"Date",null,null,null,null,"Date",null,null,null,null,"Date"]
[null,"Administrative controls indicators","Rate","Investigation","Qualification","Attachment","Remark","Rate","Investigation","Qualification","Attachment","Remark","Rate","Investigation","Qualification","Attachment","Remark","Rate","Investigation","Qualification","Attachment","Remark","Rate","Investigation","Qualification","Attachment","Remark","Rate","Investigation","Qualification","Attachment","Remark",null,"Investigation","Qualification","Attachment","Remark","Rate","Investigation","Qualification","Attachment","Remark","Rate","Investigation","Qualification","Attachment","Remark","Rate","Investigation","Qualification","Attachment","Remark","Rate","Investigation","Qualification","Attachment","Remark","Rate","Investigation","Qualification","Attachment","Remark","Rate","Investigation","Qualification","Attachment","Remark","Rate","Investigation","Qualification","Attachment","Remark","Rate","Investigation","Qualification","Attachment","Remark","Rate","Investigation","Qualification","Attachment","Remark","Rate","Investigation","Qualification","Attachment","Remark","Rate","Investigation","Qualification","Attachment","Remark","Rate","Investigation","Qualification","Attachment","Remark",null,"Investigation","Qualification","Attachment","Remark","Rate","Investigation","Qualification","Attachment","Remark","Rate","Investigation","Qualification","Attachment","Remark","Rate","Investigation","Qualification","Attachment","Remark","Rate","Investigation","Qualification","Attachment","Remark","Rate","Investigation","Qualification","Attachment","Remark","Rate","Investigation","Qualification","Attachment","Remark","Rate","Investigation","Qualification","Attachment","Remark","Rate","Investigation","Qualification","Attachment","Remark","Rate","Investigation","Qualification","Attachment","Remark","Rate","Investigation","Qualification","Attachment","Remark","Rate","Investigation","Qualification","Attachment","Remark","Rate","Investigation","Qualification","Attachment","Remark",null,"Investigation","Qualification","Attachment","Remark","Rate","Investigation","Qualification","Attachment","Remark","Rate","Investigation","Qualification","Attachment","Remark","Rate","Investigation","Qualification","Attachment","Remark","Rate","Investigation","Qualification","Attachment","Remark","Rate","Investigation","Qualification","Attachment","Remark","Rate","Investigation","Qualification","Attachment","Remark","Rate","Investigation","Qualification","Attachment","Remark","Rate","Investigation","Qualification","Attachment","Remark","Rate","Investigation","Qualification","Attachment","Remark","Rate","Investigation","Qualification","Attachment","Remark","Rate","Investigation","Qualification","Attachment","Remark","Rate","Investigation","Qualification","Attachment","Remark",null,"Investigation","Qualification","Attachment","Remark","Rate","Investigation","Qualification","Attachment","Remark","Rate","Investigation","Qualification","Attachment","Remark","Rate","Investigation","Qualification","Attachment","Remark","Rate","Investigation","Qualification","Attachment","Remark","Rate","Investigation","Qualification","Attachment","Remark","Rate","Investigation","Qualification","Attachment","Remark","Rate","Investigation","Qualification","Attachment","Remark","Rate","Investigation","Qualification","Attachment","Remark","Rate","Investigation","Qualification","Attachment","Remark","Rate","Investigation","Qualification","Attachment","Remark"]
[1,"Tracking mechanism of detecting results turn-around  time of sputum specimens",2,null,null,null,null,2,null,null,null,null,2,null,null,null,null,2,null,null,null,null,2,null,null,null,null,2,null,null,null,null,2]
[2,"Sputum smear test results can be obtained within 24 hours",2,null,null,null,null,2,null,null,null,null,2,null,null,null,null,2,null,null,null,null,2,null,null,null,null,2,null,null,null,null,2]
[3,"Xpert Mtb/rif test results can be obtained within 24 hours ","NA",null,null,null,null,"NA",null,null,null,null,"NA",null,null,null,null,"NA",null,null,null,null,"NA",null,null,null,null,"NA",null,null,null,null,"NA"]
[4,"Sputum specimens are delivered to the laboratory by the health care provider rather than the patient",2,null,null,null,null,2,null,null,null,null,2,null,null,null,null,2,null,null,null,null,2,null,null,null,null,2,null,null,null,null,2]
[5,"Detection of drug resistance in patients with suspected drug-resistant TB",2,null,null,null,null,2,null,null,null,null,2,null,null,null,null,2,null,null,null,null,2,null,null,null,null,2,null,null,null,null,2]
[null,"The implementation of administrative controls indicators",{"$f":"SUM(C6:C10)/(2*(COUNTIF(C6:C10,\"<>NA\")))","v":1},null,null,null,null,{"$f":"SUM(H6:H10)/(2*(COUNTIF(H6:H10,\"<>NA\")))","v":1},null,null,null,null,{"$f":"SUM(M6:M10)/(2*(COUNTIF(M6:M10,\"<>NA\")))","v":1},null,null,null,null,{"$f":"SUM(R6:R10)/(2*(COUNTIF(R6:R10,\"<>NA\")))","v":1},null,null,null,null,{"$f":"SUM(W6:W10)/(2*(COUNTIF(W6:W10,\"<>NA\")))","v":1},null,null,null,null,{"$f":"SUM(AB6:AB10)/(2*(COUNTIF(AB6:AB10,\"<>NA\")))","v":1},null,null,null,null,{"$f":"SUM(AG6:AG10)/(2*(COUNTIF(AG6:AG10,\"<>NA\")))","v":1},null,null,null,null,{"$f":"SUM(AL6:AL10)/(2*(COUNTIF(AL6:AL10,\"<>NA\")))","v":0},null,null,null,null,{"$f":"SUM(AQ6:AQ10)/(2*(COUNTIF(AQ6:AQ10,\"<>NA\")))","v":0},null,null,null,null,{"$f":"SUM(AV6:AV10)/(2*(COUNTIF(AV6:AV10,\"<>NA\")))","v":0},null,null,null,null,{"$f":"SUM(BA6:BA10)/(2*(COUNTIF(BA6:BA10,\"<>NA\")))","v":0},null,null,null,null,{"$f":"SUM(BF6:BF10)/(2*(COUNTIF(BF6:BF10,\"<>NA\")))","v":0},null,null,null,null,{"$f":"SUM(BK6:BK10)/(2*(COUNTIF(BK6:BK10,\"<>NA\")))","v":0},null,null,null,null,{"$f":"SUM(BP6:BP10)/(2*(COUNTIF(BP6:BP10,\"<>NA\")))","v":0},null,null,null,null,{"$f":"SUM(BU6:BU10)/(2*(COUNTIF(BU6:BU10,\"<>NA\")))","v":0},null,null,null,null,{"$f":"SUM(BZ6:BZ10)/(2*(COUNTIF(BZ6:BZ10,\"<>NA\")))","v":0},null,null,null,null,{"$f":"SUM(CE6:CE10)/(2*(COUNTIF(CE6:CE10,\"<>NA\")))","v":0},null,null,null,null,{"$f":"SUM(CJ6:CJ10)/(2*(COUNTIF(CJ6:CJ10,\"<>NA\")))","v":0},null,null,null,null,{"$f":"SUM(CO6:CO10)/(2*(COUNTIF(CO6:CO10,\"<>NA\")))","v":0},null,null,null,null,{"$f":"SUM(CT6:CT10)/(2*(COUNTIF(CT6:CT10,\"<>NA\")))","v":0},null,null,null,null,{"$f":"SUM(CY6:CY10)/(2*(COUNTIF(CY6:CY10,\"<>NA\")))","v":0},null,null,null,null,{"$f":"SUM(DD6:DD10)/(2*(COUNTIF(DD6:DD10,\"<>NA\")))","v":0},null,null,null,null,{"$f":"SUM(DI6:DI10)/(2*(COUNTIF(DI6:DI10,\"<>NA\")))","v":0},null,null,null,null,{"$f":"SUM(DN6:DN10)/(2*(COUNTIF(DN6:DN10,\"<>NA\")))","v":0},null,null,null,null,{"$f":"SUM(DS6:DS10)/(2*(COUNTIF(DS6:DS10,\"<>NA\")))","v":0},null,null,null,null,{"$f":"SUM(DX6:DX10)/(2*(COUNTIF(DX6:DX10,\"<>NA\")))","v":0},null,null,null,null,{"$f":"SUM(EC6:EC10)/(2*(COUNTIF(EC6:EC10,\"<>NA\")))","v":0},null,null,null,null,{"$f":"SUM(EH6:EH10)/(2*(COUNTIF(EH6:EH10,\"<>NA\")))","v":0},null,null,null,null,{"$f":"SUM(EM6:EM10)/(2*(COUNTIF(EM6:EM10,\"<>NA\")))","v":0},null,null,null,null,{"$f":"SUM(ER6:ER10)/(2*(COUNTIF(ER6:ER10,\"<>NA\")))","v":0},null,null,null,null,{"$f":"SUM(EW6:EW10)/(2*(COUNTIF(EW6:EW10,\"<>NA\")))","v":0},null,null,null,null,{"$f":"SUM(FB6:FB10)/(2*(COUNTIF(FB6:FB10,\"<>NA\")))","v":0},null,null,null,null,{"$f":"SUM(FG6:FG10)/(2*(COUNTIF(FG6:FG10,\"<>NA\")))","v":0},null,null,null,null,{"$f":"SUM(FL6:FL10)/(2*(COUNTIF(FL6:FL10,\"<>NA\")))","v":0},null,null,null,null,{"$f":"SUM(FQ6:FQ10)/(2*(COUNTIF(FQ6:FQ10,\"<>NA\")))","v":0},null,null,null,null,{"$f":"SUM(FV6:FV10)/(2*(COUNTIF(FV6:FV10,\"<>NA\")))","v":0},null,null,null,null,{"$f":"SUM(GA6:GA10)/(2*(COUNTIF(GA6:GA10,\"<>NA\")))","v":0},null,null,null,null,{"$f":"SUM(GF6:GF10)/(2*(COUNTIF(GF6:GF10,\"<>NA\")))","v":0},null,null,null,null,{"$f":"SUM(GK6:GK10)/(2*(COUNTIF(GK6:GK10,\"<>NA\")))","v":0},null,null,null,null,{"$f":"SUM(GP6:GP10)/(2*(COUNTIF(GP6:GP10,\"<>NA\")))","v":0},null,null,null,null,{"$f":"SUM(GU6:GU10)/(2*(COUNTIF(GU6:GU10,\"<>NA\")))","v":0},null,null,null,null,{"$f":"SUM(GZ6:GZ10)/(2*(COUNTIF(GZ6:GZ10,\"<>NA\")))","v":0},null,null,null,null,{"$f":"SUM(HE6:HE10)/(2*(COUNTIF(HE6:HE10,\"<>NA\")))","v":0},null,null,null,null,{"$f":"SUM(HJ6:HJ10)/(2*(COUNTIF(HJ6:HJ10,\"<>NA\")))","v":0},null,null,null,null,{"$f":"SUM(HO6:HO10)/(2*(COUNTIF(HO6:HO10,\"<>NA\")))","v":0},null,null,null,null,{"$f":"SUM(HT6:HT10)/(2*(COUNTIF(HT6:HT10,\"<>NA\")))","v":0},null,null,null,null,{"$f":"SUM(HY6:HY10)/(2*(COUNTIF(HY6:HY10,\"<>NA\")))","v":0},null,null,null,null,{"$f":"SUM(ID6:ID10)/(2*(COUNTIF(ID6:ID10,\"<>NA\")))","v":0},null,null,null,null,{"$f":"SUM(II6:II10)/(2*(COUNTIF(II6:II10,\"<>NA\")))","v":0},null,null,null,null,{"$f":"SUM(IN6:IN10)/(2*(COUNTIF(IN6:IN10,\"<>NA\")))","v":0},null,null,null,null,{"$f":"SUM(IS6:IS10)/(2*(COUNTIF(IS6:IS10,\"<>NA\")))","v":0},null,null,null,null,{"$f":"SUM(IX6:IX10)/(2*(COUNTIF(IX6:IX10,\"<>NA\")))","v":0},null,null,null,null,{"$f":"SUM(JC6:JC10)/(2*(COUNTIF(JC6:JC10,\"<>NA\")))","v":0},null,null,null,null,{"$f":"SUM(JH6:JH10)/(2*(COUNTIF(JH6:JH10,\"<>NA\")))","v":0},null,null,null,null,{"$f":"SUM(JM6:JM10)/(2*(COUNTIF(JM6:JM10,\"<>NA\")))","v":0},null,null,null,null,{"$f":"SUM(JR6:JR10)/(2*(COUNTIF(JR6:JR10,\"<>NA\")))","v":0}]
[null,"Environmental controls indicators","Rate","Investigation","Qualification","Attachment","Remark","Rate","Investigation","Qualification","Attachment","Remark","Rate","Investigation","Qualification","Attachment","Remark","Rate","Investigation","Qualification","Attachment","Remark","Rate","Investigation","Qualification","Attachment","Remark","Rate","Investigation","Qualification","Attachment","Remark",null,"Investigation","Qualification","Attachment","Remark","Rate","Investigation","Qualification","Attachment","Remark","Rate","Investigation","Qualification","Attachment","Remark","Rate","Investigation","Qualification","Attachment","Remark","Rate","Investigation","Qualification","Attachment","Remark","Rate","Investigation","Qualification","Attachment","Remark","Rate","Investigation","Qualification","Attachment","Remark","Rate","Investigation","Qualification","Attachment","Remark","Rate","Investigation","Qualification","Attachment","Remark","Rate","Investigation","Qualification","Attachment","Remark","Rate","Investigation","Qualification","Attachment","Remark","Rate","Investigation","Qualification","Attachment","Remark","Rate","Investigation","Qualification","Attachment","Remark",null,"Investigation","Qualification","Attachment","Remark","Rate","Investigation","Qualification","Attachment","Remark","Rate","Investigation","Qualification","Attachment","Remark","Rate","Investigation","Qualification","Attachment","Remark","Rate","Investigation","Qualification","Attachment","Remark","Rate","Investigation","Qualification","Attachment","Remark","Rate","Investigation","Qualification","Attachment","Remark","Rate","Investigation","Qualification","Attachment","Remark","Rate","Investigation","Qualification","Attachment","Remark","Rate","Investigation","Qualification","Attachment","Remark","Rate","Investigation","Qualification","Attachment","Remark","Rate","Investigation","Qualification","Attachment","Remark","Rate","Investigation","Qualification","Attachment","Remark",null,"Investigation","Qualification","Attachment","Remark","Rate","Investigation","Qualification","Attachment","Remark","Rate","Investigation","Qualification","Attachment","Remark","Rate","Investigation","Qualification","Attachment","Remark","Rate","Investigation","Qualification","Attachment","Remark","Rate","Investigation","Qualification","Attachment","Remark","Rate","Investigation","Qualification","Attachment","Remark","Rate","Investigation","Qualification","Attachment","Remark","Rate","Investigation","Qualification","Attachment","Remark","Rate","Investigation","Qualification","Attachment","Remark","Rate","Investigation","Qualification","Attachment","Remark","Rate","Investigation","Qualification","Attachment","Remark","Rate","Investigation","Qualification","Attachment","Remark",null,"Investigation","Qualification","Attachment","Remark","Rate","Investigation","Qualification","Attachment","Remark","Rate","Investigation","Qualification","Attachment","Remark","Rate","Investigation","Qualification","Attachment","Remark","Rate","Investigation","Qualification","Attachment","Remark","Rate","Investigation","Qualification","Attachment","Remark","Rate","Investigation","Qualification","Attachment","Remark","Rate","Investigation","Qualification","Attachment","Remark","Rate","Investigation","Qualification","Attachment","Remark","Rate","Investigation","Qualification","Attachment","Remark","Rate","Investigation","Qualification","Attachment","Remark"]
[6,"Natural ventilation: Openings on opposing walls of room",2,null,null,null,null,2,null,null,null,null,2,null,null,null,null,2,null,null,null,null,2,null,null,null,null,2,null,null,null,null,2]
[7,"Natural ventilation: Areas of openings (window/door) of at least 10% of area of room (length*width of the floor) on opposing sides of room (total areas of windows and doors ≥20% total area of the floor)",1,null,null,null,null,1,null,null,null,null,1,null,null,null,null,1,null,null,null,null,1,null,null,null,null,2,null,null,null,null,2]
[8,"Natural ventilation: Signage is in place to keep doors and windows open",0,null,null,null,null,1,null,null,null,null,1,null,null,null,null,1,null,null,null,null,1,null,null,null,null,1,null,null,null,null,1]
[9,"Natural ventilation: All appropriate windows/doors are open on observation",1,null,null,null,null,1,null,null,null,null,1,null,null,null,null,1,null,null,null,null,1,null,null,null,null,1,null,null,null,null,1]
[10,"Natural ventilation and mechanical ventilation: No chemical or human odors relative to the outdoors",2,null,null,null,null,2,null,null,null,null,2,null,null,null,null,2,null,null,null,null,2,null,null,null,null,2,null,null,null,null,2]
[11,"Mechanical and natural ventilation: Visualization of airflow patterns with smoke from supply and exhaust grilles/openings (use smoke tube, incense etc. for smoke)",1,null,null,null,null,1,null,null,null,null,2,null,null,null,null,2,null,null,null,null,2,null,null,null,null,2,null,null,null,null,2]
[12,"Mechanical ventilation: Regular maintenance for directional and extractor fans is conducted",1,null,null,null,null,1,null,null,null,null,1,null,null,null,null,1,null,null,null,null,1,null,null,null,null,2,null,null,null,null,2]
[13,"Traditional UVGI is being used properly (based on China standards)",2,null,null,null,null,2,null,null,null,null,2,null,null,null,null,2,null,null,null,null,2,null,null,null,null,2,null,null,null,null,2]
[14,"Upper-room UVGI is being used properly (based on China standards)","NA",null,null,null,null,"NA",null,null,null,null,"NA",null,null,null,null,"NA",null,null,null,null,"NA",null,null,null,null,"NA",null,null,null,null,"NA"]
[15,"Biosafety cabinets: Records of maintenance and certification in the past year documented",1,null,null,null,null,1,null,null,null,null,1,null,null,null,null,1,null,null,null,null,1,null,null,null,null,2,null,null,null,null,2]
[null,"The implementation of environmental controls indicators",{"$f":"SUM(C13:C22)/(2*(COUNTIF(C13:C22,\"<>NA\")))","v":0.61111111111111116},null,null,null,null,{"$f":"SUM(H13:H22)/(2*(COUNTIF(H13:H22,\"<>NA\")))","v":0.66666666666666663},null,null,null,null,{"$f":"SUM(M13:M22)/(2*(COUNTIF(M13:M22,\"<>NA\")))","v":0.72222222222222221},null,null,null,null,{"$f":"SUM(R13:R22)/(2*(COUNTIF(R13:R22,\"<>NA\")))","v":0.72222222222222221},null,null,null,null,{"$f":"SUM(W13:W22)/(2*(COUNTIF(W13:W22,\"<>NA\")))","v":0.72222222222222221},null,null,null,null,{"$f":"SUM(AB13:AB22)/(2*(COUNTIF(AB13:AB22,\"<>NA\")))","v":0.88888888888888884},null,null,null,null,{"$f":"SUM(AG13:AG22)/(2*(COUNTIF(AG13:AG22,\"<>NA\")))","v":0.88888888888888884},null,null,null,null,{"$f":"SUM(AL13:AL22)/(2*(COUNTIF(AL13:AL22,\"<>NA\")))","v":0},null,null,null,null,{"$f":"SUM(AQ13:AQ22)/(2*(COUNTIF(AQ13:AQ22,\"<>NA\")))","v":0},null,null,null,null,{"$f":"SUM(AV13:AV22)/(2*(COUNTIF(AV13:AV22,\"<>NA\")))","v":0},null,null,null,null,{"$f":"SUM(BA13:BA22)/(2*(COUNTIF(BA13:BA22,\"<>NA\")))","v":0},null,null,null,null,{"$f":"SUM(BF13:BF22)/(2*(COUNTIF(BF13:BF22,\"<>NA\")))","v":0},null,null,null,null,{"$f":"SUM(BK13:BK22)/(2*(COUNTIF(BK13:BK22,\"<>NA\")))","v":0},null,null,null,null,{"$f":"SUM(BP13:BP22)/(2*(COUNTIF(BP13:BP22,\"<>NA\")))","v":0},null,null,null,null,{"$f":"SUM(BU13:BU22)/(2*(COUNTIF(BU13:BU22,\"<>NA\")))","v":0},null,null,null,null,{"$f":"SUM(BZ13:BZ22)/(2*(COUNTIF(BZ13:BZ22,\"<>NA\")))","v":0},null,null,null,null,{"$f":"SUM(CE13:CE22)/(2*(COUNTIF(CE13:CE22,\"<>NA\")))","v":0},null,null,null,null,{"$f":"SUM(CJ13:CJ22)/(2*(COUNTIF(CJ13:CJ22,\"<>NA\")))","v":0},null,null,null,null,{"$f":"SUM(CO13:CO22)/(2*(COUNTIF(CO13:CO22,\"<>NA\")))","v":0},null,null,null,null,{"$f":"SUM(CT13:CT22)/(2*(COUNTIF(CT13:CT22,\"<>NA\")))","v":0},null,null,null,null,{"$f":"SUM(CY13:CY22)/(2*(COUNTIF(CY13:CY22,\"<>NA\")))","v":0},null,null,null,null,{"$f":"SUM(DD13:DD22)/(2*(COUNTIF(DD13:DD22,\"<>NA\")))","v":0},null,null,null,null,{"$f":"SUM(DI13:DI22)/(2*(COUNTIF(DI13:DI22,\"<>NA\")))","v":0},null,null,null,null,{"$f":"SUM(DN13:DN22)/(2*(COUNTIF(DN13:DN22,\"<>NA\")))","v":0},null,null,null,null,{"$f":"SUM(DS13:DS22)/(2*(COUNTIF(DS13:DS22,\"<>NA\")))","v":0},null,null,null,null,{"$f":"SUM(DX13:DX22)/(2*(COUNTIF(DX13:DX22,\"<>NA\")))","v":0},null,null,null,null,{"$f":"SUM(EC13:EC22)/(2*(COUNTIF(EC13:EC22,\"<>NA\")))","v":0},null,null,null,null,{"$f":"SUM(EH13:EH22)/(2*(COUNTIF(EH13:EH22,\"<>NA\")))","v":0},null,null,null,null,{"$f":"SUM(EM13:EM22)/(2*(COUNTIF(EM13:EM22,\"<>NA\")))","v":0},null,null,null,null,{"$f":"SUM(ER13:ER22)/(2*(COUNTIF(ER13:ER22,\"<>NA\")))","v":0},null,null,null,null,{"$f":"SUM(EW13:EW22)/(2*(COUNTIF(EW13:EW22,\"<>NA\")))","v":0},null,null,null,null,{"$f":"SUM(FB13:FB22)/(2*(COUNTIF(FB13:FB22,\"<>NA\")))","v":0},null,null,null,null,{"$f":"SUM(FG13:FG22)/(2*(COUNTIF(FG13:FG22,\"<>NA\")))","v":0},null,null,null,null,{"$f":"SUM(FL13:FL22)/(2*(COUNTIF(FL13:FL22,\"<>NA\")))","v":0},null,null,null,null,{"$f":"SUM(FQ13:FQ22)/(2*(COUNTIF(FQ13:FQ22,\"<>NA\")))","v":0},null,null,null,null,{"$f":"SUM(FV13:FV22)/(2*(COUNTIF(FV13:FV22,\"<>NA\")))","v":0},null,null,null,null,{"$f":"SUM(GA13:GA22)/(2*(COUNTIF(GA13:GA22,\"<>NA\")))","v":0},null,null,null,null,{"$f":"SUM(GF13:GF22)/(2*(COUNTIF(GF13:GF22,\"<>NA\")))","v":0},null,null,null,null,{"$f":"SUM(GK13:GK22)/(2*(COUNTIF(GK13:GK22,\"<>NA\")))","v":0},null,null,null,null,{"$f":"SUM(GP13:GP22)/(2*(COUNTIF(GP13:GP22,\"<>NA\")))","v":0},null,null,null,null,{"$f":"SUM(GU13:GU22)/(2*(COUNTIF(GU13:GU22,\"<>NA\")))","v":0},null,null,null,null,{"$f":"SUM(GZ13:GZ22)/(2*(COUNTIF(GZ13:GZ22,\"<>NA\")))","v":0},null,null,null,null,{"$f":"SUM(HE13:HE22)/(2*(COUNTIF(HE13:HE22,\"<>NA\")))","v":0},null,null,null,null,{"$f":"SUM(HJ13:HJ22)/(2*(COUNTIF(HJ13:HJ22,\"<>NA\")))","v":0},null,null,null,null,{"$f":"SUM(HO13:HO22)/(2*(COUNTIF(HO13:HO22,\"<>NA\")))","v":0},null,null,null,null,{"$f":"SUM(HT13:HT22)/(2*(COUNTIF(HT13:HT22,\"<>NA\")))","v":0},null,null,null,null,{"$f":"SUM(HY13:HY22)/(2*(COUNTIF(HY13:HY22,\"<>NA\")))","v":0},null,null,null,null,{"$f":"SUM(ID13:ID22)/(2*(COUNTIF(ID13:ID22,\"<>NA\")))","v":0},null,null,null,null,{"$f":"SUM(II13:II22)/(2*(COUNTIF(II13:II22,\"<>NA\")))","v":0},null,null,null,null,{"$f":"SUM(IN13:IN22)/(2*(COUNTIF(IN13:IN22,\"<>NA\")))","v":0},null,null,null,null,{"$f":"SUM(IS13:IS22)/(2*(COUNTIF(IS13:IS22,\"<>NA\")))","v":0},null,null,null,null,{"$f":"SUM(IX13:IX22)/(2*(COUNTIF(IX13:IX22,\"<>NA\")))","v":0},null,null,null,null,{"$f":"SUM(JC13:JC22)/(2*(COUNTIF(JC13:JC22,\"<>NA\")))","v":0},null,null,null,null,{"$f":"SUM(JH13:JH22)/(2*(COUNTIF(JH13:JH22,\"<>NA\")))","v":0},null,null,null,null,{"$f":"SUM(JM13:JM22)/(2*(COUNTIF(JM13:JM22,\"<>NA\")))","v":0},null,null,null,null,{"$f":"SUM(JR13:JR22)/(2*(COUNTIF(JR13:JR22,\"<>NA\")))","v":0}]
[null,"Personal protective equipment indicators","Rate","Investigation","Qualification","Attachment","Remark","Rate","Investigation","Qualification","Attachment","Remark","Rate","Investigation","Qualification","Attachment","Remark","Rate","Investigation","Qualification","Attachment","Remark","Rate","Investigation","Qualification","Attachment","Remark","Rate","Investigation","Qualification","Attachment","Remark",null,"Investigation","Qualification","Attachment","Remark","Rate","Investigation","Qualification","Attachment","Remark","Rate","Investigation","Qualification","Attachment","Remark","Rate","Investigation","Qualification","Attachment","Remark","Rate","Investigation","Qualification","Attachment","Remark","Rate","Investigation","Qualification","Attachment","Remark","Rate","Investigation","Qualification","Attachment","Remark","Rate","Investigation","Qualification","Attachment","Remark","Rate","Investigation","Qualification","Attachment","Remark","Rate","Investigation","Qualification","Attachment","Remark","Rate","Investigation","Qualification","Attachment","Remark","Rate","Investigation","Qualification","Attachment","Remark","Rate","Investigation","Qualification","Attachment","Remark",null,"Investigation","Qualification","Attachment","Remark","Rate","Investigation","Qualification","Attachment","Remark","Rate","Investigation","Qualification","Attachment","Remark","Rate","Investigation","Qualification","Attachment","Remark","Rate","Investigation","Qualification","Attachment","Remark","Rate","Investigation","Qualification","Attachment","Remark","Rate","Investigation","Qualification","Attachment","Remark","Rate","Investigation","Qualification","Attachment","Remark","Rate","Investigation","Qualification","Attachment","Remark","Rate","Investigation","Qualification","Attachment","Remark","Rate","Investigation","Qualification","Attachment","Remark","Rate","Investigation","Qualification","Attachment","Remark","Rate","Investigation","Qualification","Attachment","Remark",null,"Investigation","Qualification","Attachment","Remark","Rate","Investigation","Qualification","Attachment","Remark","Rate","Investigation","Qualification","Attachment","Remark","Rate","Investigation","Qualification","Attachment","Remark","Rate","Investigation","Qualification","Attachment","Remark","Rate","Investigation","Qualification","Attachment","Remark","Rate","Investigation","Qualification","Attachment","Remark","Rate","Investigation","Qualification","Attachment","Remark","Rate","Investigation","Qualification","Attachment","Remark","Rate","Investigation","Qualification","Attachment","Remark","Rate","Investigation","Qualification","Attachment","Remark","Rate","Investigation","Qualification","Attachment","Remark","Rate","Investigation","Qualification","Attachment","Remark",null,"Investigation","Qualification","Attachment","Remark","Rate","Investigation","Qualification","Attachment","Remark","Rate","Investigation","Qualification","Attachment","Remark","Rate","Investigation","Qualification","Attachment","Remark","Rate","Investigation","Qualification","Attachment","Remark","Rate","Investigation","Qualification","Attachment","Remark","Rate","Investigation","Qualification","Attachment","Remark","Rate","Investigation","Qualification","Attachment","Remark","Rate","Investigation","Qualification","Attachment","Remark","Rate","Investigation","Qualification","Attachment","Remark","Rate","Investigation","Qualification","Attachment","Remark"]
[16,"Respirators meet the national or international standard are readily available to all staff who have contact with patients with TB or suspected of having TB",2,null,null,null,null,2,null,null,null,null,2,null,null,null,null,2,null,null,null,null,2,null,null,null,null,2,null,null,null,null,2]
[17,"Staff were trained on proper respirator use in the past year",2,null,null,null,null,2,null,null,null,null,2,null,null,null,null,2,null,null,null,null,2,null,null,null,null,2,null,null,null,null,2]
[18,"Staff can demonstrate proper respirator use (i.e., putting on, removing,  seal check, and storage)",2,null,null,null,null,2,null,null,null,null,2,null,null,null,null,2,null,null,null,null,2,null,null,null,null,2,null,null,null,null,2]
[19,"There have been no stock-outs of respirators in the past 3 months",2,null,null,null,null,2,null,null,null,null,2,null,null,null,null,2,null,null,null,null,2,null,null,null,null,2,null,null,null,null,2]
[20,"Lab staff wear respirators when perform procedures that have risk of generating TB aerosols from specimens",2,null,null,null,null,2,null,null,null,null,2,null,null,null,null,2,null,null,null,null,2,null,null,null,null,2,null,null,null,null,2]
[null,"The implementation of personal protective equipment indicators",{"$f":"SUM(C25:C29)/(2*(COUNTIF(C25:C29,\"<>NA\")))","v":1},null,null,null,null,{"$f":"SUM(H25:H29)/(2*(COUNTIF(H25:H29,\"<>NA\")))","v":1},null,null,null,null,{"$f":"SUM(M25:M29)/(2*(COUNTIF(M25:M29,\"<>NA\")))","v":1},null,null,null,null,{"$f":"SUM(R25:R29)/(2*(COUNTIF(R25:R29,\"<>NA\")))","v":1},null,null,null,null,{"$f":"SUM(W25:W29)/(2*(COUNTIF(W25:W29,\"<>NA\")))","v":1},null,null,null,null,{"$f":"SUM(AB25:AB29)/(2*(COUNTIF(AB25:AB29,\"<>NA\")))","v":1},null,null,null,null,{"$f":"SUM(AG25:AG29)/(2*(COUNTIF(AG25:AG29,\"<>NA\")))","v":1},null,null,null,null,{"$f":"SUM(AL25:AL29)/(2*(COUNTIF(AL25:AL29,\"<>NA\")))","v":0},null,null,null,null,{"$f":"SUM(AQ25:AQ29)/(2*(COUNTIF(AQ25:AQ29,\"<>NA\")))","v":0},null,null,null,null,{"$f":"SUM(AV25:AV29)/(2*(COUNTIF(AV25:AV29,\"<>NA\")))","v":0},null,null,null,null,{"$f":"SUM(BA25:BA29)/(2*(COUNTIF(BA25:BA29,\"<>NA\")))","v":0},null,null,null,null,{"$f":"SUM(BF25:BF29)/(2*(COUNTIF(BF25:BF29,\"<>NA\")))","v":0},null,null,null,null,{"$f":"SUM(BK25:BK29)/(2*(COUNTIF(BK25:BK29,\"<>NA\")))","v":0},null,null,null,null,{"$f":"SUM(BP25:BP29)/(2*(COUNTIF(BP25:BP29,\"<>NA\")))","v":0},null,null,null,null,{"$f":"SUM(BU25:BU29)/(2*(COUNTIF(BU25:BU29,\"<>NA\")))","v":0},null,null,null,null,{"$f":"SUM(BZ25:BZ29)/(2*(COUNTIF(BZ25:BZ29,\"<>NA\")))","v":0},null,null,null,null,{"$f":"SUM(CE25:CE29)/(2*(COUNTIF(CE25:CE29,\"<>NA\")))","v":0},null,null,null,null,{"$f":"SUM(CJ25:CJ29)/(2*(COUNTIF(CJ25:CJ29,\"<>NA\")))","v":0},null,null,null,null,{"$f":"SUM(CO25:CO29)/(2*(COUNTIF(CO25:CO29,\"<>NA\")))","v":0},null,null,null,null,{"$f":"SUM(CT25:CT29)/(2*(COUNTIF(CT25:CT29,\"<>NA\")))","v":0},null,null,null,null,{"$f":"SUM(CY25:CY29)/(2*(COUNTIF(CY25:CY29,\"<>NA\")))","v":0},null,null,null,null,{"$f":"SUM(DD25:DD29)/(2*(COUNTIF(DD25:DD29,\"<>NA\")))","v":0},null,null,null,null,{"$f":"SUM(DI25:DI29)/(2*(COUNTIF(DI25:DI29,\"<>NA\")))","v":0},null,null,null,null,{"$f":"SUM(DN25:DN29)/(2*(COUNTIF(DN25:DN29,\"<>NA\")))","v":0},null,null,null,null,{"$f":"SUM(DS25:DS29)/(2*(COUNTIF(DS25:DS29,\"<>NA\")))","v":0},null,null,null,null,{"$f":"SUM(DX25:DX29)/(2*(COUNTIF(DX25:DX29,\"<>NA\")))","v":0},null,null,null,null,{"$f":"SUM(EC25:EC29)/(2*(COUNTIF(EC25:EC29,\"<>NA\")))","v":0},null,null,null,null,{"$f":"SUM(EH25:EH29)/(2*(COUNTIF(EH25:EH29,\"<>NA\")))","v":0},null,null,null,null,{"$f":"SUM(EM25:EM29)/(2*(COUNTIF(EM25:EM29,\"<>NA\")))","v":0},null,null,null,null,{"$f":"SUM(ER25:ER29)/(2*(COUNTIF(ER25:ER29,\"<>NA\")))","v":0},null,null,null,null,{"$f":"SUM(EW25:EW29)/(2*(COUNTIF(EW25:EW29,\"<>NA\")))","v":0},null,null,null,null,{"$f":"SUM(FB25:FB29)/(2*(COUNTIF(FB25:FB29,\"<>NA\")))","v":0},null,null,null,null,{"$f":"SUM(FG25:FG29)/(2*(COUNTIF(FG25:FG29,\"<>NA\")))","v":0},null,null,null,null,{"$f":"SUM(FL25:FL29)/(2*(COUNTIF(FL25:FL29,\"<>NA\")))","v":0},null,null,null,null,{"$f":"SUM(FQ25:FQ29)/(2*(COUNTIF(FQ25:FQ29,\"<>NA\")))","v":0},null,null,null,null,{"$f":"SUM(FV25:FV29)/(2*(COUNTIF(FV25:FV29,\"<>NA\")))","v":0},null,null,null,null,{"$f":"SUM(GA25:GA29)/(2*(COUNTIF(GA25:GA29,\"<>NA\")))","v":0},null,null,null,null,{"$f":"SUM(GF25:GF29)/(2*(COUNTIF(GF25:GF29,\"<>NA\")))","v":0},null,null,null,null,{"$f":"SUM(GK25:GK29)/(2*(COUNTIF(GK25:GK29,\"<>NA\")))","v":0},null,null,null,null,{"$f":"SUM(GP25:GP29)/(2*(COUNTIF(GP25:GP29,\"<>NA\")))","v":0},null,null,null,null,{"$f":"SUM(GU25:GU29)/(2*(COUNTIF(GU25:GU29,\"<>NA\")))","v":0},null,null,null,null,{"$f":"SUM(GZ25:GZ29)/(2*(COUNTIF(GZ25:GZ29,\"<>NA\")))","v":0},null,null,null,null,{"$f":"SUM(HE25:HE29)/(2*(COUNTIF(HE25:HE29,\"<>NA\")))","v":0},null,null,null,null,{"$f":"SUM(HJ25:HJ29)/(2*(COUNTIF(HJ25:HJ29,\"<>NA\")))","v":0},null,null,null,null,{"$f":"SUM(HO25:HO29)/(2*(COUNTIF(HO25:HO29,\"<>NA\")))","v":0},null,null,null,null,{"$f":"SUM(HT25:HT29)/(2*(COUNTIF(HT25:HT29,\"<>NA\")))","v":0},null,null,null,null,{"$f":"SUM(HY25:HY29)/(2*(COUNTIF(HY25:HY29,\"<>NA\")))","v":0},null,null,null,null,{"$f":"SUM(ID25:ID29)/(2*(COUNTIF(ID25:ID29,\"<>NA\")))","v":0},null,null,null,null,{"$f":"SUM(II25:II29)/(2*(COUNTIF(II25:II29,\"<>NA\")))","v":0},null,null,null,null,{"$f":"SUM(IN25:IN29)/(2*(COUNTIF(IN25:IN29,\"<>NA\")))","v":0},null,null,null,null,{"$f":"SUM(IS25:IS29)/(2*(COUNTIF(IS25:IS29,\"<>NA\")))","v":0},null,null,null,null,{"$f":"SUM(IX25:IX29)/(2*(COUNTIF(IX25:IX29,\"<>NA\")))","v":0},null,null,null,null,{"$f":"SUM(JC25:JC29)/(2*(COUNTIF(JC25:JC29,\"<>NA\")))","v":0},null,null,null,null,{"$f":"SUM(JH25:JH29)/(2*(COUNTIF(JH25:JH29,\"<>NA\")))","v":0},null,null,null,null,{"$f":"SUM(JM25:JM29)/(2*(COUNTIF(JM25:JM29,\"<>NA\")))","v":0},null,null,null,null,{"$f":"SUM(JR25:JR29)/(2*(COUNTIF(JR25:JR29,\"<>NA\")))","v":0}]
[null,"The overall implementation of all indicators",{"$f":"AVERAGE(C11,C23,C30)","v":0.87037037037037035},null,null,null,null,{"$f":"AVERAGE(H11,H23,H30)","v":0.88888888888888884},null,null,null,null,{"$f":"AVERAGE(M11,M23,M30)","v":0.90740740740740744},null,null,null,null,{"$f":"AVERAGE(R11,R23,R30)","v":0.90740740740740744},null,null,null,null,{"$f":"AVERAGE(W11,W23,W30)","v":0.90740740740740744},null,null,null,null,{"$f":"AVERAGE(AB11,AB23,AB30)","v":0.96296296296296291},null,null,null,null,{"$f":"AVERAGE(AG11,AG23,AG30)","v":0.96296296296296291},null,null,null,null,{"$f":"AVERAGE(AL11,AL23,AL30)","v":0},null,null,null,null,{"$f":"AVERAGE(AQ11,AQ23,AQ30)","v":0},null,null,null,null,{"$f":"AVERAGE(AV11,AV23,AV30)","v":0},null,null,null,null,{"$f":"AVERAGE(BA11,BA23,BA30)","v":0},null,null,null,null,{"$f":"AVERAGE(BF11,BF23,BF30)","v":0},null,null,null,null,{"$f":"AVERAGE(BK11,BK23,BK30)","v":0},null,null,null,null,{"$f":"AVERAGE(BP11,BP23,BP30)","v":0},null,null,null,null,{"$f":"AVERAGE(BU11,BU23,BU30)","v":0},null,null,null,null,{"$f":"AVERAGE(BZ11,BZ23,BZ30)","v":0},null,null,null,null,{"$f":"AVERAGE(CE11,CE23,CE30)","v":0},null,null,null,null,{"$f":"AVERAGE(CJ11,CJ23,CJ30)","v":0},null,null,null,null,{"$f":"AVERAGE(CO11,CO23,CO30)","v":0},null,null,null,null,{"$f":"AVERAGE(CT11,CT23,CT30)","v":0},null,null,null,null,{"$f":"AVERAGE(CY11,CY23,CY30)","v":0},null,null,null,null,{"$f":"AVERAGE(DD11,DD23,DD30)","v":0},null,null,null,null,{"$f":"AVERAGE(DI11,DI23,DI30)","v":0},null,null,null,null,{"$f":"AVERAGE(DN11,DN23,DN30)","v":0},null,null,null,null,{"$f":"AVERAGE(DS11,DS23,DS30)","v":0},null,null,null,null,{"$f":"AVERAGE(DX11,DX23,DX30)","v":0},null,null,null,null,{"$f":"AVERAGE(EC11,EC23,EC30)","v":0},null,null,null,null,{"$f":"AVERAGE(EH11,EH23,EH30)","v":0},null,null,null,null,{"$f":"AVERAGE(EM11,EM23,EM30)","v":0},null,null,null,null,{"$f":"AVERAGE(ER11,ER23,ER30)","v":0},null,null,null,null,{"$f":"AVERAGE(EW11,EW23,EW30)","v":0},null,null,null,null,{"$f":"AVERAGE(FB11,FB23,FB30)","v":0},null,null,null,null,{"$f":"AVERAGE(FG11,FG23,FG30)","v":0},null,null,null,null,{"$f":"AVERAGE(FL11,FL23,FL30)","v":0},null,null,null,null,{"$f":"AVERAGE(FQ11,FQ23,FQ30)","v":0},null,null,null,null,{"$f":"AVERAGE(FV11,FV23,FV30)","v":0},null,null,null,null,{"$f":"AVERAGE(GA11,GA23,GA30)","v":0},null,null,null,null,{"$f":"AVERAGE(GF11,GF23,GF30)","v":0},null,null,null,null,{"$f":"AVERAGE(GK11,GK23,GK30)","v":0},null,null,null,null,{"$f":"AVERAGE(GP11,GP23,GP30)","v":0},null,null,null,null,{"$f":"AVERAGE(GU11,GU23,GU30)","v":0},null,null,null,null,{"$f":"AVERAGE(GZ11,GZ23,GZ30)","v":0},null,null,null,null,{"$f":"AVERAGE(HE11,HE23,HE30)","v":0},null,null,null,null,{"$f":"AVERAGE(HJ11,HJ23,HJ30)","v":0},null,null,null,null,{"$f":"AVERAGE(HO11,HO23,HO30)","v":0},null,null,null,null,{"$f":"AVERAGE(HT11,HT23,HT30)","v":0},null,null,null,null,{"$f":"AVERAGE(HY11,HY23,HY30)","v":0},null,null,null,null,{"$f":"AVERAGE(ID11,ID23,ID30)","v":0},null,null,null,null,{"$f":"AVERAGE(II11,II23,II30)","v":0},null,null,null,null,{"$f":"AVERAGE(IN11,IN23,IN30)","v":0},null,null,null,null,{"$f":"AVERAGE(IS11,IS23,IS30)","v":0},null,null,null,null,{"$f":"AVERAGE(IX11,IX23,IX30)","v":0},null,null,null,null,{"$f":"AVERAGE(JC11,JC23,JC30)","v":0},null,null,null,null,{"$f":"AVERAGE(JH11,JH23,JH30)","v":0},null,null,null,null,{"$f":"AVERAGE(JM11,JM23,JM30)","v":0},null,null,null,null,{"$f":"AVERAGE(JR11,JR23,JR30)","v":0}]
[null,"Assessor","Assessor Name:",null,null,null,null,"Assessor Name:",null,null,null,null,"Assessor Name:",null,null,null,null,"Assessor Name:",null,null,null,null,"Assessor Name:",null,null,null,null,"Assessor Name:",null,null,null,null,"Assessor Name:",null,null,null,null,"Assessor Name:",null,null,null,null,"Assessor Name:",null,null,null,null,"Assessor Name:",null,null,null,null,"Assessor Name:",null,null,null,null,"Assessor Name:",null,null,null,null,"Assessor Name:",null,null,null,null,"Assessor Name:",null,null,null,null,"Assessor Name:",null,null,null,null,"Assessor Name:",null,null,null,null,"Assessor Name:",null,null,null,null,"Assessor Name:",null,null,null,null,"Assessor Name:",null,null,null,null,"Assessor Name:",null,null,null,null,"Assessor Name:",null,null,null,null,"Assessor Name:",null,null,null,null,"Assessor Name:",null,null,null,null,"Assessor Name:",null,null,null,null,"Assessor Name:",null,null,null,null,"Assessor Name:",null,null,null,null,"Assessor Name:",null,null,null,null,"Assessor Name:",null,null,null,null,"Assessor Name:",null,null,null,null,"Assessor Name:",null,null,null,null,"Assessor Name:",null,null,null,null,"Assessor Name:",null,null,null,null,"Assessor Name:",null,null,null,null,"Assessor Name:",null,null,null,null,"Assessor Name:",null,null,null,null,"Assessor Name:",null,null,null,null,"Assessor Name:",null,null,null,null,"Assessor Name:",null,null,null,null,"Assessor Name:",null,null,null,null,"Assessor Name:",null,null,null,null,"Assessor Name:",null,null,null,null,"Assessor Name:",null,null,null,null,"Assessor Name:",null,null,null,null,"Assessor Name:",null,null,null,null,"Assessor Name:",null,null,null,null,"Assessor Name:",null,null,null,null,"Assessor Name:",null,null,null,null,"Assessor Name:",null,null,null,null,"Assessor Name:",null,null,null,null,"Assessor Name:",null,null,null,null,"Assessor Name:",null,null,null,null,"Assessor Name:",null,null,null,null,"Assessor Name:",null,null,null,null,"Assessor Name:",null,null,null,null,"Assessor Name:",null,null,null,null,"Assessor Name:"]

{"sheet":"清单","index":7,"n_rows":5,"n_cols":1,"rows_kept":5,"cut":false,"hidden":true,"merged":[]}
["Response"]
[0]
[1]
[2]
["NA"]

{"sheet":"droplist","index":8,"n_rows":8,"n_cols":108,"rows_kept":8,"cut":false,"hidden":true,"merged":[]}
["门诊","Outpatient",null,"Ward",null,null,"实验室","Laboratory",null,"评估时段",null,null,"进度",null,"是否有文件",null,"查看模式"]
[1,"1. Outpatient","1. 一实验室",1,"1. Ward1",null,1,"1. Laboratory 1",null,1,"Basic",null,0,null,"Y",null,1,"Input data",null,null,null,null,null,null,null,null,null,null,null,null,null,null,null,null,null,null,null,null,null,null,null,null,null,null,null,null,null,null,null,null,null,null,null,null,null,null,null,null,null,null,null,null,null,null,null,null,null,null,null,null,null,null,"3. 普通内科二",null,null,null,null,null,null,null,null,null,null,null,null,null,null,null,null,null,null,null,null,null,null,null,null,null,null,null,null,null,null,null,null,null,null,"4. 呼吸内科"]
[2,"2. Internal Medicine 1",null,null,null,null,null,null,null,2,"3 months",null,1,null,"N",null,2,"View Data"]
[3,"3. Internal Medicine 2",null,null,null,null,null,null,null,3,"6 months",null,2]
[4,"4. Respiratory Medicine",null,null,null,null,null,null,null,4,"9 months",null,"NA"]
[null,null,null,null,null,null,null,null,null,5,"12 months"]
[null,null,null,null,null,null,null,null,null,6,"15 months"]
[null,null,null,null,null,null,null,null,null,7,"Final"]

{"sheet":"门诊区域 (2)","index":9,"n_rows":45,"n_cols":23,"rows_kept":45,"cut":false,"hidden":true,"merged":[]}
[null,"门诊区","1. 门诊大厅挂号/分诊区域"]
[null,"评估阶段",null,null,0,3,null,null,6,null,null,9,null,null,12,null,null,15,null,null,18]
[null,"评估时间"]
[null,"门诊/区域类型： 1. 门诊大厅挂号/分诊区域  2. 急诊  3. 发热门诊 4. 呼吸门诊 5. 放射科 6.  结核门诊 7. 药房 8.其他，请注明："]
[null,"行政管理"]
[1,"就诊者进入机构时，按照常规询问其咳嗽情况",5,1,{"$f":"IF(D6<>0,ROUND(C6/D6,2),\"\")","v":5},111]
[2,"为就诊者进行咳嗽礼仪指导和宣教",5,2,{"$f":"IF(D7<>0,ROUND(C7/D7,2),\"\")","v":2.5}]
[3,"有“咳嗽监察员”协助分诊，提供咳嗽礼仪指导",5,3,1.67]
[4,"将有咳嗽或其他结核症状的就诊者及时与其他人分开",5,4,1.25]
[5,"有咳嗽或其他结核症状的就诊者由“快速通道”交由医护人员接诊，或接受其他门诊服务",5,5,1]
[6,"张贴咳嗽礼仪标识",5,5,1]
[7,"向有咳嗽症状的就诊者提供相关用品（纸巾或口罩或手绢）",5,6,0.83]
[8,"有指定的留痰处，通风良好且远离其他人群",5,7,0.71]
[9," 24小时内（从收痰时间到主治医生拿到结果的时间）收到痰涂片检测结果",5,8,0.63]
[10,"24小时内（从收痰时间到主治医生拿到结果的时间）收到Xpert MTB/RIF检测结果",5,1,5]
[11,"获得实验室结果后24小时内开始抗结核治疗，或根据结果24小时内调整原治疗方案",5,0,""]
[12,"对疑似耐药性结核的患者（五类人群：1．慢性排菌患者/复治失败患者；2．密切接触耐多药肺结核患者的涂阳肺结核患者；3．初治失败患者；4．复发与返回的患者；5．治疗3月末痰涂片仍阳性的初治涂阳患者）进行耐药性检测",5,0,""]
[13,"将疑似结核患者与其他患者分开就诊",5,2,2.5]
[14,"将确诊结核患者与其他患者分开就诊",5,3,1.67]
[15,"将疑似耐药结核患者（五类人群：1．慢性排菌患者/复治失败患者；2．密切接触耐多药肺结核患者的涂阳肺结核患者；3．初治失败患者；4．复发与返回的患者；5．治疗3月末痰涂片仍阳性的初治涂阳患者）与其他患者分开就诊",5,4,1.25]
[16,"将确诊的耐药结核患者与其他患者分开就诊",5,1,5]
[17,"免疫力低下（例如：糖尿病、HIV阳性、使用免疫抑制剂等）患者与疑似或确诊结核患者分开就诊",5,5,1]
[18,"有一个正式系统将住院治疗的确诊结核患者与门诊治疗联系起来，用于后续跟踪随访（或者与结核/DOT诊室联系起来用于后续跟踪随访）",5,2,2.5]
[null,"行政管理措施相关指标的执行情况",null,null,{"$f":"SUM(E6:E23)/(2*(COUNTIF(E6:E23,\"<>.\")))","v":0.93083333333333351},null,null,{"$f":"SUM(H6:H23)/(2*(COUNTIF(H6:H23,\"<>.\")))","v":0},null,null,{"$f":"SUM(K6:K23)/(2*(COUNTIF(K6:K23,\"<>.\")))","v":0},null,null,{"$f":"SUM(N6:N23)/(2*(COUNTIF(N6:N23,\"<>.\")))","v":0},null,null,{"$f":"SUM(Q6:Q23)/(2*(COUNTIF(Q6:Q23,\"<>.\")))","v":0},null,null,{"$f":"SUM(T6:T23)/(2*(COUNTIF(T6:T23,\"<>.\")))","v":0},null,null,{"$f":"SUM(W6:W23)/(2*(COUNTIF(W6:W23,\"<>.\")))","v":0}]
[null,"环境工程指标"]
[19,"自然通风：房内两对立墙面上设有门窗通风"]
[20,"自然通风：房内两对立墙面上可打开窗/门的面积至少达到房间地面面积（长*宽）的10%（开窗/门的总面积≥房间地面面积的20%）"]
[21,"自然通风：标识提示开门、开窗"]
[22,"自然通风：在访察时所有适合打开的门窗都被打开"]
[23,"自然通风：相对于室外，没有化学气味或人体气味"]
[24,"机械通风和自然通风：在送风口和排风口或开窗处使用发烟设备（例如：烟管、香等）观察空气流动情况，可以看到气流，且流向合理"]
[25,"机械通风：定期维护定向风扇和排气风扇"]
[26,"候诊区或走廊里的患者不拥挤"]
[27,"正确使用传统的紫外线照射灭菌灯（根据下面的测量结果）"]
[28,"正确对上层空间进行紫外线灯照射灭菌（根据下面的测量结果）"]
[null,"环境工程措施相关指标的执行情况",null,null,{"$f":"SUM(E26:E35)/(2*(COUNTIF(E26:E35,\"<>.\")))","v":0},null,null,{"$f":"SUM(H26:H35)/(2*(COUNTIF(H26:H35,\"<>.\")))","v":0},null,null,{"$f":"SUM(K26:K35)/(2*(COUNTIF(K26:K35,\"<>.\")))","v":0},null,null,{"$f":"SUM(N26:N35)/(2*(COUNTIF(N26:N35,\"<>.\")))","v":0},null,null,{"$f":"SUM(Q26:Q35)/(2*(COUNTIF(Q26:Q35,\"<>.\")))","v":0},null,null,{"$f":"SUM(T26:T35)/(2*(COUNTIF(T26:T35,\"<>.\")))","v":0},null,null,{"$f":"SUM(W26:W35)/(2*(COUNTIF(W26:W35,\"<>.\")))","v":0}]
[null,"个人防护指标"]
[29,"有咳嗽症状的就诊者佩戴外科口罩"]
[30,"所有与确诊或疑似的结核患者有接触的医护人员佩戴符合认证标准（例如：NIOSH N-95， 欧盟FFP2或GB 19083－2010 1级或更高级别的）的医用防护口罩"]
[31,"医护人员在过去一年中接受了正确使用医用防护口罩的培训"]
[32,"医护人员可以正确演示如何使用医用防护口罩（如，戴上、摘下、适合性检查和存放）"]
[33,"过去三个月里没有发生外科口罩供应不足的问题"]
[34,"过去三个月里没有发生医用防护口罩供应不足的问题"]
[null,"个人防护措施相关指标的执行情况",null,null,{"$f":"SUM(E38:E43)/(2*(COUNTIF(E38:E43,\"<>.\")))","v":0},null,null,{"$f":"SUM(H38:H43)/(2*(COUNTIF(H38:H43,\"<>.\")))","v":0},null,null,{"$f":"SUM(K38:K43)/(2*(COUNTIF(K38:K43,\"<>.\")))","v":0},null,null,{"$f":"SUM(N38:N43)/(2*(COUNTIF(N38:N43,\"<>.\")))","v":0},null,null,{"$f":"SUM(Q38:Q43)/(2*(COUNTIF(Q38:Q43,\"<>.\")))","v":0},null,null,{"$f":"SUM(T38:T43)/(2*(COUNTIF(T38:T43,\"<>.\")))","v":0},null,null,{"$f":"SUM(W38:W43)/(2*(COUNTIF(W38:W43,\"<>.\")))","v":0}]
[null,"指标执行的总体情况",null,null,{"$f":"AVERAGE(E24,E36,E44)","v":0.31027777777777782},null,null,{"$f":"AVERAGE(H24,H36,H44)","v":0},null,null,{"$f":"AVERAGE(K24,K36,K44)","v":0},null,null,{"$f":"AVERAGE(N24,N36,N44)","v":0},null,null,{"$f":"AVERAGE(Q24,Q36,Q44)","v":0},null,null,{"$f":"AVERAGE(T24,T36,T44)","v":0},null,null,{"$f":"AVERAGE(W24,W36,W44)","v":0}]

{"sheet":"data","index":10,"n_rows":25,"n_cols":10,"rows_kept":25,"cut":false,"hidden":true,"merged":[]}
["门诊区域",{"$f":"'Outpatient department & clinic'!C3","v":"Basic"},{"$f":"'Outpatient department & clinic'!$H$3","v":"3 months"},{"$f":"'Outpatient department & clinic'!$M$3","v":"6 months"},{"$f":"'Outpatient department & clinic'!$R$3","v":"9 months"},{"$f":"'Outpatient department & clinic'!$W$3","v":"12 months"},{"$f":"'Outpatient department & clinic'!$AB$3","v":"15 months"},{"$f":"'Outpatient department & clinic'!$AG$3","v":"18 months"},{"$f":"'Outpatient department & clinic'!B3","v":"Assessment phase"}]
[{"$f":"'Outpatient department & clinic'!C2","v":"1. Outpatient"},{"$f":"'Outpatient department & clinic'!C24","v":0.47058823529411764},{"$f":"'Outpatient department & clinic'!$H$24","v":0.52941176470588236},{"$f":"'Outpatient department & clinic'!$M$24","v":0.55882352941176472},{"$f":"'Outpatient department & clinic'!$R$24","v":0.58823529411764708},{"$f":"'Outpatient department & clinic'!$W$24","v":0.58823529411764708},{"$f":"'Outpatient department & clinic'!$AB$24","v":0.6470588235294118},{"$f":"'Outpatient department & clinic'!$AG$25","v":"Rate"},{"$f":"'Outpatient department & clinic'!B24","v":"The implementation of administrative controls indicators"},"门诊区域"]
[{"$f":"'Outpatient department & clinic'!C2","v":"1. Outpatient"},{"$f":"'Outpatient department & clinic'!C36","v":0.66666666666666663},{"$f":"'Outpatient department & clinic'!$H$36","v":0.66666666666666663},{"$f":"'Outpatient department & clinic'!$M$36","v":0.66666666666666663},{"$f":"'Outpatient department & clinic'!$R$36","v":0.66666666666666663},{"$f":"'Outpatient department & clinic'!$W$36","v":0.66666666666666663},{"$f":"'Outpatient department & clinic'!$AB$36","v":0.66666666666666663},{"$f":"'Outpatient department & clinic'!$AG$37","v":"Rate"},{"$f":"'Outpatient department & clinic'!B36","v":"The implementation of environmental controls indicators"},"门诊区域"]
[{"$f":"'Outpatient department & clinic'!C2","v":"1. Outpatient"},{"$f":"'Outpatient department & clinic'!C44","v":0.91666666666666663},{"$f":"'Outpatient department & clinic'!$H$44","v":0.91666666666666663},{"$f":"'Outpatient department & clinic'!$M$44","v":0.91666666666666663},{"$f":"'Outpatient department & clinic'!$R$44","v":0.91666666666666663},{"$f":"'Outpatient department & clinic'!$W$44","v":0.91666666666666663},{"$f":"'Outpatient department & clinic'!$AB$44","v":0.91666666666666663},{"$f":"'Outpatient department & clinic'!$AG$45","v":0.8110021786492374},{"$f":"'Outpatient department & clinic'!B44","v":"The implementation of personal protective equipment indicators"},"门诊区域"]
[{"$f":"'Outpatient department & clinic'!AL2","v":"2. Internal Medicine 1"},{"$f":"'Outpatient department & clinic'!$AL$24","v":0.47058823529411764},{"$f":"'Outpatient department & clinic'!$AQ$24","v":0.52941176470588236},{"$f":"'Outpatient department & clinic'!$AV$24","v":0.58823529411764708},{"$f":"'Outpatient department & clinic'!$BA$24","v":0.67647058823529416},{"$f":"'Outpatient department & clinic'!$BF$24","v":0.70588235294117652},{"$f":"'Outpatient department & clinic'!$BK$24","v":0.70588235294117652},{"$f":"'Outpatient department & clinic'!$BP$24","v":0.79411764705882348},"行政管理措施相关指标的执行情况","门诊区域"]
[{"$f":"'Outpatient department & clinic'!AL2","v":"2. Internal Medicine 1"},{"$f":"'Outpatient department & clinic'!$AL$36","v":0.625},{"$f":"'Outpatient department & clinic'!$AQ$36","v":0.6875},{"$f":"'Outpatient department & clinic'!$AV$36","v":0.6875},{"$f":"'Outpatient department & clinic'!$BA$36","v":0.6875},{"$f":"'Outpatient department & clinic'!$BF$36","v":0.75},{"$f":"'Outpatient department & clinic'!$BK$36","v":0.75},{"$f":"'Outpatient department & clinic'!$BP$36","v":0.875},"环境工程措施相关指标的执行情况","门诊区域"]
[{"$f":"'Outpatient department & clinic'!AL2","v":"2. Internal Medicine 1"},{"$f":"'Outpatient department & clinic'!$AL$44","v":0.91666666666666663},{"$f":"'Outpatient department & clinic'!$AQ$44","v":0.91666666666666663},{"$f":"'Outpatient department & clinic'!$AV$44","v":0.91666666666666663},{"$f":"'Outpatient department & clinic'!$BA$44","v":0.91666666666666663},{"$f":"'Outpatient department & clinic'!$BF$44","v":0.91666666666666663},{"$f":"'Outpatient department & clinic'!$BK$44","v":0.91666666666666663},{"$f":"'Outpatient department & clinic'!$BP$44","v":1},"个人防护措施相关指标的执行情况","门诊区域"]
[{"$f":"'Outpatient department & clinic'!BU2","v":"3. Internal Medicine 2"},{"$f":"'Outpatient department & clinic'!$BU$24","v":0.47058823529411764},{"$f":"'Outpatient department & clinic'!$BZ$24","v":0.5},{"$f":"'Outpatient department & clinic'!$CE$24","v":0.5},{"$f":"'Outpatient department & clinic'!$CJ$24","v":0.61764705882352944},{"$f":"'Outpatient department & clinic'!$CO$24","v":0.61764705882352944},{"$f":"'Outpatient department & clinic'!$CT$24","v":0.70588235294117652},{"$f":"'Outpatient department & clinic'!$CY$24","v":0.79411764705882348},"行政管理措施相关指标的执行情况","门诊区域"]
[{"$f":"'Outpatient department & clinic'!BU2","v":"3. Internal Medicine 2"},{"$f":"'Outpatient department & clinic'!$BU$36","v":0.625},{"$f":"'Outpatient department & clinic'!$BZ$36","v":0.6875},{"$f":"'Outpatient department & clinic'!$CE$36","v":0.6875},{"$f":"'Outpatient department & clinic'!$CJ$36","v":0.6875},{"$f":"'Outpatient department & clinic'!$CO$36","v":0.6875},{"$f":"'Outpatient department & clinic'!$CT$36","v":0.75},{"$f":"'Outpatient department & clinic'!$CY$36","v":0.875},"环境工程措施相关指标的执行情况","门诊区域"]
[{"$f":"'Outpatient department & clinic'!BU2","v":"3. Internal Medicine 2"},{"$f":"'Outpatient department & clinic'!$BU$44","v":0.91666666666666663},{"$f":"'Outpatient department & clinic'!$BZ$44","v":0.91666666666666663},{"$f":"'Outpatient department & clinic'!$CE$44","v":0.91666666666666663},{"$f":"'Outpatient department & clinic'!$CJ$44","v":0.91666666666666663},{"$f":"'Outpatient department & clinic'!$CO$44","v":0.91666666666666663},{"$f":"'Outpatient department & clinic'!$CT$44","v":0.91666666666666663},{"$f":"'Outpatient department & clinic'!$CY$44","v":1},"个人防护措施相关指标的执行情况","门诊区域"]
[{"$f":"'Outpatient department & clinic'!DD2","v":"4. Respiratory Medicine"},{"$f":"'Outpatient department & clinic'!$DD$24","v":0.47058823529411764},{"$f":"'Outpatient department & clinic'!$DI$24","v":0.55882352941176472},{"$f":"'Outpatient department & clinic'!$DN$24","v":0.6470588235294118},{"$f":"'Outpatient department & clinic'!$DS$24","v":0.67647058823529416},{"$f":"'Outpatient department & clinic'!$DX$24","v":0.67647058823529416},{"$f":"'Outpatient department & clinic'!$EC$24","v":1},{"$f":"'Outpatient department & clinic'!$EH$24","v":1},"行政管理措施相关指标的执行情况","门诊区域"]
[{"$f":"'Outpatient department & clinic'!DD2","v":"4. Respiratory Medicine"},{"$f":"'Outpatient department & clinic'!$DD$36","v":0.72222222222222221},{"$f":"'Outpatient department & clinic'!$DI$36","v":0.72222222222222221},{"$f":"'Outpatient department & clinic'!$DN$36","v":0.72222222222222221},{"$f":"'Outpatient department & clinic'!$DS$36","v":0.72222222222222221},{"$f":"'Outpatient department & clinic'!$DX$36","v":0.72222222222222221},{"$f":"'Outpatient department & clinic'!$EC$36","v":0.94444444444444442},{"$f":"'Outpatient department & clinic'!$EH$36","v":0.94444444444444442},"环境工程措施相关指标的执行情况","门诊区域"]
[{"$f":"'Outpatient department & clinic'!DD2","v":"4. Respiratory Medicine"},{"$f":"'Outpatient department & clinic'!$DD$44","v":0.91666666666666663},{"$f":"'Outpatient department & clinic'!$DI$44","v":0.91666666666666663},{"$f":"'Outpatient department & clinic'!$DN$44","v":0.91666666666666663},{"$f":"'Outpatient department & clinic'!$DS$44","v":0.91666666666666663},{"$f":"'Outpatient department & clinic'!$DX$44","v":0.91666666666666663},{"$f":"'Outpatient department & clinic'!$EC$44","v":1},{"$f":"'Outpatient department & clinic'!$EH$44","v":1},"个人防护措施相关指标的执行情况","门诊区域"]
[{"$f":"'Outpatient department & clinic'!EM2","v":0},{"$f":"'Outpatient department & clinic'!$EM$24","v":0},{"$f":"'Outpatient department & clinic'!$ER$24","v":0},{"$f":"'Outpatient department & clinic'!$EW$24","v":0},{"$f":"'Outpatient department & clinic'!$FB$24","v":0},{"$f":"'Outpatient department & clinic'!$FG$24","v":0},{"$f":"'Outpatient department & clinic'!$FL$24","v":0},{"$f":"'Outpatient department & clinic'!$FQ$24","v":0},"行政管理措施相关指标的执行情况","门诊区域"]
[{"$f":"'Outpatient department & clinic'!EM2","v":0},{"$f":"'Outpatient department & clinic'!$EM$36","v":0},{"$f":"'Outpatient department & clinic'!$ER$36","v":0},{"$f":"'Outpatient department & clinic'!$EW$36","v":0},{"$f":"'Outpatient department & clinic'!$FB$36","v":0},{"$f":"'Outpatient department & clinic'!$FG$36","v":0},{"$f":"'Outpatient department & clinic'!$FL$36","v":0},{"$f":"'Outpatient department & clinic'!$FQ$36","v":0},"环境工程措施相关指标的执行情况","门诊区域"]
[{"$f":"'Outpatient department & clinic'!EM2","v":0},{"$f":"'Outpatient department & clinic'!$EM$44","v":0},{"$f":"'Outpatient department & clinic'!$ER$44","v":0},{"$f":"'Outpatient department & clinic'!$EW$44","v":0},{"$f":"'Outpatient department & clinic'!$FB$44","v":0},{"$f":"'Outpatient department & clinic'!$FG$44","v":0},{"$f":"'Outpatient department & clinic'!$FL$44","v":0},{"$f":"'Outpatient department & clinic'!$FQ$44","v":0},"个人防护措施相关指标的执行情况","门诊区域"]
[{"$f":"'Outpatient department & clinic'!FV2","v":0},{"$f":"'Outpatient department & clinic'!$FV$24","v":0},{"$f":"'Outpatient department & clinic'!$GA$24","v":0},{"$f":"'Outpatient department & clinic'!$GF$24","v":0},{"$f":"'Outpatient department & clinic'!$GK$24","v":0},{"$f":"'Outpatient department & clinic'!$GP$24","v":0},{"$f":"'Outpatient department & clinic'!$GU$24","v":0},{"$f":"'Outpatient department & clinic'!$GZ$24","v":0},"行政管理措施相关指标的执行情况","门诊区域"]
[{"$f":"'Outpatient department & clinic'!FV2","v":0},{"$f":"'Outpatient department & clinic'!$FV$36","v":0},{"$f":"'Outpatient department & clinic'!$GA$36","v":0},{"$f":"'Outpatient department & clinic'!$GF$36","v":0},{"$f":"'Outpatient department & clinic'!$GK$36","v":0},{"$f":"'Outpatient department & clinic'!$GP$36","v":0},{"$f":"'Outpatient department & clinic'!$GU$36","v":0},{"$f":"'Outpatient department & clinic'!$GZ$36","v":0},"环境工程措施相关指标的执行情况","门诊区域"]
[{"$f":"'Outpatient department & clinic'!FV2","v":0},{"$f":"'Outpatient department & clinic'!$FV$44","v":0},{"$f":"'Outpatient department & clinic'!$GA$44","v":0},{"$f":"'Outpatient department & clinic'!$GF$44","v":0},{"$f":"'Outpatient department & clinic'!$GK$44","v":0},{"$f":"'Outpatient department & clinic'!$GP$44","v":0},{"$f":"'Outpatient department & clinic'!$GU$44","v":0},{"$f":"'Outpatient department & clinic'!$GZ$44","v":0},"个人防护措施相关指标的执行情况","门诊区域"]
[{"$f":"'Outpatient department & clinic'!HE2","v":0},{"$f":"'Outpatient department & clinic'!$HE$24","v":0.47058823529411764},{"$f":"'Outpatient department & clinic'!$HJ$24","v":0.55882352941176472},{"$f":"'Outpatient department & clinic'!$HO$24","v":0.6470588235294118},{"$f":"'Outpatient department & clinic'!$HT$24","v":0.67647058823529416},{"$f":"'Outpatient department & clinic'!$HY$24","v":0.67647058823529416},{"$f":"'Outpatient department & clinic'!$ID$24","v":0.97058823529411764},{"$f":"'Outpatient department & clinic'!$II$24","v":0.97058823529411764},"行政管理措施相关指标的执行情况","门诊区域"]
[{"$f":"'Outpatient department & clinic'!HE2","v":0},{"$f":"'Outpatient department & clinic'!$HE$36","v":0.625},{"$f":"'Outpatient department & clinic'!$HJ$36","v":0.6875},{"$f":"'Outpatient department & clinic'!$HO$36","v":0.6875},{"$f":"'Outpatient department & clinic'!$HT$36","v":0.6875},{"$f":"'Outpatient department & clinic'!$HY$36","v":0.6875},{"$f":"'Outpatient department & clinic'!$ID$36","v":0.9375},{"$f":"'Outpatient department & clinic'!$II$36","v":0.9375},"环境工程措施相关指标的执行情况","门诊区域"]
[{"$f":"'Outpatient department & clinic'!HE2","v":0},{"$f":"'Outpatient department & clinic'!$HE$44","v":0.91666666666666663},{"$f":"'Outpatient department & clinic'!$HJ$44","v":0.91666666666666663},{"$f":"'Outpatient department & clinic'!$HO$44","v":0.91666666666666663},{"$f":"'Outpatient department & clinic'!$HT$44","v":0.91666666666666663},{"$f":"'Outpatient department & clinic'!$HY$44","v":0.91666666666666663},{"$f":"'Outpatient department & clinic'!$ID$44","v":1},{"$f":"'Outpatient department & clinic'!$II$44","v":1},"个人防护措施相关指标的执行情况","门诊区域"]
[{"$f":"'Outpatient department & clinic'!IN2","v":0},{"$f":"'Outpatient department & clinic'!$IN$24","v":0},{"$f":"'Outpatient department & clinic'!$IS$24","v":0},{"$f":"'Outpatient department & clinic'!$IX$24","v":0},{"$f":"'Outpatient department & clinic'!$JC$24","v":0},{"$f":"'Outpatient department & clinic'!$JH$24","v":0},{"$f":"'Outpatient department & clinic'!$JM$24","v":0},{"$f":"'Outpatient department & clinic'!$JR$24","v":0},"行政管理措施相关指标的执行情况","门诊区域"]
[{"$f":"'Outpatient department & clinic'!IN2","v":0},{"$f":"'Outpatient department & clinic'!$IN$36","v":0},{"$f":"'Outpatient department & clinic'!$IS$36","v":0},{"$f":"'Outpatient department & clinic'!$IX$36","v":0},{"$f":"'Outpatient department & clinic'!$JC$36","v":0},{"$f":"'Outpatient department & clinic'!$JH$36","v":0},{"$f":"'Outpatient department & clinic'!$JM$36","v":0},{"$f":"'Outpatient department & clinic'!$JR$36","v":0},"环境工程措施相关指标的执行情况","门诊区域"]
[{"$f":"'Outpatient department & clinic'!IN2","v":0},{"$f":"'Outpatient department & clinic'!$IN$44","v":0},{"$f":"'Outpatient department & clinic'!$IS$44","v":0},{"$f":"'Outpatient department & clinic'!$IX$44","v":0},{"$f":"'Outpatient department & clinic'!$JC$44","v":0},{"$f":"'Outpatient department & clinic'!$JH$44","v":0},{"$f":"'Outpatient department & clinic'!$JM$44","v":0},{"$f":"'Outpatient department & clinic'!$JR$44","v":0},"个人防护措施相关指标的执行情况","门诊区域"]

{"sheet":"rules","index":11,"n_rows":35,"n_cols":19,"rows_kept":35,"cut":false,"hidden":true,"merged":[]}
["门诊区域","limitedNum","gLine","yLine",null,"住院病区","limitedNum","gLine","yLine",null,"实验室","limitedNum","gLine","yLine",null,"整体机构","limitedNum","gLine","yLine"]
[1,5,0.8,0.4,null,1,5,0.8,0.4,null,1,5,0.8,0.4,null,1,5,0.8,0.4]
[2,5,0.8,0.4,null,2,5,0.8,0.4,null,2,5,0.8,0.4,null,2,5,0.8,0.4]
[3,5,0.8,0.4,null,3,5,0.8,0.4,null,3,5,0.8,0.4,null,3,5,0.8,0.4]
[4,5,0.8,0.4,null,4,5,0.8,0.4,null,4,5,0.8,0.4,null,4,5,0.8,0.4]
[5,5,0.8,0.4,null,5,5,0.8,0.4,null,5,5,0.8,0.4,null,5,5,0.8,0.4]
[6,5,0.8,0.4,null,6,5,0.8,0.4,null,6,5,0.8,0.4,null,6,5,0.8,0.4]
[7,5,0.8,0.4,null,7,5,0.8,0.4,null,7,5,0.8,0.4,null,7,5,0.8,0.4]
[8,5,0.8,0.4,null,8,5,0.8,0.4,null,8,5,0.8,0.4,null,8,5,0.8,0.4]
[9,5,0.8,0.4,null,9,5,0.8,0.4,null,9,5,0.8,0.4,null,9,5,0.8,0.4]
[10,5,0.8,0.4,null,10,5,0.8,0.4,null,10,5,0.8,0.4,null,10,5,0.8,0.4]
[11,5,0.8,0.4,null,11,5,0.8,0.4,null,11,5,0.8,0.4,null,11,5,0.8,0.4]
[12,5,0.8,0.4,null,12,5,0.8,0.4,null,12,5,0.8,0.4,null,12,5,0.8,0.4]
[13,5,0.8,0.4,null,13,5,0.8,0.4,null,13,5,0.8,0.4,null,13,5,0.8,0.4]
[14,5,0.8,0.4,null,14,5,0.8,0.4,null,14,5,0.8,0.4,null,14,5,0.8,0.4]
[15,5,0.8,0.4,null,15,5,0.8,0.4,null,15,5,0.8,0.4,null,15,5,0.8,0.4]
[16,5,0.8,0.4,null,16,5,0.8,0.4,null,16,5,0.8,0.4,null,16,5,0.8,0.4]
[17,5,0.8,0.4,null,17,5,0.8,0.4,null,17,5,0.8,0.4]
[18,5,0.8,0.4,null,18,5,0.8,0.4,null,18,5,0.8,0.4]
[19,5,0.8,0.4,null,19,5,0.8,0.4,null,19,5,0.8,0.4]
[20,5,0.8,0.4,null,20,5,0.8,0.4,null,20,5,0.8,0.4]
[21,5,0.8,0.4,null,21,5,0.8,0.4]
[22,5,0.8,0.4,null,22,5,0.8,0.4]
[23,5,0.8,0.4,null,23,5,0.8,0.4]
[24,5,0.8,0.4,null,24,5,0.8,0.4]
[25,5,0.8,0.4,null,25,5,0.8,0.4]
[26,5,0.8,0.4,null,26,5,0.8,0.4]
[27,5,0.8,0.4,null,27,5,0.8,0.4]
[28,5,0.8,0.4,null,28,5,0.8,0.4]
[29,5,0.8,0.4,null,29,5,0.8,0.4]
[30,5,0.8,0.4,null,30,5,0.8,0.4]
[31,5,0.8,0.4,null,31,5,0.8,0.4]
[32,5,0.8,0.4,null,32,5,0.8,0.4]
[33,5,0.8,0.4,null,33,5,0.8,0.4]
[34,5,0.8,0.4]